Workbook

Sheet スコア
B2: 2017/X/XX | D2: 第X回 関西学生X季リーグ戦 第X週 (vs. XX大学) | CZ2: XXXボウル
D3: 4 | E3: 5 | F3: 6 | G3: 7 | H3: 8 | I3: 9 | J3: 10 | K3: 11 | L3: 12 | M3: 13 | N3: 14 | O3: 15 | P3: 16 | Q3: 17 | R3: 18 | S3: 19 | T3: 20 | U3: 21 | V3: 22 | W3: 23 | X3: 24 | Y3: 25 | Z3: 26 | AA3: 27 | AB3: 28 | AC3: 29 | AD3: 30 | AE3: 31 | AF3: 32 | AG3: 33 | AH3: 34 | AI3: 35 | AJ3: 36 | AK3: 37 | AL3: 38 | AM3: 39 | AN3: 40 | AO3: 41 | AP3: 42 | AQ3: 43 | AR3: 44 | AS3: 45 | AT3: 46 | AU3: 47 | AV3: 48 | AW3: 49 | AX3: 50 | AY3: 51 | AZ3: 52 | BA3: 53 | BB3: 54 | BC3: 55 | BD3: 56 | BE3: 57 | BF3: 58 | BG3: 59 | BH3: 60 | BI3: 61 | BJ3: 62 | BK3: 63 | BL3: 64 | BM3: 65 | BN3: 66 | BO3: 67 | BP3: 68 | BQ3: 69 | BR3: 70 | BS3: 71 | BT3: 72 | BU3: 73 | BV3: 74 | BW3: 75 | BX3: 76 | BY3: 77 | BZ3: 78 | CA3: 79 | CB3: 80 | CC3: 81 | CD3: 82 | CE3: 83 | CF3: 84 | CG3: 85 | CH3: 86 | CI3: 87 | CJ3: 88 | CK3: 89 | CL3: 90 | CM3: 91 | CN3: 92 | CO3: 93 | CP3: 94 | CQ3: 95 | CR3: 96 | CS3: 97 | CT3: 98 | CU3: 99 | CV3: 100 | CW3: 101 | CX3: 102 | CY3: 103 | EE3: 1○ | EF3: 1○ | EG3: P
B4: 京 都 大 学 | C4: Player 1 | D4: 1 | N4: 2 | X4: 3 | AH4: 4 | AR4: 5 | BB4: 6 | BL4: 7 | BV4: 8 | CF4: 9 | CP4: 10 | EE4: 1F | EF4: 1F | EG4: S | EI4: 1 | EK4: 2 | EM4: 3 | EO4: 4 | EQ4: 5 | ES4: 6 | EU4: 7 | EW4: 8 | EY4: 9 | FA4: 10
D5: =IF(EI5=10,"X",IF(AND(EI5=0,OR(E12="1F",E12="1,2F")),"F",IF(EI5=0,"G",IF(AND(EI5=8,E12="1○"),"⑧",IF(AND(EI5=7,E12="1○"),"⑦",IF(AND(EI5=6,E12="1○"),"⑥",IF(AND(EI5=5,E12="1○"),"⑤",IF(AND(EI5=4,E12="1○"),"④",EI5)))))))) -> X | I5: =IF(AND(EI5<10,EI5+EJ5=10),"/",IF(EI5=10,"",IF(OR(AND(EJ5=0,E12="2F"),AND(EJ5=0,E12="1,2F")),"F",IF(EJ5=0,"-",EJ5)))) ->  | N5: =IF(EK5=10,"X",IF(AND(EK5=0,OR(O12="1F",O12="1,2F")),"F",IF(EK5=0,"G",IF(AND(EK5=8,O12="1○"),"⑧",IF(AND(EK5=7,O12="1○"),"⑦",IF(AND(EK5=6,O12="1○"),"⑥",IF(AND(EK5=5,O12="1○"),"⑤",IF(AND(EK5=4,O12="1○"),"④",EK5)))))))) -> X | S5: =IF(AND(EK5<10,EK5+EL5=10),"/",IF(EK5=10,"",IF(OR(AND(EL5=0,O12="2F"),AND(EL5=0,O12="1,2F")),"F",IF(EL5=0,"-",EL5)))) ->  | X5: =IF(EM5=10,"X",IF(AND(EM5=0,OR(Y12="1F",Y12="1,2F")),"F",IF(EM5=0,"G",IF(AND(EM5=8,Y12="1○"),"⑧",IF(AND(EM5=7,Y12="1○"),"⑦",IF(AND(EM5=6,Y12="1○"),"⑥",IF(AND(EM5=5,Y12="1○"),"⑤",IF(AND(EM5=4,Y12="1○"),"④",EM5)))))))) -> X | AC5: =IF(AND(EM5<10,EM5+EN5=10),"/",IF(EM5=10,"",IF(OR(AND(EN5=0,Y12="2F"),AND(EN5=0,Y12="1,2F")),"F",IF(EN5=0,"-",EN5)))) ->  | AH5: =IF(EO5=10,"X",IF(AND(EO5=0,OR(AI12="1F",AI12="1,2F")),"F",IF(EO5=0,"G",IF(AND(EO5=8,AI12="1○"),"⑧",IF(AND(EO5=7,AI12="1○"),"⑦",IF(AND(EO5=6,AI12="1○"),"⑥",IF(AND(EO5=5,AI12="1○"),"⑤",IF(AND(EO5=4,AI12="1○"),"④",EO5)))))))) -> X | AM5: =IF(AND(EO5<10,EO5+EP5=10),"/",IF(EO5=10,"",IF(OR(AND(EP5=0,AI12="2F"),AND(EP5=0,AI12="1,2F")),"F",IF(EP5=0,"-",EP5)))) ->  | AR5: =IF(EQ5=10,"X",IF(AND(EQ5=0,OR(AS12="1F",AS12="1,2F")),"F",IF(EQ5=0,"G",IF(AND(EQ5=8,AS12="1○"),"⑧",IF(AND(EQ5=7,AS12="1○"),"⑦",IF(AND(EQ5=6,AS12="1○"),"⑥",IF(AND(EQ5=5,AS12="1○"),"⑤",IF(AND(EQ5=4,AS12="1○"),"④",EQ5)))))))) -> X | AW5: =IF(AND(EQ5<10,EQ5+ER5=10),"/",IF(EQ5=10,"",IF(OR(AND(ER5=0,AS12="2F"),AND(ER5=0,AS12="1,2F")),"F",IF(ER5=0,"-",ER5)))) ->  | BB5: =IF(ES5=10,"X",IF(AND(ES5=0,OR(BC12="1F",BC12="1,2F")),"F",IF(ES5=0,"G",IF(AND(ES5=8,BC12="1○"),"⑧",IF(AND(ES5=7,BC12="1○"),"⑦",IF(AND(ES5=6,BC12="1○"),"⑥",IF(AND(ES5=5,BC12="1○"),"⑤",IF(AND(ES5=4,BC12="1○"),"④",ES5)))))))) -> X | BG5: =IF(AND(ES5<10,ES5+ET5=10),"/",IF(ES5=10,"",IF(OR(AND(ET5=0,BC12="2F"),AND(ET5=0,BC12="1,2F")),"F",IF(ET5=0,"-",ET5)))) ->  | BL5: =IF(EU5=10,"X",IF(AND(EU5=0,OR(BM12="1F",BM12="1,2F")),"F",IF(EU5=0,"G",IF(AND(EU5=8,BM12="1○"),"⑧",IF(AND(EU5=7,BM12="1○"),"⑦",IF(AND(EU5=6,BM12="1○"),"⑥",IF(AND(EU5=5,BM12="1○"),"⑤",IF(AND(EU5=4,BM12="1○"),"④",EU5)))))))) -> X | BQ5: =IF(AND(EU5<10,EU5+EV5=10),"/",IF(EU5=10,"",IF(OR(AND(EV5=0,BM12="2F"),AND(EV5=0,BM12="1,2F")),"F",IF(EV5=0,"-",EV5)))) ->  | BV5: =IF(EW5=10,"X",IF(AND(EW5=0,OR(BW12="1F",BW12="1,2F")),"F",IF(EW5=0,"G",IF(AND(EW5=8,BW12="1○"),"⑧",IF(AND(EW5=7,BW12="1○"),"⑦",IF(AND(EW5=6,BW12="1○"),"⑥",IF(AND(EW5=5,BW12="1○"),"⑤",IF(AND(EW5=4,BW12="1○"),"④",EW5)))))))) -> X | CA5: =IF(AND(EW5<10,EW5+EX5=10),"/",IF(EW5=10,"",IF(OR(AND(EX5=0,BW12="2F"),AND(EX5=0,BW12="1,2F")),"F",IF(EX5=0,"-",EX5)))) ->  | CF5: =IF(EY5=10,"X",IF(AND(EY5=0,OR(CG12="1F",CG12="1,2F")),"F",IF(EY5=0,"G",IF(AND(EY5=8,CG12="1○"),"⑧",IF(AND(EY5=7,CG12="1○"),"⑦",IF(AND(EY5=6,CG12="1○"),"⑥",IF(AND(EY5=5,CG12="1○"),"⑤",IF(AND(EY5=4,CG12="1○"),"④",EY5)))))))) -> X | CK5: =IF(AND(EY5<10,EY5+EZ5=10),"/",IF(EY5=10,"",IF(OR(AND(EZ5=0,CG12="2F"),AND(EZ5=0,CG12="1,2F")),"F",IF(EZ5=0,"-",EZ5)))) ->  | CP5: =IF(FA5=10,"X",IF(AND(FA5=0,OR(CQ12="1F",CQ12="1,2F")),"F",IF(FA5=0,"G",IF(AND(FA5=8,CQ12="1○"),"⑧",IF(AND(FA5=7,CQ12="1○"),"⑦",IF(AND(FA5=6,CQ12="1○"),"⑥",IF(AND(FA5=5,CQ12="1○"),"⑤",IF(AND(FA5=4,CQ12="1○"),"④",FA5)))))))) -> X | CU5: =IF(AND(FA5=10,FB5=10),"X",IF(AND(FA5<10,FA5+FB5=10),"/",IF(OR(AND(FA5=10,FB5=0,DA12="1F"),AND(FA5=10,FB5=0,DA12="1,2F")),"F",IF(AND(FA5=10,FB5=0),"G",IF(AND(FA5=10,FB5=8,DA12="1○"),"⑧",IF(AND(FA5=10,FB5=7,DA12="1○"),"⑦",IF(AND(FA5=10,FB5=6,DA12="1○"),"⑥",IF(AND(FA5=10,FB5=5,DA12="1○"),"⑤",IF(AND(FA5=10,FB5=4,DA12="1○"),"④",IF(AND(FA5=10,FB5<10),FB5,IF(OR(AND(FA5<10,FB5=0,CQ12="2F"),AND(FA5<10,FB5=0,CQ12="1,2F")),"F",IF(AND(FA5<10,FB5=0),"-",FB5)))))))))))) -> X | CZ5: =IF(FC5=10,"X",IF(OR(AND(FB5=10,FC5=8,DK12="1○"),AND(FA5+FB5=10,FC5=8,DA12="1○")),"⑧",IF(OR(AND(FB5=10,FC5=7,DK12="1○"),AND(FA5+FB5=10,FC5=7,DA12="1○")),"⑦",IF(OR(AND(FB5=10,FC5=6,DK12="1○"),AND(FA5+FB5=10,FC5=6,DA12="1○")),"⑥",IF(OR(AND(FB5=10,FC5=5,DK12="1○"),AND(FA5+FB5=10,FC5=5,DA12="1○")),"⑤",IF(OR(AND(FB5=10,FC5=4,DK12="1○"),AND(FA5+FB5=10,FC5=4,DA12="1○")),"④",IF(OR(AND(FB5=10,FC5=0,DK12="1F"),AND(FB5<10,FC5=0,DA12="2F"),AND(FB5<10,FC5=0,DA12="1,2F")),"F",IF(AND(FA5=10,FB5<10,FB5+FC5=10),"/",IF(AND(OR(FB5=10,AND(FA5+FB5=10,FA5<10)),FC5=0),"G",IF(AND(FA5=10,FB5<10,FC5=0),"-",IF(FA5+FB5<10,"",FC5))))))))))) -> X | DE5: ( | DG5: =EH9-EH10 -> 0 | DK5: , | DM5: =IF(FB6=0,(DG5+DS5)-EH11,(DG5+DS5+1)-EH11) -> 0 | DQ5: ) | DS5: =COUNTIF(EI6:FA6,">0") -> 0 | EF5: 2F | EG5: C | EI5: =COUNTIF(D7:M12,"・") -> 10 | EJ5: =COUNTIF(D7:M12,"○") -> 0 | EK5: =COUNTIF(N7:W12,"・") -> 10 | EL5: =COUNTIF(N7:W12,"○") -> 0 | EM5: =COUNTIF(X7:AG12,"・") -> 10 | EN5: =COUNTIF(X7:AG12,"○") -> 0 | EO5: =COUNTIF(AH7:AQ12,"・") -> 10 | EP5: =COUNTIF(AH7:AQ12,"○") -> 0 | EQ5: =COUNTIF(AR7:BA12,"・") -> 10 | ER5: =COUNTIF(AR7:BA12,"○") -> 0 | ES5: =COUNTIF(BB7:BK12,"・") -> 10 | ET5: =COUNTIF(BB7:BK12,"○") -> 0 | EU5: =COUNTIF(BL7:BU12,"・") -> 10 | EV5: =COUNTIF(BL7:BU12,"○") -> 0 | EW5: =COUNTIF(BV7:CE12,"・") -> 10 | EX5: =COUNTIF(BV7:CE12,"○") -> 0 | EY5: =COUNTIF(CF7:CO12,"・") -> 10 | EZ5: =COUNTIF(CF7:CO12,"○") -> 0 | FA5: =COUNTIF(CP7:CY12,"・") -> 10 | FB5: =IF(FA5=10,COUNTIF(CZ7:DI12,"・"),COUNTIF(CP7:CY12,"○")) -> 10 | FC5: =IF(AND(FA5=10,FB5=10),COUNTIF(DJ7:DS12,"・"),IF(AND(FA5=10,FB5<10),COUNTIF(CZ7:DI12,"○"),IF(AND(FA5<10,FA5+FB5=10),COUNTIF(CZ7:DI12,"・"),"0"))) -> 10
D6: =IF(AND(EI5=10,EK5=10),20+EM5,IF(AND(EI5=10,EK5<10),10+EK5+EL5,IF(AND(EI5<10,EI5+EJ5=10),10+EK5,EI5+EJ5))) -> 30 | N6: =IF(AND(EK5=10,EM5=10),D6+20+EO5,IF(AND(EK5=10,EM5<10),D6+10+EM5+EN5,IF(AND(EK5<10,EK5+EL5=10),D6+10+EM5,D6+EK5+EL5))) -> 60 | X6: =IF(AND(EM5=10,EO5=10),N6+20+EQ5,IF(AND(EM5=10,EO5<10),N6+10+EO5+EP5,IF(AND(EM5<10,EM5+EN5=10),N6+10+EO5,N6+EM5+EN5))) -> 90 | AH6: =IF(AND(EO5=10,EQ5=10),X6+20+ES5,IF(AND(EO5=10,EQ5<10),X6+10+EQ5+ER5,IF(AND(EO5<10,EO5+EP5=10),X6+10+EQ5,X6+EO5+EP5))) -> 120 | AR6: =IF(AND(EQ5=10,ES5=10),AH6+20+EU5,IF(AND(EQ5=10,ES5<10),AH6+10+ES5+ET5,IF(AND(EQ5<10,EQ5+ER5=10),AH6+10+ES5,AH6+EQ5+ER5))) -> 150 | BB6: =IF(AND(ES5=10,EU5=10),AR6+20+EW5,IF(AND(ES5=10,EU5<10),AR6+10+EU5+EV5,IF(AND(ES5<10,ES5+ET5=10),AR6+10+EU5,AR6+ES5+ET5))) -> 180 | BL6: =IF(AND(EU5=10,EW5=10),BB6+20+EY5,IF(AND(EU5=10,EW5<10),BB6+10+EW5+EX5,IF(AND(EU5<10,EU5+EV5=10),BB6+10+EW5,BB6+EU5+EV5))) -> 210 | BV6: =IF(AND(EW5=10,EY5=10),BL6+20+FA5,IF(AND(EW5=10,EY5<10),BL6+10+EY5+EZ5,IF(AND(EW5<10,EW5+EX5=10),BL6+10+EY5,BL6+EW5+EX5))) -> 240 | CF6: =IF(AND(EY5=10,FA5=10),BV6+20+FB5,IF(AND(EY5=10,FA5<10),BV6+10+FA5+FB5,IF(AND(EY5<10,EY5+EZ5=10),BV6+10+FA5,BV6+EY5+EZ5))) -> 270 | CP6: =CF6+FA5+FB5+FC5 -> 300 | DE6: 〈 | DG6: =COUNTIF(D12:DS12,"P")+COUNTIF(D12:DS12,"S")+COUNTIF(D12:DS12,"C") -> 0 | DK6: , | DM6: =COUNTIF(D12:DS12,"P") -> 0 | DQ6: , | DS6: =COUNTIF(EI8:FA8,"1") -> 10 | DW6: 〉 | DY6: =COUNTIF(D12:DS12,"H") -> 0 | EF6: 1,2F | EG6: H | EI6: =COUNTIF(D7:M12,"●") -> 0 | EK6: =COUNTIF(N7:W12,"●") -> 0 | EM6: =COUNTIF(X7:AG12,"●") -> 0 | EO6: =COUNTIF(AH7:AQ12,"●") -> 0 | EQ6: =COUNTIF(AR7:BA12,"●") -> 0 | ES6: =COUNTIF(BB7:BK12,"●") -> 0 | EU6: =COUNTIF(BL7:BU12,"●") -> 0 | EW6: =COUNTIF(BV7:CE12,"●") -> 0 | EY6: =COUNTIF(CF7:CO12,"●") -> 0 | FA6: =COUNTIF(CP7:CY12,"●") -> 0 | FB6: =COUNTIF(CZ7:DI12,"●") -> 0 | FC6: =COUNTIF(DJ7:DS12,"●") -> 0
E8: ・ | G8: ・ | I8: ・ | K8: ・ | O8: ・ | Q8: ・ | S8: ・ | U8: ・ | Y8: ・ | AA8: ・ | AC8: ・ | AE8: ・ | AI8: ・ | AK8: ・ | AM8: ・ | AO8: ・ | AS8: ・ | AU8: ・ | AW8: ・ | AY8: ・ | BC8: ・ | BE8: ・ | BG8: ・ | BI8: ・ | BM8: ・ | BO8: ・ | BQ8: ・ | BS8: ・ | BW8: ・ | BY8: ・ | CA8: ・ | CC8: ・ | CG8: ・ | CI8: ・ | CK8: ・ | CM8: ・ | CQ8: ・ | CS8: ・ | CU8: ・ | CW8: ・ | DA8: ・ | DC8: ・ | DE8: ・ | DG8: ・ | DK8: ・ | DM8: ・ | DO8: ・ | DQ8: ・ | EI8: =IF(AND(EI5=10,EK5=10),"1","0") -> 1 | EK8: =IF(AND(EK5=10,EM5=10),"1","0") -> 1 | EM8: =IF(AND(EM5=10,EO5=10),"1","0") -> 1 | EO8: =IF(AND(EO5=10,EQ5=10),"1","0") -> 1 | EQ8: =IF(AND(EQ5=10,ES5=10),"1","0") -> 1 | ES8: =IF(AND(ES5=10,EU5=10),"1","0") -> 1 | EU8: 1 | EW8: =IF(AND(EW5=10,EY5=10),"1","0") -> 1 | EY8: =IF(AND(EY5=10,FA5=10),"1","0") -> 1 | FA8: =IF(AND(FA5=10,FB5=10),"1","0") -> 1
F9: ・ | H9: ・ | J9: ・ | P9: ・ | R9: ・ | T9: ・ | Z9: ・ | AB9: ・ | AD9: ・ | AJ9: ・ | AL9: ・ | AN9: ・ | AT9: ・ | AV9: ・ | AX9: ・ | BD9: ・ | BF9: ・ | BH9: ・ | BN9: ・ | BP9: ・ | BR9: ・ | BX9: ・ | BZ9: ・ | CB9: ・ | CH9: ・ | CJ9: ・ | CL9: ・ | CR9: ・ | CT9: ・ | CV9: ・ | DB9: ・ | DD9: ・ | DF9: ・ | DL9: ・ | DN9: ・ | DP9: ・ | EH9: =COUNTIF(D5:DD5,"/") -> 0
G10: ・ | I10: ・ | Q10: ・ | S10: ・ | AA10: ・ | AC10: ・ | AK10: ・ | AM10: ・ | AU10: ・ | AW10: ・ | BE10: ・ | BG10: ・ | BO10: ・ | BQ10: ・ | BY10: ・ | CA10: ・ | CI10: ・ | CK10: ・ | CS10: ・ | CU10: ・ | DC10: ・ | DE10: ・ | DM10: ・ | DO10: ・ | EH10: =COUNTIF(EI10:FA10,"1") -> 0 | EI10: =IF(AND(E12="1○",I5="/"),"1","0") -> 0 | EK10: =IF(AND(O12="1○",S5="/"),"1","0") -> 0 | EM10: =IF(AND(Y12="1○",AC5="/"),"1","0") -> 0 | EO10: =IF(AND(AI12="1○",AM5="/"),"1","0") -> 0 | EQ10: =IF(AND(AS12="1○",AW5="/"),"1","0") -> 0 | ES10: =IF(AND(BC12="1○",BG5="/"),"1","0") -> 0 | EU10: =IF(AND(BM12="1○",BQ5="/"),"1","0") -> 0 | EW10: =IF(AND(BW12="1○",CA5="/"),"1","0") -> 0 | EY10: =IF(AND(CG12="1○",CK5="/"),"1","0") -> 0 | FA10: =IF(OR(AND(CQ12="1○",CU5="/"),AND(DA12="1○",CZ5="/")),"1","0") -> 0
H11: ・ | R11: ・ | AB11: ・ | AL11: ・ | AV11: ・ | BF11: ・ | BP11: ・ | BZ11: ・ | CJ11: ・ | CT11: ・ | DD11: ・ | DN11: ・ | EH11: =COUNTIF(EI11:FA11,"1") -> 0 | EI11: =IF(AND(E12="1○",EI5+EJ5<10),"1","0") -> 0 | EK11: =IF(AND(O12="1○",EK5+EL5<10),"1","0") -> 0 | EM11: =IF(AND(Y12="1○",EM5+EN5<10),"1","0") -> 0 | EO11: =IF(AND(AI12="1○",EO5+EP5<10),"1","0") -> 0 | EQ11: =IF(AND(AS12="1○",EQ5+ER5<10),"1","0") -> 0 | ES11: =IF(AND(BC12="1○",ES5+ET5<10),"1","0") -> 0 | EU11: =IF(AND(BM12="1○",EU5+EV5<10),"1","0") -> 0 | EW11: =IF(AND(BW12="1○",EW5+EX5<10),"1","0") -> 0 | EY11: =IF(AND(CG12="1○",EY5+EZ5<10),"1","0") -> 0 | FA11: =IF(OR(AND(CQ12="1○",FA5+FB5<10),AND(DA12="1○",FB5+FC5<10)),"1","0") -> 0
C14: Player 2 | D14: 1 | N14: 2 | X14: 3 | AH14: 4 | AR14: 5 | BB14: 6 | BL14: 7 | BV14: 8 | CF14: 9 | CP14: 10 | EI14: 1 | EK14: 2 | EM14: 3 | EO14: 4 | EQ14: 5 | ES14: 6 | EU14: 7 | EW14: 8 | EY14: 9 | FA14: 10
D15: =IF(EI15=10,"X",IF(AND(EI15=0,OR(E22="1F",E22="1,2F")),"F",IF(EI15=0,"G",IF(AND(EI15=8,E22="1○"),"⑧",IF(AND(EI15=7,E22="1○"),"⑦",IF(AND(EI15=6,E22="1○"),"⑥",IF(AND(EI15=5,E22="1○"),"⑤",IF(AND(EI15=4,E22="1○"),"④",EI15)))))))) -> X | I15: =IF(AND(EI15<10,EI15+EJ15=10),"/",IF(EI15=10,"",IF(OR(AND(EJ15=0,E22="2F"),AND(EJ15=0,E22="1,2F")),"F",IF(EJ15=0,"-",EJ15)))) ->  | N15: =IF(EK15=10,"X",IF(AND(EK15=0,OR(O22="1F",O22="1,2F")),"F",IF(EK15=0,"G",IF(AND(EK15=8,O22="1○"),"⑧",IF(AND(EK15=7,O22="1○"),"⑦",IF(AND(EK15=6,O22="1○"),"⑥",IF(AND(EK15=5,O22="1○"),"⑤",IF(AND(EK15=4,O22="1○"),"④",EK15)))))))) -> X | S15: =IF(AND(EK15<10,EK15+EL15=10),"/",IF(EK15=10,"",IF(OR(AND(EL15=0,O22="2F"),AND(EL15=0,O22="1,2F")),"F",IF(EL15=0,"-",EL15)))) ->  | X15: =IF(EM15=10,"X",IF(AND(EM15=0,OR(Y22="1F",Y22="1,2F")),"F",IF(EM15=0,"G",IF(AND(EM15=8,Y22="1○"),"⑧",IF(AND(EM15=7,Y22="1○"),"⑦",IF(AND(EM15=6,Y22="1○"),"⑥",IF(AND(EM15=5,Y22="1○"),"⑤",IF(AND(EM15=4,Y22="1○"),"④",EM15)))))))) -> X | AC15: =IF(AND(EM15<10,EM15+EN15=10),"/",IF(EM15=10,"",IF(OR(AND(EN15=0,Y22="2F"),AND(EN15=0,Y22="1,2F")),"F",IF(EN15=0,"-",EN15)))) ->  | AH15: =IF(EO15=10,"X",IF(AND(EO15=0,OR(AI22="1F",AI22="1,2F")),"F",IF(EO15=0,"G",IF(AND(EO15=8,AI22="1○"),"⑧",IF(AND(EO15=7,AI22="1○"),"⑦",IF(AND(EO15=6,AI22="1○"),"⑥",IF(AND(EO15=5,AI22="1○"),"⑤",IF(AND(EO15=4,AI22="1○"),"④",EO15)))))))) -> X | AM15: =IF(AND(EO15<10,EO15+EP15=10),"/",IF(EO15=10,"",IF(OR(AND(EP15=0,AI22="2F"),AND(EP15=0,AI22="1,2F")),"F",IF(EP15=0,"-",EP15)))) ->  | AR15: =IF(EQ15=10,"X",IF(AND(EQ15=0,OR(AS22="1F",AS22="1,2F")),"F",IF(EQ15=0,"G",IF(AND(EQ15=8,AS22="1○"),"⑧",IF(AND(EQ15=7,AS22="1○"),"⑦",IF(AND(EQ15=6,AS22="1○"),"⑥",IF(AND(EQ15=5,AS22="1○"),"⑤",IF(AND(EQ15=4,AS22="1○"),"④",EQ15)))))))) -> X | AW15: =IF(AND(EQ15<10,EQ15+ER15=10),"/",IF(EQ15=10,"",IF(OR(AND(ER15=0,AS22="2F"),AND(ER15=0,AS22="1,2F")),"F",IF(ER15=0,"-",ER15)))) ->  | BB15: =IF(ES15=10,"X",IF(AND(ES15=0,OR(BC22="1F",BC22="1,2F")),"F",IF(ES15=0,"G",IF(AND(ES15=8,BC22="1○"),"⑧",IF(AND(ES15=7,BC22="1○"),"⑦",IF(AND(ES15=6,BC22="1○"),"⑥",IF(AND(ES15=5,BC22="1○"),"⑤",IF(AND(ES15=4,BC22="1○"),"④",ES15)))))))) -> X | BG15: =IF(AND(ES15<10,ES15+ET15=10),"/",IF(ES15=10,"",IF(OR(AND(ET15=0,BC22="2F"),AND(ET15=0,BC22="1,2F")),"F",IF(ET15=0,"-",ET15)))) ->  | BL15: =IF(EU15=10,"X",IF(AND(EU15=0,OR(BM22="1F",BM22="1,2F")),"F",IF(EU15=0,"G",IF(AND(EU15=8,BM22="1○"),"⑧",IF(AND(EU15=7,BM22="1○"),"⑦",IF(AND(EU15=6,BM22="1○"),"⑥",IF(AND(EU15=5,BM22="1○"),"⑤",IF(AND(EU15=4,BM22="1○"),"④",EU15)))))))) -> X | BQ15: =IF(AND(EU15<10,EU15+EV15=10),"/",IF(EU15=10,"",IF(OR(AND(EV15=0,BM22="2F"),AND(EV15=0,BM22="1,2F")),"F",IF(EV15=0,"-",EV15)))) ->  | BV15: =IF(EW15=10,"X",IF(AND(EW15=0,OR(BW22="1F",BW22="1,2F")),"F",IF(EW15=0,"G",IF(AND(EW15=8,BW22="1○"),"⑧",IF(AND(EW15=7,BW22="1○"),"⑦",IF(AND(EW15=6,BW22="1○"),"⑥",IF(AND(EW15=5,BW22="1○"),"⑤",IF(AND(EW15=4,BW22="1○"),"④",EW15)))))))) -> X | CA15: =IF(AND(EW15<10,EW15+EX15=10),"/",IF(EW15=10,"",IF(OR(AND(EX15=0,BW22="2F"),AND(EX15=0,BW22="1,2F")),"F",IF(EX15=0,"-",EX15)))) ->  | CF15: =IF(EY15=10,"X",IF(AND(EY15=0,OR(CG22="1F",CG22="1,2F")),"F",IF(EY15=0,"G",IF(AND(EY15=8,CG22="1○"),"⑧",IF(AND(EY15=7,CG22="1○"),"⑦",IF(AND(EY15=6,CG22="1○"),"⑥",IF(AND(EY15=5,CG22="1○"),"⑤",IF(AND(EY15=4,CG22="1○"),"④",EY15)))))))) -> X | CK15: =IF(AND(EY15<10,EY15+EZ15=10),"/",IF(EY15=10,"",IF(OR(AND(EZ15=0,CG22="2F"),AND(EZ15=0,CG22="1,2F")),"F",IF(EZ15=0,"-",EZ15)))) ->  | CP15: =IF(FA15=10,"X",IF(AND(FA15=0,OR(CQ22="1F",CQ22="1,2F")),"F",IF(FA15=0,"G",IF(AND(FA15=8,CQ22="1○"),"⑧",IF(AND(FA15=7,CQ22="1○"),"⑦",IF(AND(FA15=6,CQ22="1○"),"⑥",IF(AND(FA15=5,CQ22="1○"),"⑤",IF(AND(FA15=4,CQ22="1○"),"④",FA15)))))))) -> X | CU15: =IF(AND(FA15=10,FB15=10),"X",IF(AND(FA15<10,FA15+FB15=10),"/",IF(OR(AND(FA15=10,FB15=0,DA22="1F"),AND(FA15=10,FB15=0,DA22="1,2F")),"F",IF(AND(FA15=10,FB15=0),"G",IF(AND(FA15=10,FB15=8,DA22="1○"),"⑧",IF(AND(FA15=10,FB15=7,DA22="1○"),"⑦",IF(AND(FA15=10,FB15=6,DA22="1○"),"⑥",IF(AND(FA15=10,FB15=5,DA22="1○"),"⑤",IF(AND(FA15=10,FB15=4,DA22="1○"),"④",IF(AND(FA15=10,FB15<10),FB15,IF(OR(AND(FA15<10,FB15=0,CQ22="2F"),AND(FA15<10,FB15=0,CQ22="1,2F")),"F",IF(AND(FA15<10,FB15=0),"-",FB15)))))))))))) -> X | CZ15: =IF(FC15=10,"X",IF(OR(AND(FB15=10,FC15=8,DK22="1○"),AND(FA15+FB15=10,FC15=8,DA22="1○")),"⑧",IF(OR(AND(FB15=10,FC15=7,DK22="1○"),AND(FA15+FB15=10,FC15=7,DA22="1○")),"⑦",IF(OR(AND(FB15=10,FC15=6,DK22="1○"),AND(FA15+FB15=10,FC15=6,DA22="1○")),"⑥",IF(OR(AND(FB15=10,FC15=5,DK22="1○"),AND(FA15+FB15=10,FC15=5,DA22="1○")),"⑤",IF(OR(AND(FB15=10,FC15=4,DK22="1○"),AND(FA15+FB15=10,FC15=4,DA22="1○")),"④",IF(OR(AND(FB15=10,FC15=0,DK22="1F"),AND(FB15<10,FC15=0,DA22="2F"),AND(FB15<10,FC15=0,DA22="1,2F")),"F",IF(AND(FA15=10,FB15<10,FB15+FC15=10),"/",IF(AND(OR(FB15=10,AND(FA15+FB15=10,FA15<10)),FC15=0),"G",IF(AND(FA15=10,FB15<10,FC15=0),"-",IF(FA15+FB15<10,"",FC15))))))))))) -> X | DE15: ( | DG15: =EH19-EH20 -> 0 | DK15: , | DM15: =IF(FB16=0,(DG15+DS15)-EH21,(DG15+DS15+1)-EH21) -> 0 | DQ15: ) | DS15: =COUNTIF(EI16:FA16,">0") -> 0 | EI15: =COUNTIF(D17:M22,"・") -> 10 | EJ15: =COUNTIF(D17:M22,"○") -> 0 | EK15: =COUNTIF(N17:W22,"・") -> 10 | EL15: =COUNTIF(N17:W22,"○") -> 0 | EM15: =COUNTIF(X17:AG22,"・") -> 10 | EN15: =COUNTIF(X17:AG22,"○") -> 0 | EO15: =COUNTIF(AH17:AQ22,"・") -> 10 | EP15: =COUNTIF(AH17:AQ22,"○") -> 0 | EQ15: =COUNTIF(AR17:BA22,"・") -> 10 | ER15: =COUNTIF(AR17:BA22,"○") -> 0 | ES15: =COUNTIF(BB17:BK22,"・") -> 10 | ET15: =COUNTIF(BB17:BK22,"○") -> 0 | EU15: =COUNTIF(BL17:BU22,"・") -> 10 | EV15: =COUNTIF(BL17:BU22,"○") -> 0 | EW15: =COUNTIF(BV17:CE22,"・") -> 10 | EX15: =COUNTIF(BV17:CE22,"○") -> 0 | EY15: =COUNTIF(CF17:CO22,"・") -> 10 | EZ15: =COUNTIF(CF17:CO22,"○") -> 0 | FA15: =COUNTIF(CP17:CY22,"・") -> 10 | FB15: =IF(FA15=10,COUNTIF(CZ17:DI22,"・"),COUNTIF(CP17:CY22,"○")) -> 10 | FC15: =IF(AND(FA15=10,FB15=10),COUNTIF(DJ17:DS22,"・"),IF(AND(FA15=10,FB15<10),COUNTIF(CZ17:DI22,"○"),IF(AND(FA15<10,FA15+FB15=10),COUNTIF(CZ17:DI22,"・"),"0"))) -> 10
D16: =IF(AND(EI15=10,EK15=10),20+EM15,IF(AND(EI15=10,EK15<10),10+EK15+EL15,IF(AND(EI15<10,EI15+EJ15=10),10+EK15,EI15+EJ15))) -> 30 | N16: =IF(AND(EK15=10,EM15=10),D16+20+EO15,IF(AND(EK15=10,EM15<10),D16+10+EM15+EN15,IF(AND(EK15<10,EK15+EL15=10),D16+10+EM15,D16+EK15+EL15))) -> 60 | X16: =IF(AND(EM15=10,EO15=10),N16+20+EQ15,IF(AND(EM15=10,EO15<10),N16+10+EO15+EP15,IF(AND(EM15<10,EM15+EN15=10),N16+10+EO15,N16+EM15+EN15))) -> 90 | AH16: =IF(AND(EO15=10,EQ15=10),X16+20+ES15,IF(AND(EO15=10,EQ15<10),X16+10+EQ15+ER15,IF(AND(EO15<10,EO15+EP15=10),X16+10+EQ15,X16+EO15+EP15))) -> 120 | AR16: =IF(AND(EQ15=10,ES15=10),AH16+20+EU15,IF(AND(EQ15=10,ES15<10),AH16+10+ES15+ET15,IF(AND(EQ15<10,EQ15+ER15=10),AH16+10+ES15,AH16+EQ15+ER15))) -> 150 | BB16: =IF(AND(ES15=10,EU15=10),AR16+20+EW15,IF(AND(ES15=10,EU15<10),AR16+10+EU15+EV15,IF(AND(ES15<10,ES15+ET15=10),AR16+10+EU15,AR16+ES15+ET15))) -> 180 | BL16: =IF(AND(EU15=10,EW15=10),BB16+20+EY15,IF(AND(EU15=10,EW15<10),BB16+10+EW15+EX15,IF(AND(EU15<10,EU15+EV15=10),BB16+10+EW15,BB16+EU15+EV15))) -> 210 | BV16: =IF(AND(EW15=10,EY15=10),BL16+20+FA15,IF(AND(EW15=10,EY15<10),BL16+10+EY15+EZ15,IF(AND(EW15<10,EW15+EX15=10),BL16+10+EY15,BL16+EW15+EX15))) -> 240 | CF16: =IF(AND(EY15=10,FA15=10),BV16+20+FB15,IF(AND(EY15=10,FA15<10),BV16+10+FA15+FB15,IF(AND(EY15<10,EY15+EZ15=10),BV16+10+FA15,BV16+EY15+EZ15))) -> 270 | CP16: =CF16+FA15+FB15+FC15 -> 300 | DE16: 〈 | DG16: =COUNTIF(D22:DS22,"P")+COUNTIF(D22:DS22,"S")+COUNTIF(D22:DS22,"C") -> 0 | DK16: , | DM16: =COUNTIF(D22:DS22,"P") -> 0 | DQ16: , | DS16: =COUNTIF(EI18:FA18,"1") -> 10 | DW16: 〉 | DY16: =COUNTIF(D22:DS22,"H") -> 0 | EI16: =COUNTIF(D17:M22,"●") -> 0 | EK16: =COUNTIF(N17:W22,"●") -> 0 | EM16: =COUNTIF(X17:AG22,"●") -> 0 | EO16: =COUNTIF(AH17:AQ22,"●") -> 0 | EQ16: =COUNTIF(AR17:BA22,"●") -> 0 | ES16: =COUNTIF(BB17:BK22,"●") -> 0 | EU16: =COUNTIF(BL17:BU22,"●") -> 0 | EW16: =COUNTIF(BV17:CE22,"●") -> 0 | EY16: =COUNTIF(CF17:CO22,"●") -> 0 | FA16: =COUNTIF(CP17:CY22,"●") -> 0 | FB16: =COUNTIF(CZ17:DI22,"●") -> 0 | FC16: =COUNTIF(DJ17:DS22,"●") -> 0
E18: ・ | G18: ・ | I18: ・ | K18: ・ | O18: ・ | Q18: ・ | S18: ・ | U18: ・ | Y18: ・ | AA18: ・ | AC18: ・ | AE18: ・ | AI18: ・ | AK18: ・ | AM18: ・ | AO18: ・ | AS18: ・ | AU18: ・ | AW18: ・ | AY18: ・ | BC18: ・ | BE18: ・ | BG18: ・ | BI18: ・ | BM18: ・ | BO18: ・ | BQ18: ・ | BS18: ・ | BW18: ・ | BY18: ・ | CA18: ・ | CC18: ・ | CG18: ・ | CI18: ・ | CK18: ・ | CM18: ・ | CQ18: ・ | CS18: ・ | CU18: ・ | CW18: ・ | DA18: ・ | DC18: ・ | DE18: ・ | DG18: ・ | DK18: ・ | DM18: ・ | DO18: ・ | DQ18: ・ | EI18: =IF(AND(EI15=10,EK15=10),"1","0") -> 1 | EK18: =IF(AND(EK15=10,EM15=10),"1","0") -> 1 | EM18: 1 | EO18: 1 | EQ18: 1 | ES18: 1 | EU18: 1 | EW18: 1 | EY18: =IF(AND(EY15=10,FA15=10),"1","0") -> 1 | FA18: =IF(AND(FA15=10,FB15=10),"1","0") -> 1
F19: ・ | H19: ・ | J19: ・ | P19: ・ | R19: ・ | T19: ・ | Z19: ・ | AB19: ・ | AD19: ・ | AJ19: ・ | AL19: ・ | AN19: ・ | AT19: ・ | AV19: ・ | AX19: ・ | BD19: ・ | BF19: ・ | BH19: ・ | BN19: ・ | BP19: ・ | BR19: ・ | BX19: ・ | BZ19: ・ | CB19: ・ | CH19: ・ | CJ19: ・ | CL19: ・ | CR19: ・ | CT19: ・ | CV19: ・ | DB19: ・ | DD19: ・ | DF19: ・ | DL19: ・ | DN19: ・ | DP19: ・ | EH19: =COUNTIF(D15:DD15,"/") -> 0
G20: ・ | I20: ・ | Q20: ・ | S20: ・ | AA20: ・ | AC20: ・ | AK20: ・ | AM20: ・ | AU20: ・ | AW20: ・ | BE20: ・ | BG20: ・ | BO20: ・ | BQ20: ・ | BY20: ・ | CA20: ・ | CI20: ・ | CK20: ・ | CS20: ・ | CU20: ・ | DC20: ・ | DE20: ・ | DM20: ・ | DO20: ・ | EH20: =COUNTIF(EI20:FA20,"1") -> 0 | EI20: =IF(AND(E22="1○",I15="/"),"1","0") -> 0 | EK20: =IF(AND(O22="1○",S15="/"),"1","0") -> 0 | EM20: =IF(AND(Y22="1○",AC15="/"),"1","0") -> 0 | EO20: =IF(AND(AI22="1○",AM15="/"),"1","0") -> 0 | EQ20: =IF(AND(AS22="1○",AW15="/"),"1","0") -> 0 | ES20: =IF(AND(BC22="1○",BG15="/"),"1","0") -> 0 | EU20: =IF(AND(BM22="1○",BQ15="/"),"1","0") -> 0 | EW20: =IF(AND(BW22="1○",CA15="/"),"1","0") -> 0 | EY20: =IF(AND(CG22="1○",CK15="/"),"1","0") -> 0 | FA20: =IF(OR(AND(CQ22="1○",CU15="/"),AND(DA22="1○",CZ15="/")),"1","0") -> 0
H21: ・ | R21: ・ | AB21: ・ | AL21: ・ | AV21: ・ | BF21: ・ | BP21: ・ | BZ21: ・ | CJ21: ・ | CT21: ・ | DD21: ・ | DN21: ・ | EH21: =COUNTIF(EI21:FA21,"1") -> 0 | EI21: =IF(AND(E22="1○",EI15+EJ15<10),"1","0") -> 0 | EK21: =IF(AND(O22="1○",EK15+EL15<10),"1","0") -> 0 | EM21: =IF(AND(Y22="1○",EM15+EN15<10),"1","0") -> 0 | EO21: =IF(AND(AI22="1○",EO15+EP15<10),"1","0") -> 0 | EQ21: =IF(AND(AS22="1○",EQ15+ER15<10),"1","0") -> 0 | ES21: =IF(AND(BC22="1○",ES15+ET15<10),"1","0") -> 0 | EU21: =IF(AND(BM22="1○",EU15+EV15<10),"1","0") -> 0 | EW21: =IF(AND(BW22="1○",EW15+EX15<10),"1","0") -> 0 | EY21: =IF(AND(CG22="1○",EY15+EZ15<10),"1","0") -> 0 | FA21: =IF(OR(AND(CQ22="1○",FA15+FB15<10),AND(DA22="1○",FB15+FC15<10)),"1","0") -> 0
C24: Player 3 | D24: 1 | N24: 2 | X24: 3 | AH24: 4 | AR24: 5 | BB24: 6 | BL24: 7 | BV24: 8 | CF24: 9 | CP24: 10 | EI24: 1 | EK24: 2 | EM24: 3 | EO24: 4 | EQ24: 5 | ES24: 6 | EU24: 7 | EW24: 8 | EY24: 9 | FA24: 10
D25: =IF(EI25=10,"X",IF(AND(EI25=0,OR(E32="1F",E32="1,2F")),"F",IF(EI25=0,"G",IF(AND(EI25=8,E32="1○"),"⑧",IF(AND(EI25=7,E32="1○"),"⑦",IF(AND(EI25=6,E32="1○"),"⑥",IF(AND(EI25=5,E32="1○"),"⑤",IF(AND(EI25=4,E32="1○"),"④",EI25)))))))) -> X | I25: =IF(AND(EI25<10,EI25+EJ25=10),"/",IF(EI25=10,"",IF(OR(AND(EJ25=0,E32="2F"),AND(EJ25=0,E32="1,2F")),"F",IF(EJ25=0,"-",EJ25)))) ->  | N25: =IF(EK25=10,"X",IF(AND(EK25=0,OR(O32="1F",O32="1,2F")),"F",IF(EK25=0,"G",IF(AND(EK25=8,O32="1○"),"⑧",IF(AND(EK25=7,O32="1○"),"⑦",IF(AND(EK25=6,O32="1○"),"⑥",IF(AND(EK25=5,O32="1○"),"⑤",IF(AND(EK25=4,O32="1○"),"④",EK25)))))))) -> X | S25: =IF(AND(EK25<10,EK25+EL25=10),"/",IF(EK25=10,"",IF(OR(AND(EL25=0,O32="2F"),AND(EL25=0,O32="1,2F")),"F",IF(EL25=0,"-",EL25)))) ->  | X25: =IF(EM25=10,"X",IF(AND(EM25=0,OR(Y32="1F",Y32="1,2F")),"F",IF(EM25=0,"G",IF(AND(EM25=8,Y32="1○"),"⑧",IF(AND(EM25=7,Y32="1○"),"⑦",IF(AND(EM25=6,Y32="1○"),"⑥",IF(AND(EM25=5,Y32="1○"),"⑤",IF(AND(EM25=4,Y32="1○"),"④",EM25)))))))) -> X | AC25: =IF(AND(EM25<10,EM25+EN25=10),"/",IF(EM25=10,"",IF(OR(AND(EN25=0,Y32="2F"),AND(EN25=0,Y32="1,2F")),"F",IF(EN25=0,"-",EN25)))) ->  | AH25: =IF(EO25=10,"X",IF(AND(EO25=0,OR(AI32="1F",AI32="1,2F")),"F",IF(EO25=0,"G",IF(AND(EO25=8,AI32="1○"),"⑧",IF(AND(EO25=7,AI32="1○"),"⑦",IF(AND(EO25=6,AI32="1○"),"⑥",IF(AND(EO25=5,AI32="1○"),"⑤",IF(AND(EO25=4,AI32="1○"),"④",EO25)))))))) -> X | AM25: =IF(AND(EO25<10,EO25+EP25=10),"/",IF(EO25=10,"",IF(OR(AND(EP25=0,AI32="2F"),AND(EP25=0,AI32="1,2F")),"F",IF(EP25=0,"-",EP25)))) ->  | AR25: =IF(EQ25=10,"X",IF(AND(EQ25=0,OR(AS32="1F",AS32="1,2F")),"F",IF(EQ25=0,"G",IF(AND(EQ25=8,AS32="1○"),"⑧",IF(AND(EQ25=7,AS32="1○"),"⑦",IF(AND(EQ25=6,AS32="1○"),"⑥",IF(AND(EQ25=5,AS32="1○"),"⑤",IF(AND(EQ25=4,AS32="1○"),"④",EQ25)))))))) -> X | AW25: =IF(AND(EQ25<10,EQ25+ER25=10),"/",IF(EQ25=10,"",IF(OR(AND(ER25=0,AS32="2F"),AND(ER25=0,AS32="1,2F")),"F",IF(ER25=0,"-",ER25)))) ->  | BB25: =IF(ES25=10,"X",IF(AND(ES25=0,OR(BC32="1F",BC32="1,2F")),"F",IF(ES25=0,"G",IF(AND(ES25=8,BC32="1○"),"⑧",IF(AND(ES25=7,BC32="1○"),"⑦",IF(AND(ES25=6,BC32="1○"),"⑥",IF(AND(ES25=5,BC32="1○"),"⑤",IF(AND(ES25=4,BC32="1○"),"④",ES25)))))))) -> X | BG25: =IF(AND(ES25<10,ES25+ET25=10),"/",IF(ES25=10,"",IF(OR(AND(ET25=0,BC32="2F"),AND(ET25=0,BC32="1,2F")),"F",IF(ET25=0,"-",ET25)))) ->  | BL25: =IF(EU25=10,"X",IF(AND(EU25=0,OR(BM32="1F",BM32="1,2F")),"F",IF(EU25=0,"G",IF(AND(EU25=8,BM32="1○"),"⑧",IF(AND(EU25=7,BM32="1○"),"⑦",IF(AND(EU25=6,BM32="1○"),"⑥",IF(AND(EU25=5,BM32="1○"),"⑤",IF(AND(EU25=4,BM32="1○"),"④",EU25)))))))) -> X | BQ25: =IF(AND(EU25<10,EU25+EV25=10),"/",IF(EU25=10,"",IF(OR(AND(EV25=0,BM32="2F"),AND(EV25=0,BM32="1,2F")),"F",IF(EV25=0,"-",EV25)))) ->  | BV25: =IF(EW25=10,"X",IF(AND(EW25=0,OR(BW32="1F",BW32="1,2F")),"F",IF(EW25=0,"G",IF(AND(EW25=8,BW32="1○"),"⑧",IF(AND(EW25=7,BW32="1○"),"⑦",IF(AND(EW25=6,BW32="1○"),"⑥",IF(AND(EW25=5,BW32="1○"),"⑤",IF(AND(EW25=4,BW32="1○"),"④",EW25)))))))) -> X | CA25: =IF(AND(EW25<10,EW25+EX25=10),"/",IF(EW25=10,"",IF(OR(AND(EX25=0,BW32="2F"),AND(EX25=0,BW32="1,2F")),"F",IF(EX25=0,"-",EX25)))) ->  | CF25: =IF(EY25=10,"X",IF(AND(EY25=0,OR(CG32="1F",CG32="1,2F")),"F",IF(EY25=0,"G",IF(AND(EY25=8,CG32="1○"),"⑧",IF(AND(EY25=7,CG32="1○"),"⑦",IF(AND(EY25=6,CG32="1○"),"⑥",IF(AND(EY25=5,CG32="1○"),"⑤",IF(AND(EY25=4,CG32="1○"),"④",EY25)))))))) -> X | CK25: =IF(AND(EY25<10,EY25+EZ25=10),"/",IF(EY25=10,"",IF(OR(AND(EZ25=0,CG32="2F"),AND(EZ25=0,CG32="1,2F")),"F",IF(EZ25=0,"-",EZ25)))) ->  | CP25: =IF(FA25=10,"X",IF(AND(FA25=0,OR(CQ32="1F",CQ32="1,2F")),"F",IF(FA25=0,"G",IF(AND(FA25=8,CQ32="1○"),"⑧",IF(AND(FA25=7,CQ32="1○"),"⑦",IF(AND(FA25=6,CQ32="1○"),"⑥",IF(AND(FA25=5,CQ32="1○"),"⑤",IF(AND(FA25=4,CQ32="1○"),"④",FA25)))))))) -> X | CU25: =IF(AND(FA25=10,FB25=10),"X",IF(AND(FA25<10,FA25+FB25=10),"/",IF(OR(AND(FA25=10,FB25=0,DA32="1F"),AND(FA25=10,FB25=0,DA32="1,2F")),"F",IF(AND(FA25=10,FB25=0),"G",IF(AND(FA25=10,FB25=8,DA32="1○"),"⑧",IF(AND(FA25=10,FB25=7,DA32="1○"),"⑦",IF(AND(FA25=10,FB25=6,DA32="1○"),"⑥",IF(AND(FA25=10,FB25=5,DA32="1○"),"⑤",IF(AND(FA25=10,FB25=4,DA32="1○"),"④",IF(AND(FA25=10,FB25<10),FB25,IF(OR(AND(FA25<10,FB25=0,CQ32="2F"),AND(FA25<10,FB25=0,CQ32="1,2F")),"F",IF(AND(FA25<10,FB25=0),"-",FB25)))))))))))) -> X | CZ25: =IF(FC25=10,"X",IF(OR(AND(FB25=10,FC25=8,DK32="1○"),AND(FA25+FB25=10,FC25=8,DA32="1○")),"⑧",IF(OR(AND(FB25=10,FC25=7,DK32="1○"),AND(FA25+FB25=10,FC25=7,DA32="1○")),"⑦",IF(OR(AND(FB25=10,FC25=6,DK32="1○"),AND(FA25+FB25=10,FC25=6,DA32="1○")),"⑥",IF(OR(AND(FB25=10,FC25=5,DK32="1○"),AND(FA25+FB25=10,FC25=5,DA32="1○")),"⑤",IF(OR(AND(FB25=10,FC25=4,DK32="1○"),AND(FA25+FB25=10,FC25=4,DA32="1○")),"④",IF(OR(AND(FB25=10,FC25=0,DK32="1F"),AND(FB25<10,FC25=0,DA32="2F"),AND(FB25<10,FC25=0,DA32="1,2F")),"F",IF(AND(FA25=10,FB25<10,FB25+FC25=10),"/",IF(AND(OR(FB25=10,AND(FA25+FB25=10,FA25<10)),FC25=0),"G",IF(AND(FA25=10,FB25<10,FC25=0),"-",IF(FA25+FB25<10,"",FC25))))))))))) -> X | DE25: ( | DG25: =EH29-EH30 -> 0 | DK25: , | DM25: =IF(FB26=0,(DG25+DS25)-EH31,(DG25+DS25+1)-EH31) -> 0 | DQ25: ) | DS25: =COUNTIF(EI26:FA26,">0") -> 0 | EI25: =COUNTIF(D27:M32,"・") -> 10 | EJ25: =COUNTIF(D27:M32,"○") -> 0 | EK25: =COUNTIF(N27:W32,"・") -> 10 | EL25: =COUNTIF(N27:W32,"○") -> 0 | EM25: =COUNTIF(X27:AG32,"・") -> 10 | EN25: =COUNTIF(X27:AG32,"○") -> 0 | EO25: =COUNTIF(AH27:AQ32,"・") -> 10 | EP25: =COUNTIF(AH27:AQ32,"○") -> 0 | EQ25: =COUNTIF(AR27:BA32,"・") -> 10 | ER25: =COUNTIF(AR27:BA32,"○") -> 0 | ES25: =COUNTIF(BB27:BK32,"・") -> 10 | ET25: =COUNTIF(BB27:BK32,"○") -> 0 | EU25: =COUNTIF(BL27:BU32,"・") -> 10 | EV25: =COUNTIF(BL27:BU32,"○") -> 0 | EW25: =COUNTIF(BV27:CE32,"・") -> 10 | EX25: =COUNTIF(BV27:CE32,"○") -> 0 | EY25: =COUNTIF(CF27:CO32,"・") -> 10 | EZ25: =COUNTIF(CF27:CO32,"○") -> 0 | FA25: =COUNTIF(CP27:CY32,"・") -> 10 | FB25: =IF(FA25=10,COUNTIF(CZ27:DI32,"・"),COUNTIF(CP27:CY32,"○")) -> 10 | FC25: =IF(AND(FA25=10,FB25=10),COUNTIF(DJ27:DS32,"・"),IF(AND(FA25=10,FB25<10),COUNTIF(CZ27:DI32,"○"),IF(AND(FA25<10,FA25+FB25=10),COUNTIF(CZ27:DI32,"・"),"0"))) -> 10
D26: =IF(AND(EI25=10,EK25=10),20+EM25,IF(AND(EI25=10,EK25<10),10+EK25+EL25,IF(AND(EI25<10,EI25+EJ25=10),10+EK25,EI25+EJ25))) -> 30 | N26: =IF(AND(EK25=10,EM25=10),D26+20+EO25,IF(AND(EK25=10,EM25<10),D26+10+EM25+EN25,IF(AND(EK25<10,EK25+EL25=10),D26+10+EM25,D26+EK25+EL25))) -> 60 | X26: =IF(AND(EM25=10,EO25=10),N26+20+EQ25,IF(AND(EM25=10,EO25<10),N26+10+EO25+EP25,IF(AND(EM25<10,EM25+EN25=10),N26+10+EO25,N26+EM25+EN25))) -> 90 | AH26: =IF(AND(EO25=10,EQ25=10),X26+20+ES25,IF(AND(EO25=10,EQ25<10),X26+10+EQ25+ER25,IF(AND(EO25<10,EO25+EP25=10),X26+10+EQ25,X26+EO25+EP25))) -> 120 | AR26: =IF(AND(EQ25=10,ES25=10),AH26+20+EU25,IF(AND(EQ25=10,ES25<10),AH26+10+ES25+ET25,IF(AND(EQ25<10,EQ25+ER25=10),AH26+10+ES25,AH26+EQ25+ER25))) -> 150 | BB26: =IF(AND(ES25=10,EU25=10),AR26+20+EW25,IF(AND(ES25=10,EU25<10),AR26+10+EU25+EV25,IF(AND(ES25<10,ES25+ET25=10),AR26+10+EU25,AR26+ES25+ET25))) -> 180 | BL26: =IF(AND(EU25=10,EW25=10),BB26+20+EY25,IF(AND(EU25=10,EW25<10),BB26+10+EW25+EX25,IF(AND(EU25<10,EU25+EV25=10),BB26+10+EW25,BB26+EU25+EV25))) -> 210 | BV26: =IF(AND(EW25=10,EY25=10),BL26+20+FA25,IF(AND(EW25=10,EY25<10),BL26+10+EY25+EZ25,IF(AND(EW25<10,EW25+EX25=10),BL26+10+EY25,BL26+EW25+EX25))) -> 240 | CF26: =IF(AND(EY25=10,FA25=10),BV26+20+FB25,IF(AND(EY25=10,FA25<10),BV26+10+FA25+FB25,IF(AND(EY25<10,EY25+EZ25=10),BV26+10+FA25,BV26+EY25+EZ25))) -> 270 | CP26: =CF26+FA25+FB25+FC25 -> 300 | DE26: 〈 | DG26: =COUNTIF(D32:DS32,"P")+COUNTIF(D32:DS32,"S")+COUNTIF(D32:DS32,"C") -> 0 | DK26: , | DM26: =COUNTIF(D32:DS32,"P") -> 0 | DQ26: , | DS26: =COUNTIF(EI28:FA28,"1") -> 10 | DW26: 〉 | DY26: =COUNTIF(D32:DS32,"H") -> 0 | EI26: =COUNTIF(D27:M32,"●") -> 0 | EK26: =COUNTIF(N27:W32,"●") -> 0 | EM26: =COUNTIF(X27:AG32,"●") -> 0 | EO26: =COUNTIF(AH27:AQ32,"●") -> 0 | EQ26: =COUNTIF(AR27:BA32,"●") -> 0 | ES26: =COUNTIF(BB27:BK32,"●") -> 0 | EU26: =COUNTIF(BL27:BU32,"●") -> 0 | EW26: =COUNTIF(BV27:CE32,"●") -> 0 | EY26: =COUNTIF(CF27:CO32,"●") -> 0 | FA26: =COUNTIF(CP27:CY32,"●") -> 0 | FB26: =COUNTIF(CZ27:DI32,"●") -> 0 | FC26: =COUNTIF(DJ27:DS32,"●") -> 0
E28: ・ | G28: ・ | I28: ・ | K28: ・ | O28: ・ | Q28: ・ | S28: ・ | U28: ・ | Y28: ・ | AA28: ・ | AC28: ・ | AE28: ・ | AI28: ・ | AK28: ・ | AM28: ・ | AO28: ・ | AS28: ・ | AU28: ・ | AW28: ・ | AY28: ・ | BC28: ・ | BE28: ・ | BG28: ・ | BI28: ・ | BM28: ・ | BO28: ・ | BQ28: ・ | BS28: ・ | BW28: ・ | BY28: ・ | CA28: ・ | CC28: ・ | CG28: ・ | CI28: ・ | CK28: ・ | CM28: ・ | CQ28: ・ | CS28: ・ | CU28: ・ | CW28: ・ | DA28: ・ | DC28: ・ | DE28: ・ | DG28: ・ | DK28: ・ | DM28: ・ | DO28: ・ | DQ28: ・ | EI28: =IF(AND(EI25=10,EK25=10),"1","0") -> 1 | EK28: =IF(AND(EK25=10,EM25=10),"1","0") -> 1 | EM28: =IF(AND(EM25=10,EO25=10),"1","0") -> 1 | EO28: =IF(AND(EO25=10,EQ25=10),"1","0") -> 1 | EQ28: =IF(AND(EQ25=10,ES25=10),"1","0") -> 1 | ES28: =IF(AND(ES25=10,EU25=10),"1","0") -> 1 | EU28: =IF(AND(EU25=10,EW25=10),"1","0") -> 1 | EW28: =IF(AND(EW25=10,EY25=10),"1","0") -> 1 | EY28: =IF(AND(EY25=10,FA25=10),"1","0") -> 1 | FA28: =IF(AND(FA25=10,FB25=10),"1","0") -> 1
F29: ・ | H29: ・ | J29: ・ | P29: ・ | R29: ・ | T29: ・ | Z29: ・ | AB29: ・ | AD29: ・ | AJ29: ・ | AL29: ・ | AN29: ・ | AT29: ・ | AV29: ・ | AX29: ・ | BD29: ・ | BF29: ・ | BH29: ・ | BN29: ・ | BP29: ・ | BR29: ・ | BX29: ・ | BZ29: ・ | CB29: ・ | CH29: ・ | CJ29: ・ | CL29: ・ | CR29: ・ | CT29: ・ | CV29: ・ | DB29: ・ | DD29: ・ | DF29: ・ | DL29: ・ | DN29: ・ | DP29: ・ | EH29: =COUNTIF(D25:DD25,"/") -> 0
G30: ・ | I30: ・ | Q30: ・ | S30: ・ | AA30: ・ | AC30: ・ | AK30: ・ | AM30: ・ | AU30: ・ | AW30: ・ | BE30: ・ | BG30: ・ | BO30: ・ | BQ30: ・ | BY30: ・ | CA30: ・ | CI30: ・ | CK30: ・ | CS30: ・ | CU30: ・ | DC30: ・ | DE30: ・ | DM30: ・ | DO30: ・ | EH30: =COUNTIF(EI30:FA30,"1") -> 0 | EI30: =IF(AND(E32="1○",I25="/"),"1","0") -> 0 | EK30: =IF(AND(O32="1○",S25="/"),"1","0") -> 0 | EM30: =IF(AND(Y32="1○",AC25="/"),"1","0") -> 0 | EO30: =IF(AND(AI32="1○",AM25="/"),"1","0") -> 0 | EQ30: =IF(AND(AS32="1○",AW25="/"),"1","0") -> 0 | ES30: =IF(AND(BC32="1○",BG25="/"),"1","0") -> 0 | EU30: =IF(AND(BM32="1○",BQ25="/"),"1","0") -> 0 | EW30: =IF(AND(BW32="1○",CA25="/"),"1","0") -> 0 | EY30: =IF(AND(CG32="1○",CK25="/"),"1","0") -> 0 | FA30: =IF(OR(AND(CQ32="1○",CU25="/"),AND(DA32="1○",CZ25="/")),"1","0") -> 0
H31: ・ | R31: ・ | AB31: ・ | AL31: ・ | AV31: ・ | BF31: ・ | BP31: ・ | BZ31: ・ | CJ31: ・ | CT31: ・ | DD31: ・ | DN31: ・ | EH31: =COUNTIF(EI31:FA31,"1") -> 0 | EI31: =IF(AND(E32="1○",EI25+EJ25<10),"1","0") -> 0 | EK31: =IF(AND(O32="1○",EK25+EL25<10),"1","0") -> 0 | EM31: =IF(AND(Y32="1○",EM25+EN25<10),"1","0") -> 0 | EO31: =IF(AND(AI32="1○",EO25+EP25<10),"1","0") -> 0 | EQ31: =IF(AND(AS32="1○",EQ25+ER25<10),"1","0") -> 0 | ES31: =IF(AND(BC32="1○",ES25+ET25<10),"1","0") -> 0 | EU31: =IF(AND(BM32="1○",EU25+EV25<10),"1","0") -> 0 | EW31: =IF(AND(BW32="1○",EW25+EX25<10),"1","0") -> 0 | EY31: =IF(AND(CG32="1○",EY25+EZ25<10),"1","0") -> 0 | FA31: =IF(OR(AND(CQ32="1○",FA25+FB25<10),AND(DA32="1○",FB25+FC25<10)),"1","0") -> 0
C34: Player 4 | D34: 1 | N34: 2 | X34: 3 | AH34: 4 | AR34: 5 | BB34: 6 | BL34: 7 | BV34: 8 | CF34: 9 | CP34: 10 | EI34: 1 | EK34: 2 | EM34: 3 | EO34: 4 | EQ34: 5 | ES34: 6 | EU34: 7 | EW34: 8 | EY34: 9 | FA34: 10
D35: =IF(EI35=10,"X",IF(AND(EI35=0,OR(E42="1F",E42="1,2F")),"F",IF(EI35=0,"G",IF(AND(EI35=8,E42="1○"),"⑧",IF(AND(EI35=7,E42="1○"),"⑦",IF(AND(EI35=6,E42="1○"),"⑥",IF(AND(EI35=5,E42="1○"),"⑤",IF(AND(EI35=4,E42="1○"),"④",EI35)))))))) -> X | I35: =IF(AND(EI35<10,EI35+EJ35=10),"/",IF(EI35=10,"",IF(OR(AND(EJ35=0,E42="2F"),AND(EJ35=0,E42="1,2F")),"F",IF(EJ35=0,"-",EJ35)))) ->  | N35: =IF(EK35=10,"X",IF(AND(EK35=0,OR(O42="1F",O42="1,2F")),"F",IF(EK35=0,"G",IF(AND(EK35=8,O42="1○"),"⑧",IF(AND(EK35=7,O42="1○"),"⑦",IF(AND(EK35=6,O42="1○"),"⑥",IF(AND(EK35=5,O42="1○"),"⑤",IF(AND(EK35=4,O42="1○"),"④",EK35)))))))) -> X | S35: =IF(AND(EK35<10,EK35+EL35=10),"/",IF(EK35=10,"",IF(OR(AND(EL35=0,O42="2F"),AND(EL35=0,O42="1,2F")),"F",IF(EL35=0,"-",EL35)))) ->  | X35: =IF(EM35=10,"X",IF(AND(EM35=0,OR(Y42="1F",Y42="1,2F")),"F",IF(EM35=0,"G",IF(AND(EM35=8,Y42="1○"),"⑧",IF(AND(EM35=7,Y42="1○"),"⑦",IF(AND(EM35=6,Y42="1○"),"⑥",IF(AND(EM35=5,Y42="1○"),"⑤",IF(AND(EM35=4,Y42="1○"),"④",EM35)))))))) -> X | AC35: =IF(AND(EM35<10,EM35+EN35=10),"/",IF(EM35=10,"",IF(OR(AND(EN35=0,Y42="2F"),AND(EN35=0,Y42="1,2F")),"F",IF(EN35=0,"-",EN35)))) ->  | AH35: =IF(EO35=10,"X",IF(AND(EO35=0,OR(AI42="1F",AI42="1,2F")),"F",IF(EO35=0,"G",IF(AND(EO35=8,AI42="1○"),"⑧",IF(AND(EO35=7,AI42="1○"),"⑦",IF(AND(EO35=6,AI42="1○"),"⑥",IF(AND(EO35=5,AI42="1○"),"⑤",IF(AND(EO35=4,AI42="1○"),"④",EO35)))))))) -> X | AM35: =IF(AND(EO35<10,EO35+EP35=10),"/",IF(EO35=10,"",IF(OR(AND(EP35=0,AI42="2F"),AND(EP35=0,AI42="1,2F")),"F",IF(EP35=0,"-",EP35)))) ->  | AR35: =IF(EQ35=10,"X",IF(AND(EQ35=0,OR(AS42="1F",AS42="1,2F")),"F",IF(EQ35=0,"G",IF(AND(EQ35=8,AS42="1○"),"⑧",IF(AND(EQ35=7,AS42="1○"),"⑦",IF(AND(EQ35=6,AS42="1○"),"⑥",IF(AND(EQ35=5,AS42="1○"),"⑤",IF(AND(EQ35=4,AS42="1○"),"④",EQ35)))))))) -> X | AW35: =IF(AND(EQ35<10,EQ35+ER35=10),"/",IF(EQ35=10,"",IF(OR(AND(ER35=0,AS42="2F"),AND(ER35=0,AS42="1,2F")),"F",IF(ER35=0,"-",ER35)))) ->  | BB35: =IF(ES35=10,"X",IF(AND(ES35=0,OR(BC42="1F",BC42="1,2F")),"F",IF(ES35=0,"G",IF(AND(ES35=8,BC42="1○"),"⑧",IF(AND(ES35=7,BC42="1○"),"⑦",IF(AND(ES35=6,BC42="1○"),"⑥",IF(AND(ES35=5,BC42="1○"),"⑤",IF(AND(ES35=4,BC42="1○"),"④",ES35)))))))) -> X | BG35: =IF(AND(ES35<10,ES35+ET35=10),"/",IF(ES35=10,"",IF(OR(AND(ET35=0,BC42="2F"),AND(ET35=0,BC42="1,2F")),"F",IF(ET35=0,"-",ET35)))) ->  | BL35: =IF(EU35=10,"X",IF(AND(EU35=0,OR(BM42="1F",BM42="1,2F")),"F",IF(EU35=0,"G",IF(AND(EU35=8,BM42="1○"),"⑧",IF(AND(EU35=7,BM42="1○"),"⑦",IF(AND(EU35=6,BM42="1○"),"⑥",IF(AND(EU35=5,BM42="1○"),"⑤",IF(AND(EU35=4,BM42="1○"),"④",EU35)))))))) -> X | BQ35: =IF(AND(EU35<10,EU35+EV35=10),"/",IF(EU35=10,"",IF(OR(AND(EV35=0,BM42="2F"),AND(EV35=0,BM42="1,2F")),"F",IF(EV35=0,"-",EV35)))) ->  | BV35: =IF(EW35=10,"X",IF(AND(EW35=0,OR(BW42="1F",BW42="1,2F")),"F",IF(EW35=0,"G",IF(AND(EW35=8,BW42="1○"),"⑧",IF(AND(EW35=7,BW42="1○"),"⑦",IF(AND(EW35=6,BW42="1○"),"⑥",IF(AND(EW35=5,BW42="1○"),"⑤",IF(AND(EW35=4,BW42="1○"),"④",EW35)))))))) -> X | CA35: =IF(AND(EW35<10,EW35+EX35=10),"/",IF(EW35=10,"",IF(OR(AND(EX35=0,BW42="2F"),AND(EX35=0,BW42="1,2F")),"F",IF(EX35=0,"-",EX35)))) ->  | CF35: =IF(EY35=10,"X",IF(AND(EY35=0,OR(CG42="1F",CG42="1,2F")),"F",IF(EY35=0,"G",IF(AND(EY35=8,CG42="1○"),"⑧",IF(AND(EY35=7,CG42="1○"),"⑦",IF(AND(EY35=6,CG42="1○"),"⑥",IF(AND(EY35=5,CG42="1○"),"⑤",IF(AND(EY35=4,CG42="1○"),"④",EY35)))))))) -> X | CK35: =IF(AND(EY35<10,EY35+EZ35=10),"/",IF(EY35=10,"",IF(OR(AND(EZ35=0,CG42="2F"),AND(EZ35=0,CG42="1,2F")),"F",IF(EZ35=0,"-",EZ35)))) ->  | CP35: =IF(FA35=10,"X",IF(AND(FA35=0,OR(CQ42="1F",CQ42="1,2F")),"F",IF(FA35=0,"G",IF(AND(FA35=8,CQ42="1○"),"⑧",IF(AND(FA35=7,CQ42="1○"),"⑦",IF(AND(FA35=6,CQ42="1○"),"⑥",IF(AND(FA35=5,CQ42="1○"),"⑤",IF(AND(FA35=4,CQ42="1○"),"④",FA35)))))))) -> X | CU35: =IF(AND(FA35=10,FB35=10),"X",IF(AND(FA35<10,FA35+FB35=10),"/",IF(OR(AND(FA35=10,FB35=0,DA42="1F"),AND(FA35=10,FB35=0,DA42="1,2F")),"F",IF(AND(FA35=10,FB35=0),"G",IF(AND(FA35=10,FB35=8,DA42="1○"),"⑧",IF(AND(FA35=10,FB35=7,DA42="1○"),"⑦",IF(AND(FA35=10,FB35=6,DA42="1○"),"⑥",IF(AND(FA35=10,FB35=5,DA42="1○"),"⑤",IF(AND(FA35=10,FB35=4,DA42="1○"),"④",IF(AND(FA35=10,FB35<10),FB35,IF(OR(AND(FA35<10,FB35=0,CQ42="2F"),AND(FA35<10,FB35=0,CQ42="1,2F")),"F",IF(AND(FA35<10,FB35=0),"-",FB35)))))))))))) -> X | CZ35: =IF(FC35=10,"X",IF(OR(AND(FB35=10,FC35=8,DK42="1○"),AND(FA35+FB35=10,FC35=8,DA42="1○")),"⑧",IF(OR(AND(FB35=10,FC35=7,DK42="1○"),AND(FA35+FB35=10,FC35=7,DA42="1○")),"⑦",IF(OR(AND(FB35=10,FC35=6,DK42="1○"),AND(FA35+FB35=10,FC35=6,DA42="1○")),"⑥",IF(OR(AND(FB35=10,FC35=5,DK42="1○"),AND(FA35+FB35=10,FC35=5,DA42="1○")),"⑤",IF(OR(AND(FB35=10,FC35=4,DK42="1○"),AND(FA35+FB35=10,FC35=4,DA42="1○")),"④",IF(OR(AND(FB35=10,FC35=0,DK42="1F"),AND(FB35<10,FC35=0,DA42="2F"),AND(FB35<10,FC35=0,DA42="1,2F")),"F",IF(AND(FA35=10,FB35<10,FB35+FC35=10),"/",IF(AND(OR(FB35=10,AND(FA35+FB35=10,FA35<10)),FC35=0),"G",IF(AND(FA35=10,FB35<10,FC35=0),"-",IF(FA35+FB35<10,"",FC35))))))))))) -> X | DE35: ( | DG35: =EH39-EH40 -> 0 | DK35: , | DM35: =IF(FB36=0,(DG35+DS35)-EH41,(DG35+DS35+1)-EH41) -> 0 | DQ35: ) | DS35: =COUNTIF(EI36:FA36,">0") -> 0 | EI35: =COUNTIF(D37:M42,"・") -> 10 | EJ35: =COUNTIF(D37:M42,"○") -> 0 | EK35: =COUNTIF(N37:W42,"・") -> 10 | EL35: =COUNTIF(N37:W42,"○") -> 0 | EM35: =COUNTIF(X37:AG42,"・") -> 10 | EN35: =COUNTIF(X37:AG42,"○") -> 0 | EO35: =COUNTIF(AH37:AQ42,"・") -> 10 | EP35: =COUNTIF(AH37:AQ42,"○") -> 0 | EQ35: =COUNTIF(AR37:BA42,"・") -> 10 | ER35: =COUNTIF(AR37:BA42,"○") -> 0 | ES35: =COUNTIF(BB37:BK42,"・") -> 10 | ET35: =COUNTIF(BB37:BK42,"○") -> 0 | EU35: =COUNTIF(BL37:BU42,"・") -> 10 | EV35: =COUNTIF(BL37:BU42,"○") -> 0 | EW35: =COUNTIF(BV37:CE42,"・") -> 10 | EX35: =COUNTIF(BV37:CE42,"○") -> 0 | EY35: =COUNTIF(CF37:CO42,"・") -> 10 | EZ35: =COUNTIF(CF37:CO42,"○") -> 0 | FA35: =COUNTIF(CP37:CY42,"・") -> 10 | FB35: =IF(FA35=10,COUNTIF(CZ37:DI42,"・"),COUNTIF(CP37:CY42,"○")) -> 10 | FC35: =IF(AND(FA35=10,FB35=10),COUNTIF(DJ37:DS42,"・"),IF(AND(FA35=10,FB35<10),COUNTIF(CZ37:DI42,"○"),IF(AND(FA35<10,FA35+FB35=10),COUNTIF(CZ37:DI42,"・"),"0"))) -> 10
D36: =IF(AND(EI35=10,EK35=10),20+EM35,IF(AND(EI35=10,EK35<10),10+EK35+EL35,IF(AND(EI35<10,EI35+EJ35=10),10+EK35,EI35+EJ35))) -> 30 | N36: =IF(AND(EK35=10,EM35=10),D36+20+EO35,IF(AND(EK35=10,EM35<10),D36+10+EM35+EN35,IF(AND(EK35<10,EK35+EL35=10),D36+10+EM35,D36+EK35+EL35))) -> 60 | X36: =IF(AND(EM35=10,EO35=10),N36+20+EQ35,IF(AND(EM35=10,EO35<10),N36+10+EO35+EP35,IF(AND(EM35<10,EM35+EN35=10),N36+10+EO35,N36+EM35+EN35))) -> 90 | AH36: =IF(AND(EO35=10,EQ35=10),X36+20+ES35,IF(AND(EO35=10,EQ35<10),X36+10+EQ35+ER35,IF(AND(EO35<10,EO35+EP35=10),X36+10+EQ35,X36+EO35+EP35))) -> 120 | AR36: =IF(AND(EQ35=10,ES35=10),AH36+20+EU35,IF(AND(EQ35=10,ES35<10),AH36+10+ES35+ET35,IF(AND(EQ35<10,EQ35+ER35=10),AH36+10+ES35,AH36+EQ35+ER35))) -> 150 | BB36: =IF(AND(ES35=10,EU35=10),AR36+20+EW35,IF(AND(ES35=10,EU35<10),AR36+10+EU35+EV35,IF(AND(ES35<10,ES35+ET35=10),AR36+10+EU35,AR36+ES35+ET35))) -> 180 | BL36: =IF(AND(EU35=10,EW35=10),BB36+20+EY35,IF(AND(EU35=10,EW35<10),BB36+10+EW35+EX35,IF(AND(EU35<10,EU35+EV35=10),BB36+10+EW35,BB36+EU35+EV35))) -> 210 | BV36: =IF(AND(EW35=10,EY35=10),BL36+20+FA35,IF(AND(EW35=10,EY35<10),BL36+10+EY35+EZ35,IF(AND(EW35<10,EW35+EX35=10),BL36+10+EY35,BL36+EW35+EX35))) -> 240 | CF36: =IF(AND(EY35=10,FA35=10),BV36+20+FB35,IF(AND(EY35=10,FA35<10),BV36+10+FA35+FB35,IF(AND(EY35<10,EY35+EZ35=10),BV36+10+FA35,BV36+EY35+EZ35))) -> 270 | CP36: =CF36+FA35+FB35+FC35 -> 300 | DE36: 〈 | DG36: =COUNTIF(D42:DS42,"P")+COUNTIF(D42:DS42,"S")+COUNTIF(D42:DS42,"C") -> 0 | DK36: , | DM36: =COUNTIF(D42:DS42,"P") -> 0 | DQ36: , | DS36: =COUNTIF(EI38:FA38,"1") -> 10 | DW36: 〉 | DY36: =COUNTIF(D42:DS42,"H") -> 0 | EI36: =COUNTIF(D37:M42,"●") -> 0 | EK36: =COUNTIF(N37:W42,"●") -> 0 | EM36: =COUNTIF(X37:AG42,"●") -> 0 | EO36: =COUNTIF(AH37:AQ42,"●") -> 0 | EQ36: =COUNTIF(AR37:BA42,"●") -> 0 | ES36: =COUNTIF(BB37:BK42,"●") -> 0 | EU36: =COUNTIF(BL37:BU42,"●") -> 0 | EW36: =COUNTIF(BV37:CE42,"●") -> 0 | EY36: =COUNTIF(CF37:CO42,"●") -> 0 | FA36: =COUNTIF(CP37:CY42,"●") -> 0 | FB36: =COUNTIF(CZ37:DI42,"●") -> 0 | FC36: =COUNTIF(DJ37:DS42,"●") -> 0
E38: ・ | G38: ・ | I38: ・ | K38: ・ | O38: ・ | Q38: ・ | S38: ・ | U38: ・ | Y38: ・ | AA38: ・ | AC38: ・ | AE38: ・ | AI38: ・ | AK38: ・ | AM38: ・ | AO38: ・ | AS38: ・ | AU38: ・ | AW38: ・ | AY38: ・ | BC38: ・ | BE38: ・ | BG38: ・ | BI38: ・ | BM38: ・ | BO38: ・ | BQ38: ・ | BS38: ・ | BW38: ・ | BY38: ・ | CA38: ・ | CC38: ・ | CG38: ・ | CI38: ・ | CK38: ・ | CM38: ・ | CQ38: ・ | CS38: ・ | CU38: ・ | CW38: ・ | DA38: ・ | DC38: ・ | DE38: ・ | DG38: ・ | DK38: ・ | DM38: ・ | DO38: ・ | DQ38: ・ | EI38: =IF(AND(EI35=10,EK35=10),"1","0") -> 1 | EK38: =IF(AND(EK35=10,EM35=10),"1","0") -> 1 | EM38: =IF(AND(EM35=10,EO35=10),"1","0") -> 1 | EO38: =IF(AND(EO35=10,EQ35=10),"1","0") -> 1 | EQ38: =IF(AND(EQ35=10,ES35=10),"1","0") -> 1 | ES38: =IF(AND(ES35=10,EU35=10),"1","0") -> 1 | EU38: =IF(AND(EU35=10,EW35=10),"1","0") -> 1 | EW38: =IF(AND(EW35=10,EY35=10),"1","0") -> 1 | EY38: =IF(AND(EY35=10,FA35=10),"1","0") -> 1 | FA38: =IF(AND(FA35=10,FB35=10),"1","0") -> 1
F39: ・ | H39: ・ | J39: ・ | P39: ・ | R39: ・ | T39: ・ | Z39: ・ | AB39: ・ | AD39: ・ | AJ39: ・ | AL39: ・ | AN39: ・ | AT39: ・ | AV39: ・ | AX39: ・ | BD39: ・ | BF39: ・ | BH39: ・ | BN39: ・ | BP39: ・ | BR39: ・ | BX39: ・ | BZ39: ・ | CB39: ・ | CH39: ・ | CJ39: ・ | CL39: ・ | CR39: ・ | CT39: ・ | CV39: ・ | DB39: ・ | DD39: ・ | DF39: ・ | DL39: ・ | DN39: ・ | DP39: ・ | EH39: =COUNTIF(D35:DD35,"/") -> 0
G40: ・ | I40: ・ | Q40: ・ | S40: ・ | AA40: ・ | AC40: ・ | AK40: ・ | AM40: ・ | AU40: ・ | AW40: ・ | BE40: ・ | BG40: ・ | BO40: ・ | BQ40: ・ | BY40: ・ | CA40: ・ | CI40: ・ | CK40: ・ | CS40: ・ | CU40: ・ | DC40: ・ | DE40: ・ | DM40: ・ | DO40: ・ | EH40: =COUNTIF(EI40:FA40,"1") -> 0 | EI40: =IF(AND(E42="1○",I35="/"),"1","0") -> 0 | EK40: =IF(AND(O42="1○",S35="/"),"1","0") -> 0 | EM40: =IF(AND(Y42="1○",AC35="/"),"1","0") -> 0 | EO40: =IF(AND(AI42="1○",AM35="/"),"1","0") -> 0 | EQ40: =IF(AND(AS42="1○",AW35="/"),"1","0") -> 0 | ES40: =IF(AND(BC42="1○",BG35="/"),"1","0") -> 0 | EU40: =IF(AND(BM42="1○",BQ35="/"),"1","0") -> 0 | EW40: =IF(AND(BW42="1○",CA35="/"),"1","0") -> 0 | EY40: =IF(AND(CG42="1○",CK35="/"),"1","0") -> 0 | FA40: =IF(OR(AND(CQ42="1○",CU35="/"),AND(DA42="1○",CZ35="/")),"1","0") -> 0
H41: ・ | R41: ・ | AB41: ・ | AL41: ・ | AV41: ・ | BF41: ・ | BP41: ・ | BZ41: ・ | CJ41: ・ | CT41: ・ | DD41: ・ | DN41: ・ | EH41: =COUNTIF(EI41:FA41,"1") -> 0 | EI41: =IF(AND(E42="1○",EI35+EJ35<10),"1","0") -> 0 | EK41: =IF(AND(O42="1○",EK35+EL35<10),"1","0") -> 0 | EM41: =IF(AND(Y42="1○",EM35+EN35<10),"1","0") -> 0 | EO41: =IF(AND(AI42="1○",EO35+EP35<10),"1","0") -> 0 | EQ41: =IF(AND(AS42="1○",EQ35+ER35<10),"1","0") -> 0 | ES41: =IF(AND(BC42="1○",ES35+ET35<10),"1","0") -> 0 | EU41: =IF(AND(BM42="1○",EU35+EV35<10),"1","0") -> 0 | EW41: =IF(AND(BW42="1○",EW35+EX35<10),"1","0") -> 0 | EY41: =IF(AND(CG42="1○",EY35+EZ35<10),"1","0") -> 0 | FA41: =IF(OR(AND(CQ42="1○",FA35+FB35<10),AND(DA42="1○",FB35+FC35<10)),"1","0") -> 0
C44: Player 5 | D44: 1 | N44: 2 | X44: 3 | AH44: 4 | AR44: 5 | BB44: 6 | BL44: 7 | BV44: 8 | CF44: 9 | CP44: 10 | EI44: 1 | EK44: 2 | EM44: 3 | EO44: 4 | EQ44: 5 | ES44: 6 | EU44: 7 | EW44: 8 | EY44: 9 | FA44: 10
D45: =IF(EI45=10,"X",IF(AND(EI45=0,OR(E52="1F",E52="1,2F")),"F",IF(EI45=0,"G",IF(AND(EI45=8,E52="1○"),"⑧",IF(AND(EI45=7,E52="1○"),"⑦",IF(AND(EI45=6,E52="1○"),"⑥",IF(AND(EI45=5,E52="1○"),"⑤",IF(AND(EI45=4,E52="1○"),"④",EI45)))))))) -> X | I45: =IF(AND(EI45<10,EI45+EJ45=10),"/",IF(EI45=10,"",IF(OR(AND(EJ45=0,E52="2F"),AND(EJ45=0,E52="1,2F")),"F",IF(EJ45=0,"-",EJ45)))) ->  | N45: =IF(EK45=10,"X",IF(AND(EK45=0,OR(O52="1F",O52="1,2F")),"F",IF(EK45=0,"G",IF(AND(EK45=8,O52="1○"),"⑧",IF(AND(EK45=7,O52="1○"),"⑦",IF(AND(EK45=6,O52="1○"),"⑥",IF(AND(EK45=5,O52="1○"),"⑤",IF(AND(EK45=4,O52="1○"),"④",EK45)))))))) -> X | S45: =IF(AND(EK45<10,EK45+EL45=10),"/",IF(EK45=10,"",IF(OR(AND(EL45=0,O52="2F"),AND(EL45=0,O52="1,2F")),"F",IF(EL45=0,"-",EL45)))) ->  | X45: =IF(EM45=10,"X",IF(AND(EM45=0,OR(Y52="1F",Y52="1,2F")),"F",IF(EM45=0,"G",IF(AND(EM45=8,Y52="1○"),"⑧",IF(AND(EM45=7,Y52="1○"),"⑦",IF(AND(EM45=6,Y52="1○"),"⑥",IF(AND(EM45=5,Y52="1○"),"⑤",IF(AND(EM45=4,Y52="1○"),"④",EM45)))))))) -> X | AC45: =IF(AND(EM45<10,EM45+EN45=10),"/",IF(EM45=10,"",IF(OR(AND(EN45=0,Y52="2F"),AND(EN45=0,Y52="1,2F")),"F",IF(EN45=0,"-",EN45)))) ->  | AH45: =IF(EO45=10,"X",IF(AND(EO45=0,OR(AI52="1F",AI52="1,2F")),"F",IF(EO45=0,"G",IF(AND(EO45=8,AI52="1○"),"⑧",IF(AND(EO45=7,AI52="1○"),"⑦",IF(AND(EO45=6,AI52="1○"),"⑥",IF(AND(EO45=5,AI52="1○"),"⑤",IF(AND(EO45=4,AI52="1○"),"④",EO45)))))))) -> X | AM45: =IF(AND(EO45<10,EO45+EP45=10),"/",IF(EO45=10,"",IF(OR(AND(EP45=0,AI52="2F"),AND(EP45=0,AI52="1,2F")),"F",IF(EP45=0,"-",EP45)))) ->  | AR45: =IF(EQ45=10,"X",IF(AND(EQ45=0,OR(AS52="1F",AS52="1,2F")),"F",IF(EQ45=0,"G",IF(AND(EQ45=8,AS52="1○"),"⑧",IF(AND(EQ45=7,AS52="1○"),"⑦",IF(AND(EQ45=6,AS52="1○"),"⑥",IF(AND(EQ45=5,AS52="1○"),"⑤",IF(AND(EQ45=4,AS52="1○"),"④",EQ45)))))))) -> X | AW45: =IF(AND(EQ45<10,EQ45+ER45=10),"/",IF(EQ45=10,"",IF(OR(AND(ER45=0,AS52="2F"),AND(ER45=0,AS52="1,2F")),"F",IF(ER45=0,"-",ER45)))) ->  | BB45: =IF(ES45=10,"X",IF(AND(ES45=0,OR(BC52="1F",BC52="1,2F")),"F",IF(ES45=0,"G",IF(AND(ES45=8,BC52="1○"),"⑧",IF(AND(ES45=7,BC52="1○"),"⑦",IF(AND(ES45=6,BC52="1○"),"⑥",IF(AND(ES45=5,BC52="1○"),"⑤",IF(AND(ES45=4,BC52="1○"),"④",ES45)))))))) -> X | BG45: =IF(AND(ES45<10,ES45+ET45=10),"/",IF(ES45=10,"",IF(OR(AND(ET45=0,BC52="2F"),AND(ET45=0,BC52="1,2F")),"F",IF(ET45=0,"-",ET45)))) ->  | BL45: =IF(EU45=10,"X",IF(AND(EU45=0,OR(BM52="1F",BM52="1,2F")),"F",IF(EU45=0,"G",IF(AND(EU45=8,BM52="1○"),"⑧",IF(AND(EU45=7,BM52="1○"),"⑦",IF(AND(EU45=6,BM52="1○"),"⑥",IF(AND(EU45=5,BM52="1○"),"⑤",IF(AND(EU45=4,BM52="1○"),"④",EU45)))))))) -> X | BQ45: =IF(AND(EU45<10,EU45+EV45=10),"/",IF(EU45=10,"",IF(OR(AND(EV45=0,BM52="2F"),AND(EV45=0,BM52="1,2F")),"F",IF(EV45=0,"-",EV45)))) ->  | BV45: =IF(EW45=10,"X",IF(AND(EW45=0,OR(BW52="1F",BW52="1,2F")),"F",IF(EW45=0,"G",IF(AND(EW45=8,BW52="1○"),"⑧",IF(AND(EW45=7,BW52="1○"),"⑦",IF(AND(EW45=6,BW52="1○"),"⑥",IF(AND(EW45=5,BW52="1○"),"⑤",IF(AND(EW45=4,BW52="1○"),"④",EW45)))))))) -> X | CA45: =IF(AND(EW45<10,EW45+EX45=10),"/",IF(EW45=10,"",IF(OR(AND(EX45=0,BW52="2F"),AND(EX45=0,BW52="1,2F")),"F",IF(EX45=0,"-",EX45)))) ->  | CF45: =IF(EY45=10,"X",IF(AND(EY45=0,OR(CG52="1F",CG52="1,2F")),"F",IF(EY45=0,"G",IF(AND(EY45=8,CG52="1○"),"⑧",IF(AND(EY45=7,CG52="1○"),"⑦",IF(AND(EY45=6,CG52="1○"),"⑥",IF(AND(EY45=5,CG52="1○"),"⑤",IF(AND(EY45=4,CG52="1○"),"④",EY45)))))))) -> X | CK45: =IF(AND(EY45<10,EY45+EZ45=10),"/",IF(EY45=10,"",IF(OR(AND(EZ45=0,CG52="2F"),AND(EZ45=0,CG52="1,2F")),"F",IF(EZ45=0,"-",EZ45)))) ->  | CP45: =IF(FA45=10,"X",IF(AND(FA45=0,OR(CQ52="1F",CQ52="1,2F")),"F",IF(FA45=0,"G",IF(AND(FA45=8,CQ52="1○"),"⑧",IF(AND(FA45=7,CQ52="1○"),"⑦",IF(AND(FA45=6,CQ52="1○"),"⑥",IF(AND(FA45=5,CQ52="1○"),"⑤",IF(AND(FA45=4,CQ52="1○"),"④",FA45)))))))) -> X | CU45: =IF(AND(FA45=10,FB45=10),"X",IF(AND(FA45<10,FA45+FB45=10),"/",IF(OR(AND(FA45=10,FB45=0,DA52="1F"),AND(FA45=10,FB45=0,DA52="1,2F")),"F",IF(AND(FA45=10,FB45=0),"G",IF(AND(FA45=10,FB45=8,DA52="1○"),"⑧",IF(AND(FA45=10,FB45=7,DA52="1○"),"⑦",IF(AND(FA45=10,FB45=6,DA52="1○"),"⑥",IF(AND(FA45=10,FB45=5,DA52="1○"),"⑤",IF(AND(FA45=10,FB45=4,DA52="1○"),"④",IF(AND(FA45=10,FB45<10),FB45,IF(OR(AND(FA45<10,FB45=0,CQ52="2F"),AND(FA45<10,FB45=0,CQ52="1,2F")),"F",IF(AND(FA45<10,FB45=0),"-",FB45)))))))))))) -> X | CZ45: =IF(FC45=10,"X",IF(OR(AND(FB45=10,FC45=8,DK52="1○"),AND(FA45+FB45=10,FC45=8,DA52="1○")),"⑧",IF(OR(AND(FB45=10,FC45=7,DK52="1○"),AND(FA45+FB45=10,FC45=7,DA52="1○")),"⑦",IF(OR(AND(FB45=10,FC45=6,DK52="1○"),AND(FA45+FB45=10,FC45=6,DA52="1○")),"⑥",IF(OR(AND(FB45=10,FC45=5,DK52="1○"),AND(FA45+FB45=10,FC45=5,DA52="1○")),"⑤",IF(OR(AND(FB45=10,FC45=4,DK52="1○"),AND(FA45+FB45=10,FC45=4,DA52="1○")),"④",IF(OR(AND(FB45=10,FC45=0,DK52="1F"),AND(FB45<10,FC45=0,DA52="2F"),AND(FB45<10,FC45=0,DA52="1,2F")),"F",IF(AND(FA45=10,FB45<10,FB45+FC45=10),"/",IF(AND(OR(FB45=10,AND(FA45+FB45=10,FA45<10)),FC45=0),"G",IF(AND(FA45=10,FB45<10,FC45=0),"-",IF(FA45+FB45<10,"",FC45))))))))))) -> X | DE45: ( | DG45: =EH49-EH50 -> 0 | DK45: , | DM45: =IF(FB46=0,(DG45+DS45)-EH51,(DG45+DS45+1)-EH51) -> 0 | DQ45: ) | DS45: =COUNTIF(EI46:FA46,">0") -> 0 | EI45: =COUNTIF(D47:M52,"・") -> 10 | EJ45: =COUNTIF(D47:M52,"○") -> 0 | EK45: =COUNTIF(N47:W52,"・") -> 10 | EL45: =COUNTIF(N47:W52,"○") -> 0 | EM45: =COUNTIF(X47:AG52,"・") -> 10 | EN45: =COUNTIF(X47:AG52,"○") -> 0 | EO45: =COUNTIF(AH47:AQ52,"・") -> 10 | EP45: =COUNTIF(AH47:AQ52,"○") -> 0 | EQ45: =COUNTIF(AR47:BA52,"・") -> 10 | ER45: =COUNTIF(AR47:BA52,"○") -> 0 | ES45: =COUNTIF(BB47:BK52,"・") -> 10 | ET45: =COUNTIF(BB47:BK52,"○") -> 0 | EU45: =COUNTIF(BL47:BU52,"・") -> 10 | EV45: =COUNTIF(BL47:BU52,"○") -> 0 | EW45: =COUNTIF(BV47:CE52,"・") -> 10 | EX45: =COUNTIF(BV47:CE52,"○") -> 0 | EY45: =COUNTIF(CF47:CO52,"・") -> 10 | EZ45: =COUNTIF(CF47:CO52,"○") -> 0 | FA45: =COUNTIF(CP47:CY52,"・") -> 10 | FB45: =IF(FA45=10,COUNTIF(CZ47:DI52,"・"),COUNTIF(CP47:CY52,"○")) -> 10 | FC45: =IF(AND(FA45=10,FB45=10),COUNTIF(DJ47:DS52,"・"),IF(AND(FA45=10,FB45<10),COUNTIF(CZ47:DI52,"○"),IF(AND(FA45<10,FA45+FB45=10),COUNTIF(CZ47:DI52,"・"),"0"))) -> 10
D46: =IF(AND(EI45=10,EK45=10),20+EM45,IF(AND(EI45=10,EK45<10),10+EK45+EL45,IF(AND(EI45<10,EI45+EJ45=10),10+EK45,EI45+EJ45))) -> 30 | N46: =IF(AND(EK45=10,EM45=10),D46+20+EO45,IF(AND(EK45=10,EM45<10),D46+10+EM45+EN45,IF(AND(EK45<10,EK45+EL45=10),D46+10+EM45,D46+EK45+EL45))) -> 60 | X46: =IF(AND(EM45=10,EO45=10),N46+20+EQ45,IF(AND(EM45=10,EO45<10),N46+10+EO45+EP45,IF(AND(EM45<10,EM45+EN45=10),N46+10+EO45,N46+EM45+EN45))) -> 90 | AH46: =IF(AND(EO45=10,EQ45=10),X46+20+ES45,IF(AND(EO45=10,EQ45<10),X46+10+EQ45+ER45,IF(AND(EO45<10,EO45+EP45=10),X46+10+EQ45,X46+EO45+EP45))) -> 120 | AR46: =IF(AND(EQ45=10,ES45=10),AH46+20+EU45,IF(AND(EQ45=10,ES45<10),AH46+10+ES45+ET45,IF(AND(EQ45<10,EQ45+ER45=10),AH46+10+ES45,AH46+EQ45+ER45))) -> 150 | BB46: =IF(AND(ES45=10,EU45=10),AR46+20+EW45,IF(AND(ES45=10,EU45<10),AR46+10+EU45+EV45,IF(AND(ES45<10,ES45+ET45=10),AR46+10+EU45,AR46+ES45+ET45))) -> 180 | BL46: =IF(AND(EU45=10,EW45=10),BB46+20+EY45,IF(AND(EU45=10,EW45<10),BB46+10+EW45+EX45,IF(AND(EU45<10,EU45+EV45=10),BB46+10+EW45,BB46+EU45+EV45))) -> 210 | BV46: =IF(AND(EW45=10,EY45=10),BL46+20+FA45,IF(AND(EW45=10,EY45<10),BL46+10+EY45+EZ45,IF(AND(EW45<10,EW45+EX45=10),BL46+10+EY45,BL46+EW45+EX45))) -> 240 | CF46: =IF(AND(EY45=10,FA45=10),BV46+20+FB45,IF(AND(EY45=10,FA45<10),BV46+10+FA45+FB45,IF(AND(EY45<10,EY45+EZ45=10),BV46+10+FA45,BV46+EY45+EZ45))) -> 270 | CP46: =CF46+FA45+FB45+FC45 -> 300 | DE46: 〈 | DG46: =COUNTIF(D52:DS52,"P")+COUNTIF(D52:DS52,"S")+COUNTIF(D52:DS52,"C") -> 0 | DK46: , | DM46: =COUNTIF(D52:DS52,"P") -> 0 | DQ46: , | DS46: =COUNTIF(EI48:FA48,"1") -> 10 | DW46: 〉 | DY46: =COUNTIF(D52:DS52,"H") -> 0 | EI46: =COUNTIF(D47:M52,"●") -> 0 | EK46: =COUNTIF(N47:W52,"●") -> 0 | EM46: =COUNTIF(X47:AG52,"●") -> 0 | EO46: =COUNTIF(AH47:AQ52,"●") -> 0 | EQ46: =COUNTIF(AR47:BA52,"●") -> 0 | ES46: =COUNTIF(BB47:BK52,"●") -> 0 | EU46: =COUNTIF(BL47:BU52,"●") -> 0 | EW46: =COUNTIF(BV47:CE52,"●") -> 0 | EY46: =COUNTIF(CF47:CO52,"●") -> 0 | FA46: =COUNTIF(CP47:CY52,"●") -> 0 | FB46: =COUNTIF(CZ47:DI52,"●") -> 0 | FC46: =COUNTIF(DJ47:DS52,"●") -> 0
B47: Team Total
E48: ・ | G48: ・ | I48: ・ | K48: ・ | O48: ・ | Q48: ・ | S48: ・ | U48: ・ | Y48: ・ | AA48: ・ | AC48: ・ | AE48: ・ | AI48: ・ | AK48: ・ | AM48: ・ | AO48: ・ | AS48: ・ | AU48: ・ | AW48: ・ | AY48: ・ | BC48: ・ | BE48: ・ | BG48: ・ | BI48: ・ | BM48: ・ | BO48: ・ | BQ48: ・ | BS48: ・ | BW48: ・ | BY48: ・ | CA48: ・ | CC48: ・ | CG48: ・ | CI48: ・ | CK48: ・ | CM48: ・ | CQ48: ・ | CS48: ・ | CU48: ・ | CW48: ・ | DA48: ・ | DC48: ・ | DE48: ・ | DG48: ・ | DK48: ・ | DM48: ・ | DO48: ・ | DQ48: ・ | EI48: =IF(AND(EI45=10,EK45=10),"1","0") -> 1 | EK48: =IF(AND(EK45=10,EM45=10),"1","0") -> 1 | EM48: =IF(AND(EM45=10,EO45=10),"1","0") -> 1 | EO48: =IF(AND(EO45=10,EQ45=10),"1","0") -> 1 | EQ48: =IF(AND(EQ45=10,ES45=10),"1","0") -> 1 | ES48: =IF(AND(ES45=10,EU45=10),"1","0") -> 1 | EU48: =IF(AND(EU45=10,EW45=10),"1","0") -> 1 | EW48: =IF(AND(EW45=10,EY45=10),"1","0") -> 1 | EY48: =IF(AND(EY45=10,FA45=10),"1","0") -> 1 | FA48: =IF(AND(FA45=10,FB45=10),"1","0") -> 1
F49: ・ | H49: ・ | J49: ・ | P49: ・ | R49: ・ | T49: ・ | Z49: ・ | AB49: ・ | AD49: ・ | AJ49: ・ | AL49: ・ | AN49: ・ | AT49: ・ | AV49: ・ | AX49: ・ | BD49: ・ | BF49: ・ | BH49: ・ | BN49: ・ | BP49: ・ | BR49: ・ | BX49: ・ | BZ49: ・ | CB49: ・ | CH49: ・ | CJ49: ・ | CL49: ・ | CR49: ・ | CT49: ・ | CV49: ・ | DB49: ・ | DD49: ・ | DF49: ・ | DL49: ・ | DN49: ・ | DP49: ・ | EH49: =COUNTIF(D45:DD45,"/") -> 0
B50: =CP6+CP16+CP26+CP36+CP46 -> 1500 | G50: ・ | I50: ・ | Q50: ・ | S50: ・ | AA50: ・ | AC50: ・ | AK50: ・ | AM50: ・ | AU50: ・ | AW50: ・ | BE50: ・ | BG50: ・ | BO50: ・ | BQ50: ・ | BY50: ・ | CA50: ・ | CI50: ・ | CK50: ・ | CS50: ・ | CU50: ・ | DC50: ・ | DE50: ・ | DM50: ・ | DO50: ・ | EH50: =COUNTIF(EI50:FA50,"1") -> 0 | EI50: =IF(AND(E52="1○",I45="/"),"1","0") -> 0 | EK50: =IF(AND(O52="1○",S45="/"),"1","0") -> 0 | EM50: =IF(AND(Y52="1○",AC45="/"),"1","0") -> 0 | EO50: =IF(AND(AI52="1○",AM45="/"),"1","0") -> 0 | EQ50: =IF(AND(AS52="1○",AW45="/"),"1","0") -> 0 | ES50: =IF(AND(BC52="1○",BG45="/"),"1","0") -> 0 | EU50: =IF(AND(BM52="1○",BQ45="/"),"1","0") -> 0 | EW50: =IF(AND(BW52="1○",CA45="/"),"1","0") -> 0 | EY50: =IF(AND(CG52="1○",CK45="/"),"1","0") -> 0 | FA50: =IF(OR(AND(CQ52="1○",CU45="/"),AND(DA52="1○",CZ45="/")),"1","0") -> 0
H51: ・ | R51: ・ | AB51: ・ | AL51: ・ | AV51: ・ | BF51: ・ | BP51: ・ | BZ51: ・ | CJ51: ・ | CT51: ・ | DD51: ・ | DN51: ・ | EH51: =COUNTIF(EI51:FA51,"1") -> 0 | EI51: =IF(AND(E52="1○",EI45+EJ45<10),"1","0") -> 0 | EK51: =IF(AND(O52="1○",EK45+EL45<10),"1","0") -> 0 | EM51: =IF(AND(Y52="1○",EM45+EN45<10),"1","0") -> 0 | EO51: =IF(AND(AI52="1○",EO45+EP45<10),"1","0") -> 0 | EQ51: =IF(AND(AS52="1○",EQ45+ER45<10),"1","0") -> 0 | ES51: =IF(AND(BC52="1○",ES45+ET45<10),"1","0") -> 0 | EU51: =IF(AND(BM52="1○",EU45+EV45<10),"1","0") -> 0 | EW51: =IF(AND(BW52="1○",EW45+EX45<10),"1","0") -> 0 | EY51: =IF(AND(CG52="1○",EY45+EZ45<10),"1","0") -> 0 | FA51: =IF(OR(AND(CQ52="1○",FA45+FB45<10),AND(DA52="1○",FB45+FC45<10)),"1","0") -> 0
B54: 相 手 大 学 | C54: Player 1 | D54: 1 | N54: 2 | X54: 3 | AH54: 4 | AR54: 5 | BB54: 6 | BL54: 7 | BV54: 8 | CF54: 9 | CP54: 10 | EI54: 1 | EK54: 2 | EM54: 3 | EO54: 4 | EQ54: 5 | ES54: 6 | EU54: 7 | EW54: 8 | EY54: 9 | FA54: 10
D55: =IF(EI55=10,"X",IF(AND(EI55=0,OR(E62="1F",E62="1,2F")),"F",IF(EI55=0,"G",IF(AND(EI55=8,E62="1○"),"⑧",IF(AND(EI55=7,E62="1○"),"⑦",IF(AND(EI55=6,E62="1○"),"⑥",IF(AND(EI55=5,E62="1○"),"⑤",IF(AND(EI55=4,E62="1○"),"④",EI55)))))))) -> X | I55: =IF(AND(EI55<10,EI55+EJ55=10),"/",IF(EI55=10,"",IF(OR(AND(EJ55=0,E62="2F"),AND(EJ55=0,E62="1,2F")),"F",IF(EJ55=0,"-",EJ55)))) ->  | N55: =IF(EK55=10,"X",IF(AND(EK55=0,OR(O62="1F",O62="1,2F")),"F",IF(EK55=0,"G",IF(AND(EK55=8,O62="1○"),"⑧",IF(AND(EK55=7,O62="1○"),"⑦",IF(AND(EK55=6,O62="1○"),"⑥",IF(AND(EK55=5,O62="1○"),"⑤",IF(AND(EK55=4,O62="1○"),"④",EK55)))))))) -> X | S55: =IF(AND(EK55<10,EK55+EL55=10),"/",IF(EK55=10,"",IF(OR(AND(EL55=0,O62="2F"),AND(EL55=0,O62="1,2F")),"F",IF(EL55=0,"-",EL55)))) ->  | X55: =IF(EM55=10,"X",IF(AND(EM55=0,OR(Y62="1F",Y62="1,2F")),"F",IF(EM55=0,"G",IF(AND(EM55=8,Y62="1○"),"⑧",IF(AND(EM55=7,Y62="1○"),"⑦",IF(AND(EM55=6,Y62="1○"),"⑥",IF(AND(EM55=5,Y62="1○"),"⑤",IF(AND(EM55=4,Y62="1○"),"④",EM55)))))))) -> X | AC55: =IF(AND(EM55<10,EM55+EN55=10),"/",IF(EM55=10,"",IF(OR(AND(EN55=0,Y62="2F"),AND(EN55=0,Y62="1,2F")),"F",IF(EN55=0,"-",EN55)))) ->  | AH55: =IF(EO55=10,"X",IF(AND(EO55=0,OR(AI62="1F",AI62="1,2F")),"F",IF(EO55=0,"G",IF(AND(EO55=8,AI62="1○"),"⑧",IF(AND(EO55=7,AI62="1○"),"⑦",IF(AND(EO55=6,AI62="1○"),"⑥",IF(AND(EO55=5,AI62="1○"),"⑤",IF(AND(EO55=4,AI62="1○"),"④",EO55)))))))) -> X | AM55: =IF(AND(EO55<10,EO55+EP55=10),"/",IF(EO55=10,"",IF(OR(AND(EP55=0,AI62="2F"),AND(EP55=0,AI62="1,2F")),"F",IF(EP55=0,"-",EP55)))) ->  | AR55: =IF(EQ55=10,"X",IF(AND(EQ55=0,OR(AS62="1F",AS62="1,2F")),"F",IF(EQ55=0,"G",IF(AND(EQ55=8,AS62="1○"),"⑧",IF(AND(EQ55=7,AS62="1○"),"⑦",IF(AND(EQ55=6,AS62="1○"),"⑥",IF(AND(EQ55=5,AS62="1○"),"⑤",IF(AND(EQ55=4,AS62="1○"),"④",EQ55)))))))) -> X | AW55: =IF(AND(EQ55<10,EQ55+ER55=10),"/",IF(EQ55=10,"",IF(OR(AND(ER55=0,AS62="2F"),AND(ER55=0,AS62="1,2F")),"F",IF(ER55=0,"-",ER55)))) ->  | BB55: =IF(ES55=10,"X",IF(AND(ES55=0,OR(BC62="1F",BC62="1,2F")),"F",IF(ES55=0,"G",IF(AND(ES55=8,BC62="1○"),"⑧",IF(AND(ES55=7,BC62="1○"),"⑦",IF(AND(ES55=6,BC62="1○"),"⑥",IF(AND(ES55=5,BC62="1○"),"⑤",IF(AND(ES55=4,BC62="1○"),"④",ES55)))))))) -> X | BG55: =IF(AND(ES55<10,ES55+ET55=10),"/",IF(ES55=10,"",IF(OR(AND(ET55=0,BC62="2F"),AND(ET55=0,BC62="1,2F")),"F",IF(ET55=0,"-",ET55)))) ->  | BL55: =IF(EU55=10,"X",IF(AND(EU55=0,OR(BM62="1F",BM62="1,2F")),"F",IF(EU55=0,"G",IF(AND(EU55=8,BM62="1○"),"⑧",IF(AND(EU55=7,BM62="1○"),"⑦",IF(AND(EU55=6,BM62="1○"),"⑥",IF(AND(EU55=5,BM62="1○"),"⑤",IF(AND(EU55=4,BM62="1○"),"④",EU55)))))))) -> X | BQ55: =IF(AND(EU55<10,EU55+EV55=10),"/",IF(EU55=10,"",IF(OR(AND(EV55=0,BM62="2F"),AND(EV55=0,BM62="1,2F")),"F",IF(EV55=0,"-",EV55)))) ->  | BV55: =IF(EW55=10,"X",IF(AND(EW55=0,OR(BW62="1F",BW62="1,2F")),"F",IF(EW55=0,"G",IF(AND(EW55=8,BW62="1○"),"⑧",IF(AND(EW55=7,BW62="1○"),"⑦",IF(AND(EW55=6,BW62="1○"),"⑥",IF(AND(EW55=5,BW62="1○"),"⑤",IF(AND(EW55=4,BW62="1○"),"④",EW55)))))))) -> X | CA55: =IF(AND(EW55<10,EW55+EX55=10),"/",IF(EW55=10,"",IF(OR(AND(EX55=0,BW62="2F"),AND(EX55=0,BW62="1,2F")),"F",IF(EX55=0,"-",EX55)))) ->  | CF55: =IF(EY55=10,"X",IF(AND(EY55=0,OR(CG62="1F",CG62="1,2F")),"F",IF(EY55=0,"G",IF(AND(EY55=8,CG62="1○"),"⑧",IF(AND(EY55=7,CG62="1○"),"⑦",IF(AND(EY55=6,CG62="1○"),"⑥",IF(AND(EY55=5,CG62="1○"),"⑤",IF(AND(EY55=4,CG62="1○"),"④",EY55)))))))) -> X | CK55: =IF(AND(EY55<10,EY55+EZ55=10),"/",IF(EY55=10,"",IF(OR(AND(EZ55=0,CG62="2F"),AND(EZ55=0,CG62="1,2F")),"F",IF(EZ55=0,"-",EZ55)))) ->  | CP55: =IF(FA55=10,"X",IF(AND(FA55=0,OR(CQ62="1F",CQ62="1,2F")),"F",IF(FA55=0,"G",IF(AND(FA55=8,CQ62="1○"),"⑧",IF(AND(FA55=7,CQ62="1○"),"⑦",IF(AND(FA55=6,CQ62="1○"),"⑥",IF(AND(FA55=5,CQ62="1○"),"⑤",IF(AND(FA55=4,CQ62="1○"),"④",FA55)))))))) -> X | CU55: =IF(AND(FA55=10,FB55=10),"X",IF(AND(FA55<10,FA55+FB55=10),"/",IF(OR(AND(FA55=10,FB55=0,DA62="1F"),AND(FA55=10,FB55=0,DA62="1,2F")),"F",IF(AND(FA55=10,FB55=0),"G",IF(AND(FA55=10,FB55=8,DA62="1○"),"⑧",IF(AND(FA55=10,FB55=7,DA62="1○"),"⑦",IF(AND(FA55=10,FB55=6,DA62="1○"),"⑥",IF(AND(FA55=10,FB55=5,DA62="1○"),"⑤",IF(AND(FA55=10,FB55=4,DA62="1○"),"④",IF(AND(FA55=10,FB55<10),FB55,IF(OR(AND(FA55<10,FB55=0,CQ62="2F"),AND(FA55<10,FB55=0,CQ62="1,2F")),"F",IF(AND(FA55<10,FB55=0),"-",FB55)))))))))))) -> X | CZ55: =IF(FC55=10,"X",IF(OR(AND(FB55=10,FC55=8,DK62="1○"),AND(FA55+FB55=10,FC55=8,DA62="1○")),"⑧",IF(OR(AND(FB55=10,FC55=7,DK62="1○"),AND(FA55+FB55=10,FC55=7,DA62="1○")),"⑦",IF(OR(AND(FB55=10,FC55=6,DK62="1○"),AND(FA55+FB55=10,FC55=6,DA62="1○")),"⑥",IF(OR(AND(FB55=10,FC55=5,DK62="1○"),AND(FA55+FB55=10,FC55=5,DA62="1○")),"⑤",IF(OR(AND(FB55=10,FC55=4,DK62="1○"),AND(FA55+FB55=10,FC55=4,DA62="1○")),"④",IF(OR(AND(FB55=10,FC55=0,DK62="1F"),AND(FB55<10,FC55=0,DA62="2F"),AND(FB55<10,FC55=0,DA62="1,2F")),"F",IF(AND(FA55=10,FB55<10,FB55+FC55=10),"/",IF(AND(OR(FB55=10,AND(FA55+FB55=10,FA55<10)),FC55=0),"G",IF(AND(FA55=10,FB55<10,FC55=0),"-",IF(FA55+FB55<10,"",FC55))))))))))) -> X | DE55: ( | DG55: =EH59-EH60 -> 0 | DK55: , | DM55: =IF(FB56=0,(DG55+DS55)-EH61,(DG55+DS55+1)-EH61) -> 0 | DQ55: ) | DS55: =COUNTIF(EI56:FA56,">0") -> 0 | EI55: =COUNTIF(D57:M62,"・") -> 10 | EJ55: =COUNTIF(D57:M62,"○") -> 0 | EK55: =COUNTIF(N57:W62,"・") -> 10 | EL55: =COUNTIF(N57:W62,"○") -> 0 | EM55: =COUNTIF(X57:AG62,"・") -> 10 | EN55: =COUNTIF(X57:AG62,"○") -> 0 | EO55: =COUNTIF(AH57:AQ62,"・") -> 10 | EP55: =COUNTIF(AH57:AQ62,"○") -> 0 | EQ55: =COUNTIF(AR57:BA62,"・") -> 10 | ER55: =COUNTIF(AR57:BA62,"○") -> 0 | ES55: =COUNTIF(BB57:BK62,"・") -> 10 | ET55: =COUNTIF(BB57:BK62,"○") -> 0 | EU55: =COUNTIF(BL57:BU62,"・") -> 10 | EV55: =COUNTIF(BL57:BU62,"○") -> 0 | EW55: =COUNTIF(BV57:CE62,"・") -> 10 | EX55: =COUNTIF(BV57:CE62,"○") -> 0 | EY55: =COUNTIF(CF57:CO62,"・") -> 10 | EZ55: =COUNTIF(CF57:CO62,"○") -> 0 | FA55: =COUNTIF(CP57:CY62,"・") -> 10 | FB55: =IF(FA55=10,COUNTIF(CZ57:DI62,"・"),COUNTIF(CP57:CY62,"○")) -> 10 | FC55: =IF(AND(FA55=10,FB55=10),COUNTIF(DJ57:DS62,"・"),IF(AND(FA55=10,FB55<10),COUNTIF(CZ57:DI62,"○"),IF(AND(FA55<10,FA55+FB55=10),COUNTIF(CZ57:DI62,"・"),"0"))) -> 10
D56: =IF(AND(EI55=10,EK55=10),20+EM55,IF(AND(EI55=10,EK55<10),10+EK55+EL55,IF(AND(EI55<10,EI55+EJ55=10),10+EK55,EI55+EJ55))) -> 30 | N56: =IF(AND(EK55=10,EM55=10),D56+20+EO55,IF(AND(EK55=10,EM55<10),D56+10+EM55+EN55,IF(AND(EK55<10,EK55+EL55=10),D56+10+EM55,D56+EK55+EL55))) -> 60 | X56: =IF(AND(EM55=10,EO55=10),N56+20+EQ55,IF(AND(EM55=10,EO55<10),N56+10+EO55+EP55,IF(AND(EM55<10,EM55+EN55=10),N56+10+EO55,N56+EM55+EN55))) -> 90 | AH56: =IF(AND(EO55=10,EQ55=10),X56+20+ES55,IF(AND(EO55=10,EQ55<10),X56+10+EQ55+ER55,IF(AND(EO55<10,EO55+EP55=10),X56+10+EQ55,X56+EO55+EP55))) -> 120 | AR56: =IF(AND(EQ55=10,ES55=10),AH56+20+EU55,IF(AND(EQ55=10,ES55<10),AH56+10+ES55+ET55,IF(AND(EQ55<10,EQ55+ER55=10),AH56+10+ES55,AH56+EQ55+ER55))) -> 150 | BB56: =IF(AND(ES55=10,EU55=10),AR56+20+EW55,IF(AND(ES55=10,EU55<10),AR56+10+EU55+EV55,IF(AND(ES55<10,ES55+ET55=10),AR56+10+EU55,AR56+ES55+ET55))) -> 180 | BL56: =IF(AND(EU55=10,EW55=10),BB56+20+EY55,IF(AND(EU55=10,EW55<10),BB56+10+EW55+EX55,IF(AND(EU55<10,EU55+EV55=10),BB56+10+EW55,BB56+EU55+EV55))) -> 210 | BV56: =IF(AND(EW55=10,EY55=10),BL56+20+FA55,IF(AND(EW55=10,EY55<10),BL56+10+EY55+EZ55,IF(AND(EW55<10,EW55+EX55=10),BL56+10+EY55,BL56+EW55+EX55))) -> 240 | CF56: =IF(AND(EY55=10,FA55=10),BV56+20+FB55,IF(AND(EY55=10,FA55<10),BV56+10+FA55+FB55,IF(AND(EY55<10,EY55+EZ55=10),BV56+10+FA55,BV56+EY55+EZ55))) -> 270 | CP56: =CF56+FA55+FB55+FC55 -> 300 | DE56: 〈 | DG56: =COUNTIF(D62:DS62,"P")+COUNTIF(D62:DS62,"S")+COUNTIF(D62:DS62,"C") -> 0 | DK56: , | DM56: =COUNTIF(D62:DS62,"P") -> 0 | DQ56: , | DS56: =COUNTIF(EI58:FA58,"1") -> 10 | DW56: 〉 | DY56: =COUNTIF(D62:DS62,"H") -> 0 | EI56: =COUNTIF(D57:M62,"●") -> 0 | EK56: =COUNTIF(N57:W62,"●") -> 0 | EM56: =COUNTIF(X57:AG62,"●") -> 0 | EO56: =COUNTIF(AH57:AQ62,"●") -> 0 | EQ56: =COUNTIF(AR57:BA62,"●") -> 0 | ES56: =COUNTIF(BB57:BK62,"●") -> 0 | EU56: =COUNTIF(BL57:BU62,"●") -> 0 | EW56: =COUNTIF(BV57:CE62,"●") -> 0 | EY56: =COUNTIF(CF57:CO62,"●") -> 0 | FA56: =COUNTIF(CP57:CY62,"●") -> 0 | FB56: =COUNTIF(CZ57:DI62,"●") -> 0 | FC56: =COUNTIF(DJ57:DS62,"●") -> 0
E58: ・ | G58: ・ | I58: ・ | K58: ・ | O58: ・ | Q58: ・ | S58: ・ | U58: ・ | Y58: ・ | AA58: ・ | AC58: ・ | AE58: ・ | AI58: ・ | AK58: ・ | AM58: ・ | AO58: ・ | AS58: ・ | AU58: ・ | AW58: ・ | AY58: ・ | BC58: ・ | BE58: ・ | BG58: ・ | BI58: ・ | BM58: ・ | BO58: ・ | BQ58: ・ | BS58: ・ | BW58: ・ | BY58: ・ | CA58: ・ | CC58: ・ | CG58: ・ | CI58: ・ | CK58: ・ | CM58: ・ | CQ58: ・ | CS58: ・ | CU58: ・ | CW58: ・ | DA58: ・ | DC58: ・ | DE58: ・ | DG58: ・ | DK58: ・ | DM58: ・ | DO58: ・ | DQ58: ・ | EI58: =IF(AND(EI55=10,EK55=10),"1","0") -> 1 | EK58: =IF(AND(EK55=10,EM55=10),"1","0") -> 1 | EM58: =IF(AND(EM55=10,EO55=10),"1","0") -> 1 | EO58: =IF(AND(EO55=10,EQ55=10),"1","0") -> 1 | EQ58: =IF(AND(EQ55=10,ES55=10),"1","0") -> 1 | ES58: =IF(AND(ES55=10,EU55=10),"1","0") -> 1 | EU58: =IF(AND(EU55=10,EW55=10),"1","0") -> 1 | EW58: =IF(AND(EW55=10,EY55=10),"1","0") -> 1 | EY58: =IF(AND(EY55=10,FA55=10),"1","0") -> 1 | FA58: =IF(AND(FA55=10,FB55=10),"1","0") -> 1
F59: ・ | H59: ・ | J59: ・ | P59: ・ | R59: ・ | T59: ・ | Z59: ・ | AB59: ・ | AD59: ・ | AJ59: ・ | AL59: ・ | AN59: ・ | AT59: ・ | AV59: ・ | AX59: ・ | BD59: ・ | BF59: ・ | BH59: ・ | BN59: ・ | BP59: ・ | BR59: ・ | BX59: ・ | BZ59: ・ | CB59: ・ | CH59: ・ | CJ59: ・ | CL59: ・ | CR59: ・ | CT59: ・ | CV59: ・ | DB59: ・ | DD59: ・ | DF59: ・ | DL59: ・ | DN59: ・ | DP59: ・ | EH59: =COUNTIF(D55:DD55,"/") -> 0
G60: ・ | I60: ・ | Q60: ・ | S60: ・ | AA60: ・ | AC60: ・ | AK60: ・ | AM60: ・ | AU60: ・ | AW60: ・ | BE60: ・ | BG60: ・ | BO60: ・ | BQ60: ・ | BY60: ・ | CA60: ・ | CI60: ・ | CK60: ・ | CS60: ・ | CU60: ・ | DC60: ・ | DE60: ・ | DM60: ・ | DO60: ・ | EH60: =COUNTIF(EI60:FA60,"1") -> 0 | EI60: =IF(AND(E62="1○",I55="/"),"1","0") -> 0 | EK60: =IF(AND(O62="1○",S55="/"),"1","0") -> 0 | EM60: =IF(AND(Y62="1○",AC55="/"),"1","0") -> 0 | EO60: =IF(AND(AI62="1○",AM55="/"),"1","0") -> 0 | EQ60: =IF(AND(AS62="1○",AW55="/"),"1","0") -> 0 | ES60: =IF(AND(BC62="1○",BG55="/"),"1","0") -> 0 | EU60: =IF(AND(BM62="1○",BQ55="/"),"1","0") -> 0 | EW60: =IF(AND(BW62="1○",CA55="/"),"1","0") -> 0 | EY60: =IF(AND(CG62="1○",CK55="/"),"1","0") -> 0 | FA60: =IF(OR(AND(CQ62="1○",CU55="/"),AND(DA62="1○",CZ55="/")),"1","0") -> 0
H61: ・ | R61: ・ | AB61: ・ | AL61: ・ | AV61: ・ | BF61: ・ | BP61: ・ | BZ61: ・ | CJ61: ・ | CT61: ・ | DD61: ・ | DN61: ・ | EH61: =COUNTIF(EI61:FA61,"1") -> 0 | EI61: =IF(AND(E62="1○",EI55+EJ55<10),"1","0") -> 0 | EK61: =IF(AND(O62="1○",EK55+EL55<10),"1","0") -> 0 | EM61: =IF(AND(Y62="1○",EM55+EN55<10),"1","0") -> 0 | EO61: =IF(AND(AI62="1○",EO55+EP55<10),"1","0") -> 0 | EQ61: =IF(AND(AS62="1○",EQ55+ER55<10),"1","0") -> 0 | ES61: =IF(AND(BC62="1○",ES55+ET55<10),"1","0") -> 0 | EU61: =IF(AND(BM62="1○",EU55+EV55<10),"1","0") -> 0 | EW61: =IF(AND(BW62="1○",EW55+EX55<10),"1","0") -> 0 | EY61: =IF(AND(CG62="1○",EY55+EZ55<10),"1","0") -> 0 | FA61: =IF(OR(AND(CQ62="1○",FA55+FB55<10),AND(DA62="1○",FB55+FC55<10)),"1","0") -> 0
C64: Player 2 | D64: 1 | N64: 2 | X64: 3 | AH64: 4 | AR64: 5 | BB64: 6 | BL64: 7 | BV64: 8 | CF64: 9 | CP64: 10 | EI64: 1 | EK64: 2 | EM64: 3 | EO64: 4 | EQ64: 5 | ES64: 6 | EU64: 7 | EW64: 8 | EY64: 9 | FA64: 10
D65: =IF(EI65=10,"X",IF(AND(EI65=0,OR(E72="1F",E72="1,2F")),"F",IF(EI65=0,"G",IF(AND(EI65=8,E72="1○"),"⑧",IF(AND(EI65=7,E72="1○"),"⑦",IF(AND(EI65=6,E72="1○"),"⑥",IF(AND(EI65=5,E72="1○"),"⑤",IF(AND(EI65=4,E72="1○"),"④",EI65)))))))) -> X | I65: =IF(AND(EI65<10,EI65+EJ65=10),"/",IF(EI65=10,"",IF(OR(AND(EJ65=0,E72="2F"),AND(EJ65=0,E72="1,2F")),"F",IF(EJ65=0,"-",EJ65)))) ->  | N65: =IF(EK65=10,"X",IF(AND(EK65=0,OR(O72="1F",O72="1,2F")),"F",IF(EK65=0,"G",IF(AND(EK65=8,O72="1○"),"⑧",IF(AND(EK65=7,O72="1○"),"⑦",IF(AND(EK65=6,O72="1○"),"⑥",IF(AND(EK65=5,O72="1○"),"⑤",IF(AND(EK65=4,O72="1○"),"④",EK65)))))))) -> X | S65: =IF(AND(EK65<10,EK65+EL65=10),"/",IF(EK65=10,"",IF(OR(AND(EL65=0,O72="2F"),AND(EL65=0,O72="1,2F")),"F",IF(EL65=0,"-",EL65)))) ->  | X65: =IF(EM65=10,"X",IF(AND(EM65=0,OR(Y72="1F",Y72="1,2F")),"F",IF(EM65=0,"G",IF(AND(EM65=8,Y72="1○"),"⑧",IF(AND(EM65=7,Y72="1○"),"⑦",IF(AND(EM65=6,Y72="1○"),"⑥",IF(AND(EM65=5,Y72="1○"),"⑤",IF(AND(EM65=4,Y72="1○"),"④",EM65)))))))) -> X | AC65: =IF(AND(EM65<10,EM65+EN65=10),"/",IF(EM65=10,"",IF(OR(AND(EN65=0,Y72="2F"),AND(EN65=0,Y72="1,2F")),"F",IF(EN65=0,"-",EN65)))) ->  | AH65: =IF(EO65=10,"X",IF(AND(EO65=0,OR(AI72="1F",AI72="1,2F")),"F",IF(EO65=0,"G",IF(AND(EO65=8,AI72="1○"),"⑧",IF(AND(EO65=7,AI72="1○"),"⑦",IF(AND(EO65=6,AI72="1○"),"⑥",IF(AND(EO65=5,AI72="1○"),"⑤",IF(AND(EO65=4,AI72="1○"),"④",EO65)))))))) -> X | AM65: =IF(AND(EO65<10,EO65+EP65=10),"/",IF(EO65=10,"",IF(OR(AND(EP65=0,AI72="2F"),AND(EP65=0,AI72="1,2F")),"F",IF(EP65=0,"-",EP65)))) ->  | AR65: =IF(EQ65=10,"X",IF(AND(EQ65=0,OR(AS72="1F",AS72="1,2F")),"F",IF(EQ65=0,"G",IF(AND(EQ65=8,AS72="1○"),"⑧",IF(AND(EQ65=7,AS72="1○"),"⑦",IF(AND(EQ65=6,AS72="1○"),"⑥",IF(AND(EQ65=5,AS72="1○"),"⑤",IF(AND(EQ65=4,AS72="1○"),"④",EQ65)))))))) -> X | AW65: =IF(AND(EQ65<10,EQ65+ER65=10),"/",IF(EQ65=10,"",IF(OR(AND(ER65=0,AS72="2F"),AND(ER65=0,AS72="1,2F")),"F",IF(ER65=0,"-",ER65)))) ->  | BB65: =IF(ES65=10,"X",IF(AND(ES65=0,OR(BC72="1F",BC72="1,2F")),"F",IF(ES65=0,"G",IF(AND(ES65=8,BC72="1○"),"⑧",IF(AND(ES65=7,BC72="1○"),"⑦",IF(AND(ES65=6,BC72="1○"),"⑥",IF(AND(ES65=5,BC72="1○"),"⑤",IF(AND(ES65=4,BC72="1○"),"④",ES65)))))))) -> X | BG65: =IF(AND(ES65<10,ES65+ET65=10),"/",IF(ES65=10,"",IF(OR(AND(ET65=0,BC72="2F"),AND(ET65=0,BC72="1,2F")),"F",IF(ET65=0,"-",ET65)))) ->  | BL65: =IF(EU65=10,"X",IF(AND(EU65=0,OR(BM72="1F",BM72="1,2F")),"F",IF(EU65=0,"G",IF(AND(EU65=8,BM72="1○"),"⑧",IF(AND(EU65=7,BM72="1○"),"⑦",IF(AND(EU65=6,BM72="1○"),"⑥",IF(AND(EU65=5,BM72="1○"),"⑤",IF(AND(EU65=4,BM72="1○"),"④",EU65)))))))) -> X | BQ65: =IF(AND(EU65<10,EU65+EV65=10),"/",IF(EU65=10,"",IF(OR(AND(EV65=0,BM72="2F"),AND(EV65=0,BM72="1,2F")),"F",IF(EV65=0,"-",EV65)))) ->  | BV65: =IF(EW65=10,"X",IF(AND(EW65=0,OR(BW72="1F",BW72="1,2F")),"F",IF(EW65=0,"G",IF(AND(EW65=8,BW72="1○"),"⑧",IF(AND(EW65=7,BW72="1○"),"⑦",IF(AND(EW65=6,BW72="1○"),"⑥",IF(AND(EW65=5,BW72="1○"),"⑤",IF(AND(EW65=4,BW72="1○"),"④",EW65)))))))) -> X | CA65: =IF(AND(EW65<10,EW65+EX65=10),"/",IF(EW65=10,"",IF(OR(AND(EX65=0,BW72="2F"),AND(EX65=0,BW72="1,2F")),"F",IF(EX65=0,"-",EX65)))) ->  | CF65: =IF(EY65=10,"X",IF(AND(EY65=0,OR(CG72="1F",CG72="1,2F")),"F",IF(EY65=0,"G",IF(AND(EY65=8,CG72="1○"),"⑧",IF(AND(EY65=7,CG72="1○"),"⑦",IF(AND(EY65=6,CG72="1○"),"⑥",IF(AND(EY65=5,CG72="1○"),"⑤",IF(AND(EY65=4,CG72="1○"),"④",EY65)))))))) -> X | CK65: =IF(AND(EY65<10,EY65+EZ65=10),"/",IF(EY65=10,"",IF(OR(AND(EZ65=0,CG72="2F"),AND(EZ65=0,CG72="1,2F")),"F",IF(EZ65=0,"-",EZ65)))) ->  | CP65: =IF(FA65=10,"X",IF(AND(FA65=0,OR(CQ72="1F",CQ72="1,2F")),"F",IF(FA65=0,"G",IF(AND(FA65=8,CQ72="1○"),"⑧",IF(AND(FA65=7,CQ72="1○"),"⑦",IF(AND(FA65=6,CQ72="1○"),"⑥",IF(AND(FA65=5,CQ72="1○"),"⑤",IF(AND(FA65=4,CQ72="1○"),"④",FA65)))))))) -> X | CU65: =IF(AND(FA65=10,FB65=10),"X",IF(AND(FA65<10,FA65+FB65=10),"/",IF(OR(AND(FA65=10,FB65=0,DA72="1F"),AND(FA65=10,FB65=0,DA72="1,2F")),"F",IF(AND(FA65=10,FB65=0),"G",IF(AND(FA65=10,FB65=8,DA72="1○"),"⑧",IF(AND(FA65=10,FB65=7,DA72="1○"),"⑦",IF(AND(FA65=10,FB65=6,DA72="1○"),"⑥",IF(AND(FA65=10,FB65=5,DA72="1○"),"⑤",IF(AND(FA65=10,FB65=4,DA72="1○"),"④",IF(AND(FA65=10,FB65<10),FB65,IF(OR(AND(FA65<10,FB65=0,CQ72="2F"),AND(FA65<10,FB65=0,CQ72="1,2F")),"F",IF(AND(FA65<10,FB65=0),"-",FB65)))))))))))) -> X | CZ65: =IF(FC65=10,"X",IF(OR(AND(FB65=10,FC65=8,DK72="1○"),AND(FA65+FB65=10,FC65=8,DA72="1○")),"⑧",IF(OR(AND(FB65=10,FC65=7,DK72="1○"),AND(FA65+FB65=10,FC65=7,DA72="1○")),"⑦",IF(OR(AND(FB65=10,FC65=6,DK72="1○"),AND(FA65+FB65=10,FC65=6,DA72="1○")),"⑥",IF(OR(AND(FB65=10,FC65=5,DK72="1○"),AND(FA65+FB65=10,FC65=5,DA72="1○")),"⑤",IF(OR(AND(FB65=10,FC65=4,DK72="1○"),AND(FA65+FB65=10,FC65=4,DA72="1○")),"④",IF(OR(AND(FB65=10,FC65=0,DK72="1F"),AND(FB65<10,FC65=0,DA72="2F"),AND(FB65<10,FC65=0,DA72="1,2F")),"F",IF(AND(FA65=10,FB65<10,FB65+FC65=10),"/",IF(AND(OR(FB65=10,AND(FA65+FB65=10,FA65<10)),FC65=0),"G",IF(AND(FA65=10,FB65<10,FC65=0),"-",IF(FA65+FB65<10,"",FC65))))))))))) -> X | DE65: ( | DG65: =EH69-EH70 -> 0 | DK65: , | DM65: =IF(FB66=0,(DG65+DS65)-EH71,(DG65+DS65+1)-EH71) -> 0 | DQ65: ) | DS65: =COUNTIF(EI66:FA66,">0") -> 0 | EI65: =COUNTIF(D67:M72,"・") -> 10 | EJ65: =COUNTIF(D67:M72,"○") -> 0 | EK65: =COUNTIF(N67:W72,"・") -> 10 | EL65: =COUNTIF(N67:W72,"○") -> 0 | EM65: =COUNTIF(X67:AG72,"・") -> 10 | EN65: =COUNTIF(X67:AG72,"○") -> 0 | EO65: =COUNTIF(AH67:AQ72,"・") -> 10 | EP65: =COUNTIF(AH67:AQ72,"○") -> 0 | EQ65: =COUNTIF(AR67:BA72,"・") -> 10 | ER65: =COUNTIF(AR67:BA72,"○") -> 0 | ES65: =COUNTIF(BB67:BK72,"・") -> 10 | ET65: =COUNTIF(BB67:BK72,"○") -> 0 | EU65: =COUNTIF(BL67:BU72,"・") -> 10 | EV65: =COUNTIF(BL67:BU72,"○") -> 0 | EW65: =COUNTIF(BV67:CE72,"・") -> 10 | EX65: =COUNTIF(BV67:CE72,"○") -> 0 | EY65: =COUNTIF(CF67:CO72,"・") -> 10 | EZ65: =COUNTIF(CF67:CO72,"○") -> 0 | FA65: =COUNTIF(CP67:CY72,"・") -> 10 | FB65: =IF(FA65=10,COUNTIF(CZ67:DI72,"・"),COUNTIF(CP67:CY72,"○")) -> 10 | FC65: =IF(AND(FA65=10,FB65=10),COUNTIF(DJ67:DS72,"・"),IF(AND(FA65=10,FB65<10),COUNTIF(CZ67:DI72,"○"),IF(AND(FA65<10,FA65+FB65=10),COUNTIF(CZ67:DI72,"・"),"0"))) -> 10
D66: =IF(AND(EI65=10,EK65=10),20+EM65,IF(AND(EI65=10,EK65<10),10+EK65+EL65,IF(AND(EI65<10,EI65+EJ65=10),10+EK65,EI65+EJ65))) -> 30 | N66: =IF(AND(EK65=10,EM65=10),D66+20+EO65,IF(AND(EK65=10,EM65<10),D66+10+EM65+EN65,IF(AND(EK65<10,EK65+EL65=10),D66+10+EM65,D66+EK65+EL65))) -> 60 | X66: =IF(AND(EM65=10,EO65=10),N66+20+EQ65,IF(AND(EM65=10,EO65<10),N66+10+EO65+EP65,IF(AND(EM65<10,EM65+EN65=10),N66+10+EO65,N66+EM65+EN65))) -> 90 | AH66: =IF(AND(EO65=10,EQ65=10),X66+20+ES65,IF(AND(EO65=10,EQ65<10),X66+10+EQ65+ER65,IF(AND(EO65<10,EO65+EP65=10),X66+10+EQ65,X66+EO65+EP65))) -> 120 | AR66: =IF(AND(EQ65=10,ES65=10),AH66+20+EU65,IF(AND(EQ65=10,ES65<10),AH66+10+ES65+ET65,IF(AND(EQ65<10,EQ65+ER65=10),AH66+10+ES65,AH66+EQ65+ER65))) -> 150 | BB66: =IF(AND(ES65=10,EU65=10),AR66+20+EW65,IF(AND(ES65=10,EU65<10),AR66+10+EU65+EV65,IF(AND(ES65<10,ES65+ET65=10),AR66+10+EU65,AR66+ES65+ET65))) -> 180 | BL66: =IF(AND(EU65=10,EW65=10),BB66+20+EY65,IF(AND(EU65=10,EW65<10),BB66+10+EW65+EX65,IF(AND(EU65<10,EU65+EV65=10),BB66+10+EW65,BB66+EU65+EV65))) -> 210 | BV66: =IF(AND(EW65=10,EY65=10),BL66+20+FA65,IF(AND(EW65=10,EY65<10),BL66+10+EY65+EZ65,IF(AND(EW65<10,EW65+EX65=10),BL66+10+EY65,BL66+EW65+EX65))) -> 240 | CF66: =IF(AND(EY65=10,FA65=10),BV66+20+FB65,IF(AND(EY65=10,FA65<10),BV66+10+FA65+FB65,IF(AND(EY65<10,EY65+EZ65=10),BV66+10+FA65,BV66+EY65+EZ65))) -> 270 | CP66: =CF66+FA65+FB65+FC65 -> 300 | DE66: 〈 | DG66: =COUNTIF(D72:DS72,"P")+COUNTIF(D72:DS72,"S")+COUNTIF(D72:DS72,"C") -> 0 | DK66: , | DM66: =COUNTIF(D72:DS72,"P") -> 0 | DQ66: , | DS66: =COUNTIF(EI68:FA68,"1") -> 10 | DW66: 〉 | DY66: =COUNTIF(D72:DS72,"H") -> 0 | EI66: =COUNTIF(D67:M72,"●") -> 0 | EK66: =COUNTIF(N67:W72,"●") -> 0 | EM66: =COUNTIF(X67:AG72,"●") -> 0 | EO66: =COUNTIF(AH67:AQ72,"●") -> 0 | EQ66: =COUNTIF(AR67:BA72,"●") -> 0 | ES66: =COUNTIF(BB67:BK72,"●") -> 0 | EU66: =COUNTIF(BL67:BU72,"●") -> 0 | EW66: =COUNTIF(BV67:CE72,"●") -> 0 | EY66: =COUNTIF(CF67:CO72,"●") -> 0 | FA66: =COUNTIF(CP67:CY72,"●") -> 0 | FB66: =COUNTIF(CZ67:DI72,"●") -> 0 | FC66: =COUNTIF(DJ67:DS72,"●") -> 0
E68: ・ | G68: ・ | I68: ・ | K68: ・ | O68: ・ | Q68: ・ | S68: ・ | U68: ・ | Y68: ・ | AA68: ・ | AC68: ・ | AE68: ・ | AI68: ・ | AK68: ・ | AM68: ・ | AO68: ・ | AS68: ・ | AU68: ・ | AW68: ・ | AY68: ・ | BC68: ・ | BE68: ・ | BG68: ・ | BI68: ・ | BM68: ・ | BO68: ・ | BQ68: ・ | BS68: ・ | BW68: ・ | BY68: ・ | CA68: ・ | CC68: ・ | CG68: ・ | CI68: ・ | CK68: ・ | CM68: ・ | CQ68: ・ | CS68: ・ | CU68: ・ | CW68: ・ | DA68: ・ | DC68: ・ | DE68: ・ | DG68: ・ | DK68: ・ | DM68: ・ | DO68: ・ | DQ68: ・ | EI68: =IF(AND(EI65=10,EK65=10),"1","0") -> 1 | EK68: =IF(AND(EK65=10,EM65=10),"1","0") -> 1 | EM68: =IF(AND(EM65=10,EO65=10),"1","0") -> 1 | EO68: =IF(AND(EO65=10,EQ65=10),"1","0") -> 1 | EQ68: =IF(AND(EQ65=10,ES65=10),"1","0") -> 1 | ES68: =IF(AND(ES65=10,EU65=10),"1","0") -> 1 | EU68: =IF(AND(EU65=10,EW65=10),"1","0") -> 1 | EW68: =IF(AND(EW65=10,EY65=10),"1","0") -> 1 | EY68: =IF(AND(EY65=10,FA65=10),"1","0") -> 1 | FA68: =IF(AND(FA65=10,FB65=10),"1","0") -> 1
F69: ・ | H69: ・ | J69: ・ | P69: ・ | R69: ・ | T69: ・ | Z69: ・ | AB69: ・ | AD69: ・ | AJ69: ・ | AL69: ・ | AN69: ・ | AT69: ・ | AV69: ・ | AX69: ・ | BD69: ・ | BF69: ・ | BH69: ・ | BN69: ・ | BP69: ・ | BR69: ・ | BX69: ・ | BZ69: ・ | CB69: ・ | CH69: ・ | CJ69: ・ | CL69: ・ | CR69: ・ | CT69: ・ | CV69: ・ | DB69: ・ | DD69: ・ | DF69: ・ | DL69: ・ | DN69: ・ | DP69: ・ | EH69: =COUNTIF(D65:DD65,"/") -> 0
G70: ・ | I70: ・ | Q70: ・ | S70: ・ | AA70: ・ | AC70: ・ | AK70: ・ | AM70: ・ | AU70: ・ | AW70: ・ | BE70: ・ | BG70: ・ | BO70: ・ | BQ70: ・ | BY70: ・ | CA70: ・ | CI70: ・ | CK70: ・ | CS70: ・ | CU70: ・ | DC70: ・ | DE70: ・ | DM70: ・ | DO70: ・ | EH70: =COUNTIF(EI70:FA70,"1") -> 0 | EI70: =IF(AND(E72="1○",I65="/"),"1","0") -> 0 | EK70: =IF(AND(O72="1○",S65="/"),"1","0") -> 0 | EM70: =IF(AND(Y72="1○",AC65="/"),"1","0") -> 0 | EO70: =IF(AND(AI72="1○",AM65="/"),"1","0") -> 0 | EQ70: =IF(AND(AS72="1○",AW65="/"),"1","0") -> 0 | ES70: =IF(AND(BC72="1○",BG65="/"),"1","0") -> 0 | EU70: =IF(AND(BM72="1○",BQ65="/"),"1","0") -> 0 | EW70: =IF(AND(BW72="1○",CA65="/"),"1","0") -> 0 | EY70: =IF(AND(CG72="1○",CK65="/"),"1","0") -> 0 | FA70: =IF(OR(AND(CQ72="1○",CU65="/"),AND(DA72="1○",CZ65="/")),"1","0") -> 0
H71: ・ | R71: ・ | AB71: ・ | AL71: ・ | AV71: ・ | BF71: ・ | BP71: ・ | BZ71: ・ | CJ71: ・ | CT71: ・ | DD71: ・ | DN71: ・ | EH71: =COUNTIF(EI71:FA71,"1") -> 0 | EI71: =IF(AND(E72="1○",EI65+EJ65<10),"1","0") -> 0 | EK71: =IF(AND(O72="1○",EK65+EL65<10),"1","0") -> 0 | EM71: =IF(AND(Y72="1○",EM65+EN65<10),"1","0") -> 0 | EO71: =IF(AND(AI72="1○",EO65+EP65<10),"1","0") -> 0 | EQ71: =IF(AND(AS72="1○",EQ65+ER65<10),"1","0") -> 0 | ES71: =IF(AND(BC72="1○",ES65+ET65<10),"1","0") -> 0 | EU71: =IF(AND(BM72="1○",EU65+EV65<10),"1","0") -> 0 | EW71: =IF(AND(BW72="1○",EW65+EX65<10),"1","0") -> 0 | EY71: =IF(AND(CG72="1○",EY65+EZ65<10),"1","0") -> 0 | FA71: =IF(OR(AND(CQ72="1○",FA65+FB65<10),AND(DA72="1○",FB65+FC65<10)),"1","0") -> 0
C74: Player 3 | D74: 1 | N74: 2 | X74: 3 | AH74: 4 | AR74: 5 | BB74: 6 | BL74: 7 | BV74: 8 | CF74: 9 | CP74: 10 | EI74: 1 | EK74: 2 | EM74: 3 | EO74: 4 | EQ74: 5 | ES74: 6 | EU74: 7 | EW74: 8 | EY74: 9 | FA74: 10
D75: =IF(EI75=10,"X",IF(AND(EI75=0,OR(E82="1F",E82="1,2F")),"F",IF(EI75=0,"G",IF(AND(EI75=8,E82="1○"),"⑧",IF(AND(EI75=7,E82="1○"),"⑦",IF(AND(EI75=6,E82="1○"),"⑥",IF(AND(EI75=5,E82="1○"),"⑤",IF(AND(EI75=4,E82="1○"),"④",EI75)))))))) -> X | I75: =IF(AND(EI75<10,EI75+EJ75=10),"/",IF(EI75=10,"",IF(OR(AND(EJ75=0,E82="2F"),AND(EJ75=0,E82="1,2F")),"F",IF(EJ75=0,"-",EJ75)))) ->  | N75: =IF(EK75=10,"X",IF(AND(EK75=0,OR(O82="1F",O82="1,2F")),"F",IF(EK75=0,"G",IF(AND(EK75=8,O82="1○"),"⑧",IF(AND(EK75=7,O82="1○"),"⑦",IF(AND(EK75=6,O82="1○"),"⑥",IF(AND(EK75=5,O82="1○"),"⑤",IF(AND(EK75=4,O82="1○"),"④",EK75)))))))) -> X | S75: =IF(AND(EK75<10,EK75+EL75=10),"/",IF(EK75=10,"",IF(OR(AND(EL75=0,O82="2F"),AND(EL75=0,O82="1,2F")),"F",IF(EL75=0,"-",EL75)))) ->  | X75: =IF(EM75=10,"X",IF(AND(EM75=0,OR(Y82="1F",Y82="1,2F")),"F",IF(EM75=0,"G",IF(AND(EM75=8,Y82="1○"),"⑧",IF(AND(EM75=7,Y82="1○"),"⑦",IF(AND(EM75=6,Y82="1○"),"⑥",IF(AND(EM75=5,Y82="1○"),"⑤",IF(AND(EM75=4,Y82="1○"),"④",EM75)))))))) -> X | AC75: =IF(AND(EM75<10,EM75+EN75=10),"/",IF(EM75=10,"",IF(OR(AND(EN75=0,Y82="2F"),AND(EN75=0,Y82="1,2F")),"F",IF(EN75=0,"-",EN75)))) ->  | AH75: =IF(EO75=10,"X",IF(AND(EO75=0,OR(AI82="1F",AI82="1,2F")),"F",IF(EO75=0,"G",IF(AND(EO75=8,AI82="1○"),"⑧",IF(AND(EO75=7,AI82="1○"),"⑦",IF(AND(EO75=6,AI82="1○"),"⑥",IF(AND(EO75=5,AI82="1○"),"⑤",IF(AND(EO75=4,AI82="1○"),"④",EO75)))))))) -> X | AM75: =IF(AND(EO75<10,EO75+EP75=10),"/",IF(EO75=10,"",IF(OR(AND(EP75=0,AI82="2F"),AND(EP75=0,AI82="1,2F")),"F",IF(EP75=0,"-",EP75)))) ->  | AR75: =IF(EQ75=10,"X",IF(AND(EQ75=0,OR(AS82="1F",AS82="1,2F")),"F",IF(EQ75=0,"G",IF(AND(EQ75=8,AS82="1○"),"⑧",IF(AND(EQ75=7,AS82="1○"),"⑦",IF(AND(EQ75=6,AS82="1○"),"⑥",IF(AND(EQ75=5,AS82="1○"),"⑤",IF(AND(EQ75=4,AS82="1○"),"④",EQ75)))))))) -> X | AW75: =IF(AND(EQ75<10,EQ75+ER75=10),"/",IF(EQ75=10,"",IF(OR(AND(ER75=0,AS82="2F"),AND(ER75=0,AS82="1,2F")),"F",IF(ER75=0,"-",ER75)))) ->  | BB75: =IF(ES75=10,"X",IF(AND(ES75=0,OR(BC82="1F",BC82="1,2F")),"F",IF(ES75=0,"G",IF(AND(ES75=8,BC82="1○"),"⑧",IF(AND(ES75=7,BC82="1○"),"⑦",IF(AND(ES75=6,BC82="1○"),"⑥",IF(AND(ES75=5,BC82="1○"),"⑤",IF(AND(ES75=4,BC82="1○"),"④",ES75)))))))) -> X | BG75: =IF(AND(ES75<10,ES75+ET75=10),"/",IF(ES75=10,"",IF(OR(AND(ET75=0,BC82="2F"),AND(ET75=0,BC82="1,2F")),"F",IF(ET75=0,"-",ET75)))) ->  | BL75: =IF(EU75=10,"X",IF(AND(EU75=0,OR(BM82="1F",BM82="1,2F")),"F",IF(EU75=0,"G",IF(AND(EU75=8,BM82="1○"),"⑧",IF(AND(EU75=7,BM82="1○"),"⑦",IF(AND(EU75=6,BM82="1○"),"⑥",IF(AND(EU75=5,BM82="1○"),"⑤",IF(AND(EU75=4,BM82="1○"),"④",EU75)))))))) -> X | BQ75: =IF(AND(EU75<10,EU75+EV75=10),"/",IF(EU75=10,"",IF(OR(AND(EV75=0,BM82="2F"),AND(EV75=0,BM82="1,2F")),"F",IF(EV75=0,"-",EV75)))) ->  | BV75: =IF(EW75=10,"X",IF(AND(EW75=0,OR(BW82="1F",BW82="1,2F")),"F",IF(EW75=0,"G",IF(AND(EW75=8,BW82="1○"),"⑧",IF(AND(EW75=7,BW82="1○"),"⑦",IF(AND(EW75=6,BW82="1○"),"⑥",IF(AND(EW75=5,BW82="1○"),"⑤",IF(AND(EW75=4,BW82="1○"),"④",EW75)))))))) -> X | CA75: =IF(AND(EW75<10,EW75+EX75=10),"/",IF(EW75=10,"",IF(OR(AND(EX75=0,BW82="2F"),AND(EX75=0,BW82="1,2F")),"F",IF(EX75=0,"-",EX75)))) ->  | CF75: =IF(EY75=10,"X",IF(AND(EY75=0,OR(CG82="1F",CG82="1,2F")),"F",IF(EY75=0,"G",IF(AND(EY75=8,CG82="1○"),"⑧",IF(AND(EY75=7,CG82="1○"),"⑦",IF(AND(EY75=6,CG82="1○"),"⑥",IF(AND(EY75=5,CG82="1○"),"⑤",IF(AND(EY75=4,CG82="1○"),"④",EY75)))))))) -> X | CK75: =IF(AND(EY75<10,EY75+EZ75=10),"/",IF(EY75=10,"",IF(OR(AND(EZ75=0,CG82="2F"),AND(EZ75=0,CG82="1,2F")),"F",IF(EZ75=0,"-",EZ75)))) ->  | CP75: =IF(FA75=10,"X",IF(AND(FA75=0,OR(CQ82="1F",CQ82="1,2F")),"F",IF(FA75=0,"G",IF(AND(FA75=8,CQ82="1○"),"⑧",IF(AND(FA75=7,CQ82="1○"),"⑦",IF(AND(FA75=6,CQ82="1○"),"⑥",IF(AND(FA75=5,CQ82="1○"),"⑤",IF(AND(FA75=4,CQ82="1○"),"④",FA75)))))))) -> X | CU75: =IF(AND(FA75=10,FB75=10),"X",IF(AND(FA75<10,FA75+FB75=10),"/",IF(OR(AND(FA75=10,FB75=0,DA82="1F"),AND(FA75=10,FB75=0,DA82="1,2F")),"F",IF(AND(FA75=10,FB75=0),"G",IF(AND(FA75=10,FB75=8,DA82="1○"),"⑧",IF(AND(FA75=10,FB75=7,DA82="1○"),"⑦",IF(AND(FA75=10,FB75=6,DA82="1○"),"⑥",IF(AND(FA75=10,FB75=5,DA82="1○"),"⑤",IF(AND(FA75=10,FB75=4,DA82="1○"),"④",IF(AND(FA75=10,FB75<10),FB75,IF(OR(AND(FA75<10,FB75=0,CQ82="2F"),AND(FA75<10,FB75=0,CQ82="1,2F")),"F",IF(AND(FA75<10,FB75=0),"-",FB75)))))))))))) -> X | CZ75: =IF(FC75=10,"X",IF(OR(AND(FB75=10,FC75=8,DK82="1○"),AND(FA75+FB75=10,FC75=8,DA82="1○")),"⑧",IF(OR(AND(FB75=10,FC75=7,DK82="1○"),AND(FA75+FB75=10,FC75=7,DA82="1○")),"⑦",IF(OR(AND(FB75=10,FC75=6,DK82="1○"),AND(FA75+FB75=10,FC75=6,DA82="1○")),"⑥",IF(OR(AND(FB75=10,FC75=5,DK82="1○"),AND(FA75+FB75=10,FC75=5,DA82="1○")),"⑤",IF(OR(AND(FB75=10,FC75=4,DK82="1○"),AND(FA75+FB75=10,FC75=4,DA82="1○")),"④",IF(OR(AND(FB75=10,FC75=0,DK82="1F"),AND(FB75<10,FC75=0,DA82="2F"),AND(FB75<10,FC75=0,DA82="1,2F")),"F",IF(AND(FA75=10,FB75<10,FB75+FC75=10),"/",IF(AND(OR(FB75=10,AND(FA75+FB75=10,FA75<10)),FC75=0),"G",IF(AND(FA75=10,FB75<10,FC75=0),"-",IF(FA75+FB75<10,"",FC75))))))))))) -> X | DE75: ( | DG75: =EH79-EH80 -> 0 | DK75: , | DM75: =IF(FB76=0,(DG75+DS75)-EH81,(DG75+DS75+1)-EH81) -> 0 | DQ75: ) | DS75: =COUNTIF(EI76:FA76,">0") -> 0 | EI75: =COUNTIF(D77:M82,"・") -> 10 | EJ75: =COUNTIF(D77:M82,"○") -> 0 | EK75: =COUNTIF(N77:W82,"・") -> 10 | EL75: =COUNTIF(N77:W82,"○") -> 0 | EM75: =COUNTIF(X77:AG82,"・") -> 10 | EN75: =COUNTIF(X77:AG82,"○") -> 0 | EO75: =COUNTIF(AH77:AQ82,"・") -> 10 | EP75: =COUNTIF(AH77:AQ82,"○") -> 0 | EQ75: =COUNTIF(AR77:BA82,"・") -> 10 | ER75: =COUNTIF(AR77:BA82,"○") -> 0 | ES75: =COUNTIF(BB77:BK82,"・") -> 10 | ET75: =COUNTIF(BB77:BK82,"○") -> 0 | EU75: =COUNTIF(BL77:BU82,"・") -> 10 | EV75: =COUNTIF(BL77:BU82,"○") -> 0 | EW75: =COUNTIF(BV77:CE82,"・") -> 10 | EX75: =COUNTIF(BV77:CE82,"○") -> 0 | EY75: =COUNTIF(CF77:CO82,"・") -> 10 | EZ75: =COUNTIF(CF77:CO82,"○") -> 0 | FA75: =COUNTIF(CP77:CY82,"・") -> 10 | FB75: =IF(FA75=10,COUNTIF(CZ77:DI82,"・"),COUNTIF(CP77:CY82,"○")) -> 10 | FC75: =IF(AND(FA75=10,FB75=10),COUNTIF(DJ77:DS82,"・"),IF(AND(FA75=10,FB75<10),COUNTIF(CZ77:DI82,"○"),IF(AND(FA75<10,FA75+FB75=10),COUNTIF(CZ77:DI82,"・"),"0"))) -> 10
D76: =IF(AND(EI75=10,EK75=10),20+EM75,IF(AND(EI75=10,EK75<10),10+EK75+EL75,IF(AND(EI75<10,EI75+EJ75=10),10+EK75,EI75+EJ75))) -> 30 | N76: =IF(AND(EK75=10,EM75=10),D76+20+EO75,IF(AND(EK75=10,EM75<10),D76+10+EM75+EN75,IF(AND(EK75<10,EK75+EL75=10),D76+10+EM75,D76+EK75+EL75))) -> 60 | X76: =IF(AND(EM75=10,EO75=10),N76+20+EQ75,IF(AND(EM75=10,EO75<10),N76+10+EO75+EP75,IF(AND(EM75<10,EM75+EN75=10),N76+10+EO75,N76+EM75+EN75))) -> 90 | AH76: =IF(AND(EO75=10,EQ75=10),X76+20+ES75,IF(AND(EO75=10,EQ75<10),X76+10+EQ75+ER75,IF(AND(EO75<10,EO75+EP75=10),X76+10+EQ75,X76+EO75+EP75))) -> 120 | AR76: =IF(AND(EQ75=10,ES75=10),AH76+20+EU75,IF(AND(EQ75=10,ES75<10),AH76+10+ES75+ET75,IF(AND(EQ75<10,EQ75+ER75=10),AH76+10+ES75,AH76+EQ75+ER75))) -> 150 | BB76: =IF(AND(ES75=10,EU75=10),AR76+20+EW75,IF(AND(ES75=10,EU75<10),AR76+10+EU75+EV75,IF(AND(ES75<10,ES75+ET75=10),AR76+10+EU75,AR76+ES75+ET75))) -> 180 | BL76: =IF(AND(EU75=10,EW75=10),BB76+20+EY75,IF(AND(EU75=10,EW75<10),BB76+10+EW75+EX75,IF(AND(EU75<10,EU75+EV75=10),BB76+10+EW75,BB76+EU75+EV75))) -> 210 | BV76: =IF(AND(EW75=10,EY75=10),BL76+20+FA75,IF(AND(EW75=10,EY75<10),BL76+10+EY75+EZ75,IF(AND(EW75<10,EW75+EX75=10),BL76+10+EY75,BL76+EW75+EX75))) -> 240 | CF76: =IF(AND(EY75=10,FA75=10),BV76+20+FB75,IF(AND(EY75=10,FA75<10),BV76+10+FA75+FB75,IF(AND(EY75<10,EY75+EZ75=10),BV76+10+FA75,BV76+EY75+EZ75))) -> 270 | CP76: =CF76+FA75+FB75+FC75 -> 300 | DE76: 〈 | DG76: =COUNTIF(D82:DS82,"P")+COUNTIF(D82:DS82,"S")+COUNTIF(D82:DS82,"C") -> 0 | DK76: , | DM76: =COUNTIF(D82:DS82,"P") -> 0 | DQ76: , | DS76: =COUNTIF(EI78:FA78,"1") -> 10 | DW76: 〉 | DY76: =COUNTIF(D82:DS82,"H") -> 0 | EI76: =COUNTIF(D77:M82,"●") -> 0 | EK76: =COUNTIF(N77:W82,"●") -> 0 | EM76: =COUNTIF(X77:AG82,"●") -> 0 | EO76: =COUNTIF(AH77:AQ82,"●") -> 0 | EQ76: =COUNTIF(AR77:BA82,"●") -> 0 | ES76: =COUNTIF(BB77:BK82,"●") -> 0 | EU76: =COUNTIF(BL77:BU82,"●") -> 0 | EW76: =COUNTIF(BV77:CE82,"●") -> 0 | EY76: =COUNTIF(CF77:CO82,"●") -> 0 | FA76: =COUNTIF(CP77:CY82,"●") -> 0 | FB76: =COUNTIF(CZ77:DI82,"●") -> 0 | FC76: =COUNTIF(DJ77:DS82,"●") -> 0
E78: ・ | G78: ・ | I78: ・ | K78: ・ | O78: ・ | Q78: ・ | S78: ・ | U78: ・ | Y78: ・ | AA78: ・ | AC78: ・ | AE78: ・ | AI78: ・ | AK78: ・ | AM78: ・ | AO78: ・ | AS78: ・ | AU78: ・ | AW78: ・ | AY78: ・ | BC78: ・ | BE78: ・ | BG78: ・ | BI78: ・ | BM78: ・ | BO78: ・ | BQ78: ・ | BS78: ・ | BW78: ・ | BY78: ・ | CA78: ・ | CC78: ・ | CG78: ・ | CI78: ・ | CK78: ・ | CM78: ・ | CQ78: ・ | CS78: ・ | CU78: ・ | CW78: ・ | DA78: ・ | DC78: ・ | DE78: ・ | DG78: ・ | DK78: ・ | DM78: ・ | DO78: ・ | DQ78: ・ | EI78: =IF(AND(EI75=10,EK75=10),"1","0") -> 1 | EK78: =IF(AND(EK75=10,EM75=10),"1","0") -> 1 | EM78: =IF(AND(EM75=10,EO75=10),"1","0") -> 1 | EO78: =IF(AND(EO75=10,EQ75=10),"1","0") -> 1 | EQ78: =IF(AND(EQ75=10,ES75=10),"1","0") -> 1 | ES78: =IF(AND(ES75=10,EU75=10),"1","0") -> 1 | EU78: =IF(AND(EU75=10,EW75=10),"1","0") -> 1 | EW78: =IF(AND(EW75=10,EY75=10),"1","0") -> 1 | EY78: =IF(AND(EY75=10,FA75=10),"1","0") -> 1 | FA78: =IF(AND(FA75=10,FB75=10),"1","0") -> 1
F79: ・ | H79: ・ | J79: ・ | P79: ・ | R79: ・ | T79: ・ | Z79: ・ | AB79: ・ | AD79: ・ | AJ79: ・ | AL79: ・ | AN79: ・ | AT79: ・ | AV79: ・ | AX79: ・ | BD79: ・ | BF79: ・ | BH79: ・ | BN79: ・ | BP79: ・ | BR79: ・ | BX79: ・ | BZ79: ・ | CB79: ・ | CH79: ・ | CJ79: ・ | CL79: ・ | CR79: ・ | CT79: ・ | CV79: ・ | DB79: ・ | DD79: ・ | DF79: ・ | DL79: ・ | DN79: ・ | DP79: ・ | EH79: =COUNTIF(D75:DD75,"/") -> 0
G80: ・ | I80: ・ | Q80: ・ | S80: ・ | AA80: ・ | AC80: ・ | AK80: ・ | AM80: ・ | AU80: ・ | AW80: ・ | BE80: ・ | BG80: ・ | BO80: ・ | BQ80: ・ | BY80: ・ | CA80: ・ | CI80: ・ | CK80: ・ | CS80: ・ | CU80: ・ | DC80: ・ | DE80: ・ | DM80: ・ | DO80: ・ | EH80: =COUNTIF(EI80:FA80,"1") -> 0 | EI80: =IF(AND(E82="1○",I75="/"),"1","0") -> 0 | EK80: =IF(AND(O82="1○",S75="/"),"1","0") -> 0 | EM80: =IF(AND(Y82="1○",AC75="/"),"1","0") -> 0 | EO80: =IF(AND(AI82="1○",AM75="/"),"1","0") -> 0 | EQ80: =IF(AND(AS82="1○",AW75="/"),"1","0") -> 0 | ES80: =IF(AND(BC82="1○",BG75="/"),"1","0") -> 0 | EU80: =IF(AND(BM82="1○",BQ75="/"),"1","0") -> 0 | EW80: =IF(AND(BW82="1○",CA75="/"),"1","0") -> 0 | EY80: =IF(AND(CG82="1○",CK75="/"),"1","0") -> 0 | FA80: =IF(OR(AND(CQ82="1○",CU75="/"),AND(DA82="1○",CZ75="/")),"1","0") -> 0
H81: ・ | R81: ・ | AB81: ・ | AL81: ・ | AV81: ・ | BF81: ・ | BP81: ・ | BZ81: ・ | CJ81: ・ | CT81: ・ | DD81: ・ | DN81: ・ | EH81: =COUNTIF(EI81:FA81,"1") -> 0 | EI81: =IF(AND(E82="1○",EI75+EJ75<10),"1","0") -> 0 | EK81: =IF(AND(O82="1○",EK75+EL75<10),"1","0") -> 0 | EM81: =IF(AND(Y82="1○",EM75+EN75<10),"1","0") -> 0 | EO81: =IF(AND(AI82="1○",EO75+EP75<10),"1","0") -> 0 | EQ81: =IF(AND(AS82="1○",EQ75+ER75<10),"1","0") -> 0 | ES81: =IF(AND(BC82="1○",ES75+ET75<10),"1","0") -> 0 | EU81: =IF(AND(BM82="1○",EU75+EV75<10),"1","0") -> 0 | EW81: =IF(AND(BW82="1○",EW75+EX75<10),"1","0") -> 0 | EY81: =IF(AND(CG82="1○",EY75+EZ75<10),"1","0") -> 0 | FA81: =IF(OR(AND(CQ82="1○",FA75+FB75<10),AND(DA82="1○",FB75+FC75<10)),"1","0") -> 0
C84: Player 4 | D84: 1 | N84: 2 | X84: 3 | AH84: 4 | AR84: 5 | BB84: 6 | BL84: 7 | BV84: 8 | CF84: 9 | CP84: 10 | EI84: 1 | EK84: 2 | EM84: 3 | EO84: 4 | EQ84: 5 | ES84: 6 | EU84: 7 | EW84: 8 | EY84: 9 | FA84: 10
D85: =IF(EI85=10,"X",IF(AND(EI85=0,OR(E92="1F",E92="1,2F")),"F",IF(EI85=0,"G",IF(AND(EI85=8,E92="1○"),"⑧",IF(AND(EI85=7,E92="1○"),"⑦",IF(AND(EI85=6,E92="1○"),"⑥",IF(AND(EI85=5,E92="1○"),"⑤",IF(AND(EI85=4,E92="1○"),"④",EI85)))))))) -> X | I85: =IF(AND(EI85<10,EI85+EJ85=10),"/",IF(EI85=10,"",IF(OR(AND(EJ85=0,E92="2F"),AND(EJ85=0,E92="1,2F")),"F",IF(EJ85=0,"-",EJ85)))) ->  | N85: =IF(EK85=10,"X",IF(AND(EK85=0,OR(O92="1F",O92="1,2F")),"F",IF(EK85=0,"G",IF(AND(EK85=8,O92="1○"),"⑧",IF(AND(EK85=7,O92="1○"),"⑦",IF(AND(EK85=6,O92="1○"),"⑥",IF(AND(EK85=5,O92="1○"),"⑤",IF(AND(EK85=4,O92="1○"),"④",EK85)))))))) -> X | S85: =IF(AND(EK85<10,EK85+EL85=10),"/",IF(EK85=10,"",IF(OR(AND(EL85=0,O92="2F"),AND(EL85=0,O92="1,2F")),"F",IF(EL85=0,"-",EL85)))) ->  | X85: =IF(EM85=10,"X",IF(AND(EM85=0,OR(Y92="1F",Y92="1,2F")),"F",IF(EM85=0,"G",IF(AND(EM85=8,Y92="1○"),"⑧",IF(AND(EM85=7,Y92="1○"),"⑦",IF(AND(EM85=6,Y92="1○"),"⑥",IF(AND(EM85=5,Y92="1○"),"⑤",IF(AND(EM85=4,Y92="1○"),"④",EM85)))))))) -> X | AC85: =IF(AND(EM85<10,EM85+EN85=10),"/",IF(EM85=10,"",IF(OR(AND(EN85=0,Y92="2F"),AND(EN85=0,Y92="1,2F")),"F",IF(EN85=0,"-",EN85)))) ->  | AH85: =IF(EO85=10,"X",IF(AND(EO85=0,OR(AI92="1F",AI92="1,2F")),"F",IF(EO85=0,"G",IF(AND(EO85=8,AI92="1○"),"⑧",IF(AND(EO85=7,AI92="1○"),"⑦",IF(AND(EO85=6,AI92="1○"),"⑥",IF(AND(EO85=5,AI92="1○"),"⑤",IF(AND(EO85=4,AI92="1○"),"④",EO85)))))))) -> X | AM85: =IF(AND(EO85<10,EO85+EP85=10),"/",IF(EO85=10,"",IF(OR(AND(EP85=0,AI92="2F"),AND(EP85=0,AI92="1,2F")),"F",IF(EP85=0,"-",EP85)))) ->  | AR85: =IF(EQ85=10,"X",IF(AND(EQ85=0,OR(AS92="1F",AS92="1,2F")),"F",IF(EQ85=0,"G",IF(AND(EQ85=8,AS92="1○"),"⑧",IF(AND(EQ85=7,AS92="1○"),"⑦",IF(AND(EQ85=6,AS92="1○"),"⑥",IF(AND(EQ85=5,AS92="1○"),"⑤",IF(AND(EQ85=4,AS92="1○"),"④",EQ85)))))))) -> X | AW85: =IF(AND(EQ85<10,EQ85+ER85=10),"/",IF(EQ85=10,"",IF(OR(AND(ER85=0,AS92="2F"),AND(ER85=0,AS92="1,2F")),"F",IF(ER85=0,"-",ER85)))) ->  | BB85: =IF(ES85=10,"X",IF(AND(ES85=0,OR(BC92="1F",BC92="1,2F")),"F",IF(ES85=0,"G",IF(AND(ES85=8,BC92="1○"),"⑧",IF(AND(ES85=7,BC92="1○"),"⑦",IF(AND(ES85=6,BC92="1○"),"⑥",IF(AND(ES85=5,BC92="1○"),"⑤",IF(AND(ES85=4,BC92="1○"),"④",ES85)))))))) -> X | BG85: =IF(AND(ES85<10,ES85+ET85=10),"/",IF(ES85=10,"",IF(OR(AND(ET85=0,BC92="2F"),AND(ET85=0,BC92="1,2F")),"F",IF(ET85=0,"-",ET85)))) ->  | BL85: =IF(EU85=10,"X",IF(AND(EU85=0,OR(BM92="1F",BM92="1,2F")),"F",IF(EU85=0,"G",IF(AND(EU85=8,BM92="1○"),"⑧",IF(AND(EU85=7,BM92="1○"),"⑦",IF(AND(EU85=6,BM92="1○"),"⑥",IF(AND(EU85=5,BM92="1○"),"⑤",IF(AND(EU85=4,BM92="1○"),"④",EU85)))))))) -> X | BQ85: =IF(AND(EU85<10,EU85+EV85=10),"/",IF(EU85=10,"",IF(OR(AND(EV85=0,BM92="2F"),AND(EV85=0,BM92="1,2F")),"F",IF(EV85=0,"-",EV85)))) ->  | BV85: =IF(EW85=10,"X",IF(AND(EW85=0,OR(BW92="1F",BW92="1,2F")),"F",IF(EW85=0,"G",IF(AND(EW85=8,BW92="1○"),"⑧",IF(AND(EW85=7,BW92="1○"),"⑦",IF(AND(EW85=6,BW92="1○"),"⑥",IF(AND(EW85=5,BW92="1○"),"⑤",IF(AND(EW85=4,BW92="1○"),"④",EW85)))))))) -> X | CA85: =IF(AND(EW85<10,EW85+EX85=10),"/",IF(EW85=10,"",IF(OR(AND(EX85=0,BW92="2F"),AND(EX85=0,BW92="1,2F")),"F",IF(EX85=0,"-",EX85)))) ->  | CF85: =IF(EY85=10,"X",IF(AND(EY85=0,OR(CG92="1F",CG92="1,2F")),"F",IF(EY85=0,"G",IF(AND(EY85=8,CG92="1○"),"⑧",IF(AND(EY85=7,CG92="1○"),"⑦",IF(AND(EY85=6,CG92="1○"),"⑥",IF(AND(EY85=5,CG92="1○"),"⑤",IF(AND(EY85=4,CG92="1○"),"④",EY85)))))))) -> X | CK85: =IF(AND(EY85<10,EY85+EZ85=10),"/",IF(EY85=10,"",IF(OR(AND(EZ85=0,CG92="2F"),AND(EZ85=0,CG92="1,2F")),"F",IF(EZ85=0,"-",EZ85)))) ->  | CP85: =IF(FA85=10,"X",IF(AND(FA85=0,OR(CQ92="1F",CQ92="1,2F")),"F",IF(FA85=0,"G",IF(AND(FA85=8,CQ92="1○"),"⑧",IF(AND(FA85=7,CQ92="1○"),"⑦",IF(AND(FA85=6,CQ92="1○"),"⑥",IF(AND(FA85=5,CQ92="1○"),"⑤",IF(AND(FA85=4,CQ92="1○"),"④",FA85)))))))) -> X | CU85: =IF(AND(FA85=10,FB85=10),"X",IF(AND(FA85<10,FA85+FB85=10),"/",IF(OR(AND(FA85=10,FB85=0,DA92="1F"),AND(FA85=10,FB85=0,DA92="1,2F")),"F",IF(AND(FA85=10,FB85=0),"G",IF(AND(FA85=10,FB85=8,DA92="1○"),"⑧",IF(AND(FA85=10,FB85=7,DA92="1○"),"⑦",IF(AND(FA85=10,FB85=6,DA92="1○"),"⑥",IF(AND(FA85=10,FB85=5,DA92="1○"),"⑤",IF(AND(FA85=10,FB85=4,DA92="1○"),"④",IF(AND(FA85=10,FB85<10),FB85,IF(OR(AND(FA85<10,FB85=0,CQ92="2F"),AND(FA85<10,FB85=0,CQ92="1,2F")),"F",IF(AND(FA85<10,FB85=0),"-",FB85)))))))))))) -> X | CZ85: =IF(FC85=10,"X",IF(OR(AND(FB85=10,FC85=8,DK92="1○"),AND(FA85+FB85=10,FC85=8,DA92="1○")),"⑧",IF(OR(AND(FB85=10,FC85=7,DK92="1○"),AND(FA85+FB85=10,FC85=7,DA92="1○")),"⑦",IF(OR(AND(FB85=10,FC85=6,DK92="1○"),AND(FA85+FB85=10,FC85=6,DA92="1○")),"⑥",IF(OR(AND(FB85=10,FC85=5,DK92="1○"),AND(FA85+FB85=10,FC85=5,DA92="1○")),"⑤",IF(OR(AND(FB85=10,FC85=4,DK92="1○"),AND(FA85+FB85=10,FC85=4,DA92="1○")),"④",IF(OR(AND(FB85=10,FC85=0,DK92="1F"),AND(FB85<10,FC85=0,DA92="2F"),AND(FB85<10,FC85=0,DA92="1,2F")),"F",IF(AND(FA85=10,FB85<10,FB85+FC85=10),"/",IF(AND(OR(FB85=10,AND(FA85+FB85=10,FA85<10)),FC85=0),"G",IF(AND(FA85=10,FB85<10,FC85=0),"-",IF(FA85+FB85<10,"",FC85))))))))))) -> X | DE85: ( | DG85: =EH89-EH90 -> 0 | DK85: , | DM85: =IF(FB86=0,(DG85+DS85)-EH91,(DG85+DS85+1)-EH91) -> 0 | DQ85: ) | DS85: =COUNTIF(EI86:FA86,">0") -> 0 | EI85: =COUNTIF(D87:M92,"・") -> 10 | EJ85: =COUNTIF(D87:M92,"○") -> 0 | EK85: =COUNTIF(N87:W92,"・") -> 10 | EL85: =COUNTIF(N87:W92,"○") -> 0 | EM85: =COUNTIF(X87:AG92,"・") -> 10 | EN85: =COUNTIF(X87:AG92,"○") -> 0 | EO85: =COUNTIF(AH87:AQ92,"・") -> 10 | EP85: =COUNTIF(AH87:AQ92,"○") -> 0 | EQ85: =COUNTIF(AR87:BA92,"・") -> 10 | ER85: =COUNTIF(AR87:BA92,"○") -> 0 | ES85: =COUNTIF(BB87:BK92,"・") -> 10 | ET85: =COUNTIF(BB87:BK92,"○") -> 0 | EU85: =COUNTIF(BL87:BU92,"・") -> 10 | EV85: =COUNTIF(BL87:BU92,"○") -> 0 | EW85: =COUNTIF(BV87:CE92,"・") -> 10 | EX85: =COUNTIF(BV87:CE92,"○") -> 0 | EY85: =COUNTIF(CF87:CO92,"・") -> 10 | EZ85: =COUNTIF(CF87:CO92,"○") -> 0 | FA85: =COUNTIF(CP87:CY92,"・") -> 10 | FB85: =IF(FA85=10,COUNTIF(CZ87:DI92,"・"),COUNTIF(CP87:CY92,"○")) -> 10 | FC85: =IF(AND(FA85=10,FB85=10),COUNTIF(DJ87:DS92,"・"),IF(AND(FA85=10,FB85<10),COUNTIF(CZ87:DI92,"○"),IF(AND(FA85<10,FA85+FB85=10),COUNTIF(CZ87:DI92,"・"),"0"))) -> 10
D86: =IF(AND(EI85=10,EK85=10),20+EM85,IF(AND(EI85=10,EK85<10),10+EK85+EL85,IF(AND(EI85<10,EI85+EJ85=10),10+EK85,EI85+EJ85))) -> 30 | N86: =IF(AND(EK85=10,EM85=10),D86+20+EO85,IF(AND(EK85=10,EM85<10),D86+10+EM85+EN85,IF(AND(EK85<10,EK85+EL85=10),D86+10+EM85,D86+EK85+EL85))) -> 60 | X86: =IF(AND(EM85=10,EO85=10),N86+20+EQ85,IF(AND(EM85=10,EO85<10),N86+10+EO85+EP85,IF(AND(EM85<10,EM85+EN85=10),N86+10+EO85,N86+EM85+EN85))) -> 90 | AH86: =IF(AND(EO85=10,EQ85=10),X86+20+ES85,IF(AND(EO85=10,EQ85<10),X86+10+EQ85+ER85,IF(AND(EO85<10,EO85+EP85=10),X86+10+EQ85,X86+EO85+EP85))) -> 120 | AR86: =IF(AND(EQ85=10,ES85=10),AH86+20+EU85,IF(AND(EQ85=10,ES85<10),AH86+10+ES85+ET85,IF(AND(EQ85<10,EQ85+ER85=10),AH86+10+ES85,AH86+EQ85+ER85))) -> 150 | BB86: =IF(AND(ES85=10,EU85=10),AR86+20+EW85,IF(AND(ES85=10,EU85<10),AR86+10+EU85+EV85,IF(AND(ES85<10,ES85+ET85=10),AR86+10+EU85,AR86+ES85+ET85))) -> 180 | BL86: =IF(AND(EU85=10,EW85=10),BB86+20+EY85,IF(AND(EU85=10,EW85<10),BB86+10+EW85+EX85,IF(AND(EU85<10,EU85+EV85=10),BB86+10+EW85,BB86+EU85+EV85))) -> 210 | BV86: =IF(AND(EW85=10,EY85=10),BL86+20+FA85,IF(AND(EW85=10,EY85<10),BL86+10+EY85+EZ85,IF(AND(EW85<10,EW85+EX85=10),BL86+10+EY85,BL86+EW85+EX85))) -> 240 | CF86: =IF(AND(EY85=10,FA85=10),BV86+20+FB85,IF(AND(EY85=10,FA85<10),BV86+10+FA85+FB85,IF(AND(EY85<10,EY85+EZ85=10),BV86+10+FA85,BV86+EY85+EZ85))) -> 270 | CP86: =CF86+FA85+FB85+FC85 -> 300 | DE86: 〈 | DG86: =COUNTIF(D92:DS92,"P")+COUNTIF(D92:DS92,"S")+COUNTIF(D92:DS92,"C") -> 0 | DK86: , | DM86: =COUNTIF(D92:DS92,"P") -> 0 | DQ86: , | DS86: =COUNTIF(EI88:FA88,"1") -> 10 | DW86: 〉 | DY86: =COUNTIF(D92:DS92,"H") -> 0 | EI86: =COUNTIF(D87:M92,"●") -> 0 | EK86: =COUNTIF(N87:W92,"●") -> 0 | EM86: =COUNTIF(X87:AG92,"●") -> 0 | EO86: =COUNTIF(AH87:AQ92,"●") -> 0 | EQ86: =COUNTIF(AR87:BA92,"●") -> 0 | ES86: =COUNTIF(BB87:BK92,"●") -> 0 | EU86: =COUNTIF(BL87:BU92,"●") -> 0 | EW86: =COUNTIF(BV87:CE92,"●") -> 0 | EY86: =COUNTIF(CF87:CO92,"●") -> 0 | FA86: =COUNTIF(CP87:CY92,"●") -> 0 | FB86: =COUNTIF(CZ87:DI92,"●") -> 0 | FC86: =COUNTIF(DJ87:DS92,"●") -> 0
E88: ・ | G88: ・ | I88: ・ | K88: ・ | O88: ・ | Q88: ・ | S88: ・ | U88: ・ | Y88: ・ | AA88: ・ | AC88: ・ | AE88: ・ | AI88: ・ | AK88: ・ | AM88: ・ | AO88: ・ | AS88: ・ | AU88: ・ | AW88: ・ | AY88: ・ | BC88: ・ | BE88: ・ | BG88: ・ | BI88: ・ | BM88: ・ | BO88: ・ | BQ88: ・ | BS88: ・ | BW88: ・ | BY88: ・ | CA88: ・ | CC88: ・ | CG88: ・ | CI88: ・ | CK88: ・ | CM88: ・ | CQ88: ・ | CS88: ・ | CU88: ・ | CW88: ・ | DA88: ・ | DC88: ・ | DE88: ・ | DG88: ・ | DK88: ・ | DM88: ・ | DO88: ・ | DQ88: ・ | EI88: =IF(AND(EI85=10,EK85=10),"1","0") -> 1 | EK88: =IF(AND(EK85=10,EM85=10),"1","0") -> 1 | EM88: =IF(AND(EM85=10,EO85=10),"1","0") -> 1 | EO88: =IF(AND(EO85=10,EQ85=10),"1","0") -> 1 | EQ88: =IF(AND(EQ85=10,ES85=10),"1","0") -> 1 | ES88: =IF(AND(ES85=10,EU85=10),"1","0") -> 1 | EU88: =IF(AND(EU85=10,EW85=10),"1","0") -> 1 | EW88: =IF(AND(EW85=10,EY85=10),"1","0") -> 1 | EY88: =IF(AND(EY85=10,FA85=10),"1","0") -> 1 | FA88: =IF(AND(FA85=10,FB85=10),"1","0") -> 1
F89: ・ | H89: ・ | J89: ・ | P89: ・ | R89: ・ | T89: ・ | Z89: ・ | AB89: ・ | AD89: ・ | AJ89: ・ | AL89: ・ | AN89: ・ | AT89: ・ | AV89: ・ | AX89: ・ | BD89: ・ | BF89: ・ | BH89: ・ | BN89: ・ | BP89: ・ | BR89: ・ | BX89: ・ | BZ89: ・ | CB89: ・ | CH89: ・ | CJ89: ・ | CL89: ・ | CR89: ・ | CT89: ・ | CV89: ・ | DB89: ・ | DD89: ・ | DF89: ・ | DL89: ・ | DN89: ・ | DP89: ・ | EH89: =COUNTIF(D85:DD85,"/") -> 0
G90: ・ | I90: ・ | Q90: ・ | S90: ・ | AA90: ・ | AC90: ・ | AK90: ・ | AM90: ・ | AU90: ・ | AW90: ・ | BE90: ・ | BG90: ・ | BO90: ・ | BQ90: ・ | BY90: ・ | CA90: ・ | CI90: ・ | CK90: ・ | CS90: ・ | CU90: ・ | DC90: ・ | DE90: ・ | DM90: ・ | DO90: ・ | EH90: =COUNTIF(EI90:FA90,"1") -> 0 | EI90: =IF(AND(E92="1○",I85="/"),"1","0") -> 0 | EK90: =IF(AND(O92="1○",S85="/"),"1","0") -> 0 | EM90: =IF(AND(Y92="1○",AC85="/"),"1","0") -> 0 | EO90: =IF(AND(AI92="1○",AM85="/"),"1","0") -> 0 | EQ90: =IF(AND(AS92="1○",AW85="/"),"1","0") -> 0 | ES90: =IF(AND(BC92="1○",BG85="/"),"1","0") -> 0 | EU90: =IF(AND(BM92="1○",BQ85="/"),"1","0") -> 0 | EW90: =IF(AND(BW92="1○",CA85="/"),"1","0") -> 0 | EY90: =IF(AND(CG92="1○",CK85="/"),"1","0") -> 0 | FA90: =IF(OR(AND(CQ92="1○",CU85="/"),AND(DA92="1○",CZ85="/")),"1","0") -> 0
H91: ・ | R91: ・ | AB91: ・ | AL91: ・ | AV91: ・ | BF91: ・ | BP91: ・ | BZ91: ・ | CJ91: ・ | CT91: ・ | DD91: ・ | DN91: ・ | EH91: =COUNTIF(EI91:FA91,"1") -> 0 | EI91: =IF(AND(E92="1○",EI85+EJ85<10),"1","0") -> 0 | EK91: =IF(AND(O92="1○",EK85+EL85<10),"1","0") -> 0 | EM91: =IF(AND(Y92="1○",EM85+EN85<10),"1","0") -> 0 | EO91: =IF(AND(AI92="1○",EO85+EP85<10),"1","0") -> 0 | EQ91: =IF(AND(AS92="1○",EQ85+ER85<10),"1","0") -> 0 | ES91: =IF(AND(BC92="1○",ES85+ET85<10),"1","0") -> 0 | EU91: =IF(AND(BM92="1○",EU85+EV85<10),"1","0") -> 0 | EW91: =IF(AND(BW92="1○",EW85+EX85<10),"1","0") -> 0 | EY91: =IF(AND(CG92="1○",EY85+EZ85<10),"1","0") -> 0 | FA91: =IF(OR(AND(CQ92="1○",FA85+FB85<10),AND(DA92="1○",FB85+FC85<10)),"1","0") -> 0
C94: Player 5 | D94: 1 | N94: 2 | X94: 3 | AH94: 4 | AR94: 5 | BB94: 6 | BL94: 7 | BV94: 8 | CF94: 9 | CP94: 10 | EI94: 1 | EK94: 2 | EM94: 3 | EO94: 4 | EQ94: 5 | ES94: 6 | EU94: 7 | EW94: 8 | EY94: 9 | FA94: 10
D95: =IF(EI95=10,"X",IF(AND(EI95=0,OR(E102="1F",E102="1,2F")),"F",IF(EI95=0,"G",IF(AND(EI95=8,E102="1○"),"⑧",IF(AND(EI95=7,E102="1○"),"⑦",IF(AND(EI95=6,E102="1○"),"⑥",IF(AND(EI95=5,E102="1○"),"⑤",IF(AND(EI95=4,E102="1○"),"④",EI95)))))))) -> X | I95: =IF(AND(EI95<10,EI95+EJ95=10),"/",IF(EI95=10,"",IF(OR(AND(EJ95=0,E102="2F"),AND(EJ95=0,E102="1,2F")),"F",IF(EJ95=0,"-",EJ95)))) ->  | N95: =IF(EK95=10,"X",IF(AND(EK95=0,OR(O102="1F",O102="1,2F")),"F",IF(EK95=0,"G",IF(AND(EK95=8,O102="1○"),"⑧",IF(AND(EK95=7,O102="1○"),"⑦",IF(AND(EK95=6,O102="1○"),"⑥",IF(AND(EK95=5,O102="1○"),"⑤",IF(AND(EK95=4,O102="1○"),"④",EK95)))))))) -> X | S95: =IF(AND(EK95<10,EK95+EL95=10),"/",IF(EK95=10,"",IF(OR(AND(EL95=0,O102="2F"),AND(EL95=0,O102="1,2F")),"F",IF(EL95=0,"-",EL95)))) ->  | X95: =IF(EM95=10,"X",IF(AND(EM95=0,OR(Y102="1F",Y102="1,2F")),"F",IF(EM95=0,"G",IF(AND(EM95=8,Y102="1○"),"⑧",IF(AND(EM95=7,Y102="1○"),"⑦",IF(AND(EM95=6,Y102="1○"),"⑥",IF(AND(EM95=5,Y102="1○"),"⑤",IF(AND(EM95=4,Y102="1○"),"④",EM95)))))))) -> X | AC95: =IF(AND(EM95<10,EM95+EN95=10),"/",IF(EM95=10,"",IF(OR(AND(EN95=0,Y102="2F"),AND(EN95=0,Y102="1,2F")),"F",IF(EN95=0,"-",EN95)))) ->  | AH95: =IF(EO95=10,"X",IF(AND(EO95=0,OR(AI102="1F",AI102="1,2F")),"F",IF(EO95=0,"G",IF(AND(EO95=8,AI102="1○"),"⑧",IF(AND(EO95=7,AI102="1○"),"⑦",IF(AND(EO95=6,AI102="1○"),"⑥",IF(AND(EO95=5,AI102="1○"),"⑤",IF(AND(EO95=4,AI102="1○"),"④",EO95)))))))) -> X | AM95: =IF(AND(EO95<10,EO95+EP95=10),"/",IF(EO95=10,"",IF(OR(AND(EP95=0,AI102="2F"),AND(EP95=0,AI102="1,2F")),"F",IF(EP95=0,"-",EP95)))) ->  | AR95: =IF(EQ95=10,"X",IF(AND(EQ95=0,OR(AS102="1F",AS102="1,2F")),"F",IF(EQ95=0,"G",IF(AND(EQ95=8,AS102="1○"),"⑧",IF(AND(EQ95=7,AS102="1○"),"⑦",IF(AND(EQ95=6,AS102="1○"),"⑥",IF(AND(EQ95=5,AS102="1○"),"⑤",IF(AND(EQ95=4,AS102="1○"),"④",EQ95)))))))) -> X | AW95: =IF(AND(EQ95<10,EQ95+ER95=10),"/",IF(EQ95=10,"",IF(OR(AND(ER95=0,AS102="2F"),AND(ER95=0,AS102="1,2F")),"F",IF(ER95=0,"-",ER95)))) ->  | BB95: =IF(ES95=10,"X",IF(AND(ES95=0,OR(BC102="1F",BC102="1,2F")),"F",IF(ES95=0,"G",IF(AND(ES95=8,BC102="1○"),"⑧",IF(AND(ES95=7,BC102="1○"),"⑦",IF(AND(ES95=6,BC102="1○"),"⑥",IF(AND(ES95=5,BC102="1○"),"⑤",IF(AND(ES95=4,BC102="1○"),"④",ES95)))))))) -> X | BG95: =IF(AND(ES95<10,ES95+ET95=10),"/",IF(ES95=10,"",IF(OR(AND(ET95=0,BC102="2F"),AND(ET95=0,BC102="1,2F")),"F",IF(ET95=0,"-",ET95)))) ->  | BL95: =IF(EU95=10,"X",IF(AND(EU95=0,OR(BM102="1F",BM102="1,2F")),"F",IF(EU95=0,"G",IF(AND(EU95=8,BM102="1○"),"⑧",IF(AND(EU95=7,BM102="1○"),"⑦",IF(AND(EU95=6,BM102="1○"),"⑥",IF(AND(EU95=5,BM102="1○"),"⑤",IF(AND(EU95=4,BM102="1○"),"④",EU95)))))))) -> X | BQ95: =IF(AND(EU95<10,EU95+EV95=10),"/",IF(EU95=10,"",IF(OR(AND(EV95=0,BM102="2F"),AND(EV95=0,BM102="1,2F")),"F",IF(EV95=0,"-",EV95)))) ->  | BV95: =IF(EW95=10,"X",IF(AND(EW95=0,OR(BW102="1F",BW102="1,2F")),"F",IF(EW95=0,"G",IF(AND(EW95=8,BW102="1○"),"⑧",IF(AND(EW95=7,BW102="1○"),"⑦",IF(AND(EW95=6,BW102="1○"),"⑥",IF(AND(EW95=5,BW102="1○"),"⑤",IF(AND(EW95=4,BW102="1○"),"④",EW95)))))))) -> X | CA95: =IF(AND(EW95<10,EW95+EX95=10),"/",IF(EW95=10,"",IF(OR(AND(EX95=0,BW102="2F"),AND(EX95=0,BW102="1,2F")),"F",IF(EX95=0,"-",EX95)))) ->  | CF95: =IF(EY95=10,"X",IF(AND(EY95=0,OR(CG102="1F",CG102="1,2F")),"F",IF(EY95=0,"G",IF(AND(EY95=8,CG102="1○"),"⑧",IF(AND(EY95=7,CG102="1○"),"⑦",IF(AND(EY95=6,CG102="1○"),"⑥",IF(AND(EY95=5,CG102="1○"),"⑤",IF(AND(EY95=4,CG102="1○"),"④",EY95)))))))) -> X | CK95: =IF(AND(EY95<10,EY95+EZ95=10),"/",IF(EY95=10,"",IF(OR(AND(EZ95=0,CG102="2F"),AND(EZ95=0,CG102="1,2F")),"F",IF(EZ95=0,"-",EZ95)))) ->  | CP95: =IF(FA95=10,"X",IF(AND(FA95=0,OR(CQ102="1F",CQ102="1,2F")),"F",IF(FA95=0,"G",IF(AND(FA95=8,CQ102="1○"),"⑧",IF(AND(FA95=7,CQ102="1○"),"⑦",IF(AND(FA95=6,CQ102="1○"),"⑥",IF(AND(FA95=5,CQ102="1○"),"⑤",IF(AND(FA95=4,CQ102="1○"),"④",FA95)))))))) -> X | CU95: =IF(AND(FA95=10,FB95=10),"X",IF(AND(FA95<10,FA95+FB95=10),"/",IF(OR(AND(FA95=10,FB95=0,DA102="1F"),AND(FA95=10,FB95=0,DA102="1,2F")),"F",IF(AND(FA95=10,FB95=0),"G",IF(AND(FA95=10,FB95=8,DA102="1○"),"⑧",IF(AND(FA95=10,FB95=7,DA102="1○"),"⑦",IF(AND(FA95=10,FB95=6,DA102="1○"),"⑥",IF(AND(FA95=10,FB95=5,DA102="1○"),"⑤",IF(AND(FA95=10,FB95=4,DA102="1○"),"④",IF(AND(FA95=10,FB95<10),FB95,IF(OR(AND(FA95<10,FB95=0,CQ102="2F"),AND(FA95<10,FB95=0,CQ102="1,2F")),"F",IF(AND(FA95<10,FB95=0),"-",FB95)))))))))))) -> X | CZ95: =IF(FC95=10,"X",IF(OR(AND(FB95=10,FC95=8,DK102="1○"),AND(FA95+FB95=10,FC95=8,DA102="1○")),"⑧",IF(OR(AND(FB95=10,FC95=7,DK102="1○"),AND(FA95+FB95=10,FC95=7,DA102="1○")),"⑦",IF(OR(AND(FB95=10,FC95=6,DK102="1○"),AND(FA95+FB95=10,FC95=6,DA102="1○")),"⑥",IF(OR(AND(FB95=10,FC95=5,DK102="1○"),AND(FA95+FB95=10,FC95=5,DA102="1○")),"⑤",IF(OR(AND(FB95=10,FC95=4,DK102="1○"),AND(FA95+FB95=10,FC95=4,DA102="1○")),"④",IF(OR(AND(FB95=10,FC95=0,DK102="1F"),AND(FB95<10,FC95=0,DA102="2F"),AND(FB95<10,FC95=0,DA102="1,2F")),"F",IF(AND(FA95=10,FB95<10,FB95+FC95=10),"/",IF(AND(OR(FB95=10,AND(FA95+FB95=10,FA95<10)),FC95=0),"G",IF(AND(FA95=10,FB95<10,FC95=0),"-",IF(FA95+FB95<10,"",FC95))))))))))) -> X | DE95: ( | DG95: =EH99-EH100 -> 0 | DK95: , | DM95: =IF(FB96=0,(DG95+DS95)-EH101,(DG95+DS95+1)-EH101) -> 0 | DQ95: ) | DS95: =COUNTIF(EI96:FA96,">0") -> 0 | EI95: =COUNTIF(D97:M102,"・") -> 10 | EJ95: =COUNTIF(D97:M102,"○") -> 0 | EK95: =COUNTIF(N97:W102,"・") -> 10 | EL95: =COUNTIF(N97:W102,"○") -> 0 | EM95: =COUNTIF(X97:AG102,"・") -> 10 | EN95: =COUNTIF(X97:AG102,"○") -> 0 | EO95: =COUNTIF(AH97:AQ102,"・") -> 10 | EP95: =COUNTIF(AH97:AQ102,"○") -> 0 | EQ95: =COUNTIF(AR97:BA102,"・") -> 10 | ER95: =COUNTIF(AR97:BA102,"○") -> 0 | ES95: =COUNTIF(BB97:BK102,"・") -> 10 | ET95: =COUNTIF(BB97:BK102,"○") -> 0 | EU95: =COUNTIF(BL97:BU102,"・") -> 10 | EV95: =COUNTIF(BL97:BU102,"○") -> 0 | EW95: =COUNTIF(BV97:CE102,"・") -> 10 | EX95: =COUNTIF(BV97:CE102,"○") -> 0 | EY95: =COUNTIF(CF97:CO102,"・") -> 10 | EZ95: =COUNTIF(CF97:CO102,"○") -> 0 | FA95: =COUNTIF(CP97:CY102,"・") -> 10 | FB95: =IF(FA95=10,COUNTIF(CZ97:DI102,"・"),COUNTIF(CP97:CY102,"○")) -> 10 | FC95: =IF(AND(FA95=10,FB95=10),COUNTIF(DJ97:DS102,"・"),IF(AND(FA95=10,FB95<10),COUNTIF(CZ97:DI102,"○"),IF(AND(FA95<10,FA95+FB95=10),COUNTIF(CZ97:DI102,"・"),"0"))) -> 10
D96: =IF(AND(EI95=10,EK95=10),20+EM95,IF(AND(EI95=10,EK95<10),10+EK95+EL95,IF(AND(EI95<10,EI95+EJ95=10),10+EK95,EI95+EJ95))) -> 30 | N96: =IF(AND(EK95=10,EM95=10),D96+20+EO95,IF(AND(EK95=10,EM95<10),D96+10+EM95+EN95,IF(AND(EK95<10,EK95+EL95=10),D96+10+EM95,D96+EK95+EL95))) -> 60 | X96: =IF(AND(EM95=10,EO95=10),N96+20+EQ95,IF(AND(EM95=10,EO95<10),N96+10+EO95+EP95,IF(AND(EM95<10,EM95+EN95=10),N96+10+EO95,N96+EM95+EN95))) -> 90 | AH96: =IF(AND(EO95=10,EQ95=10),X96+20+ES95,IF(AND(EO95=10,EQ95<10),X96+10+EQ95+ER95,IF(AND(EO95<10,EO95+EP95=10),X96+10+EQ95,X96+EO95+EP95))) -> 120 | AR96: =IF(AND(EQ95=10,ES95=10),AH96+20+EU95,IF(AND(EQ95=10,ES95<10),AH96+10+ES95+ET95,IF(AND(EQ95<10,EQ95+ER95=10),AH96+10+ES95,AH96+EQ95+ER95))) -> 150 | BB96: =IF(AND(ES95=10,EU95=10),AR96+20+EW95,IF(AND(ES95=10,EU95<10),AR96+10+EU95+EV95,IF(AND(ES95<10,ES95+ET95=10),AR96+10+EU95,AR96+ES95+ET95))) -> 180 | BL96: =IF(AND(EU95=10,EW95=10),BB96+20+EY95,IF(AND(EU95=10,EW95<10),BB96+10+EW95+EX95,IF(AND(EU95<10,EU95+EV95=10),BB96+10+EW95,BB96+EU95+EV95))) -> 210 | BV96: =IF(AND(EW95=10,EY95=10),BL96+20+FA95,IF(AND(EW95=10,EY95<10),BL96+10+EY95+EZ95,IF(AND(EW95<10,EW95+EX95=10),BL96+10+EY95,BL96+EW95+EX95))) -> 240 | CF96: =IF(AND(EY95=10,FA95=10),BV96+20+FB95,IF(AND(EY95=10,FA95<10),BV96+10+FA95+FB95,IF(AND(EY95<10,EY95+EZ95=10),BV96+10+FA95,BV96+EY95+EZ95))) -> 270 | CP96: =CF96+FA95+FB95+FC95 -> 300 | DE96: 〈 | DG96: =COUNTIF(D102:DS102,"P")+COUNTIF(D102:DS102,"S")+COUNTIF(D102:DS102,"C") -> 0 | DK96: , | DM96: =COUNTIF(D102:DS102,"P") -> 0 | DQ96: , | DS96: =COUNTIF(EI98:FA98,"1") -> 10 | DW96: 〉 | DY96: =COUNTIF(D102:DS102,"H") -> 0 | EI96: =COUNTIF(D97:M102,"●") -> 0 | EK96: =COUNTIF(N97:W102,"●") -> 0 | EM96: =COUNTIF(X97:AG102,"●") -> 0 | EO96: =COUNTIF(AH97:AQ102,"●") -> 0 | EQ96: =COUNTIF(AR97:BA102,"●") -> 0 | ES96: =COUNTIF(BB97:BK102,"●") -> 0 | EU96: =COUNTIF(BL97:BU102,"●") -> 0 | EW96: =COUNTIF(BV97:CE102,"●") -> 0 | EY96: =COUNTIF(CF97:CO102,"●") -> 0 | FA96: =COUNTIF(CP97:CY102,"●") -> 0 | FB96: =COUNTIF(CZ97:DI102,"●") -> 0 | FC96: =COUNTIF(DJ97:DS102,"●") -> 0
B97: Team Total
E98: ・ | G98: ・ | I98: ・ | K98: ・ | O98: ・ | Q98: ・ | S98: ・ | U98: ・ | Y98: ・ | AA98: ・ | AC98: ・ | AE98: ・ | AI98: ・ | AK98: ・ | AM98: ・ | AO98: ・ | AS98: ・ | AU98: ・ | AW98: ・ | AY98: ・ | BC98: ・ | BE98: ・ | BG98: ・ | BI98: ・ | BM98: ・ | BO98: ・ | BQ98: ・ | BS98: ・ | BW98: ・ | BY98: ・ | CA98: ・ | CC98: ・ | CG98: ・ | CI98: ・ | CK98: ・ | CM98: ・ | CQ98: ・ | CS98: ・ | CU98: ・ | CW98: ・ | DA98: ・ | DC98: ・ | DE98: ・ | DG98: ・ | DK98: ・ | DM98: ・ | DO98: ・ | DQ98: ・ | EI98: =IF(AND(EI95=10,EK95=10),"1","0") -> 1 | EK98: =IF(AND(EK95=10,EM95=10),"1","0") -> 1 | EM98: =IF(AND(EM95=10,EO95=10),"1","0") -> 1 | EO98: =IF(AND(EO95=10,EQ95=10),"1","0") -> 1 | EQ98: =IF(AND(EQ95=10,ES95=10),"1","0") -> 1 | ES98: =IF(AND(ES95=10,EU95=10),"1","0") -> 1 | EU98: =IF(AND(EU95=10,EW95=10),"1","0") -> 1 | EW98: =IF(AND(EW95=10,EY95=10),"1","0") -> 1 | EY98: =IF(AND(EY95=10,FA95=10),"1","0") -> 1 | FA98: =IF(AND(FA95=10,FB95=10),"1","0") -> 1
F99: ・ | H99: ・ | J99: ・ | P99: ・ | R99: ・ | T99: ・ | Z99: ・ | AB99: ・ | AD99: ・ | AJ99: ・ | AL99: ・ | AN99: ・ | AT99: ・ | AV99: ・ | AX99: ・ | BD99: ・ | BF99: ・ | BH99: ・ | BN99: ・ | BP99: ・ | BR99: ・ | BX99: ・ | BZ99: ・ | CB99: ・ | CH99: ・ | CJ99: ・ | CL99: ・ | CR99: ・ | CT99: ・ | CV99: ・ | DB99: ・ | DD99: ・ | DF99: ・ | DL99: ・ | DN99: ・ | DP99: ・ | EH99: =COUNTIF(D95:DD95,"/") -> 0
B100: =CP56+CP66+CP76+CP86+CP96 -> 1500 | G100: ・ | I100: ・ | Q100: ・ | S100: ・ | AA100: ・ | AC100: ・ | AK100: ・ | AM100: ・ | AU100: ・ | AW100: ・ | BE100: ・ | BG100: ・ | BO100: ・ | BQ100: ・ | BY100: ・ | CA100: ・ | CI100: ・ | CK100: ・ | CS100: ・ | CU100: ・ | DC100: ・ | DE100: ・ | DM100: ・ | DO100: ・ | EH100: =COUNTIF(EI100:FA100,"1") -> 0 | EI100: =IF(AND(E102="1○",I95="/"),"1","0") -> 0 | EK100: =IF(AND(O102="1○",S95="/"),"1","0") -> 0 | EM100: =IF(AND(Y102="1○",AC95="/"),"1","0") -> 0 | EO100: =IF(AND(AI102="1○",AM95="/"),"1","0") -> 0 | EQ100: =IF(AND(AS102="1○",AW95="/"),"1","0") -> 0 | ES100: =IF(AND(BC102="1○",BG95="/"),"1","0") -> 0 | EU100: =IF(AND(BM102="1○",BQ95="/"),"1","0") -> 0 | EW100: =IF(AND(BW102="1○",CA95="/"),"1","0") -> 0 | EY100: =IF(AND(CG102="1○",CK95="/"),"1","0") -> 0 | FA100: =IF(OR(AND(CQ102="1○",CU95="/"),AND(DA102="1○",CZ95="/")),"1","0") -> 0
H101: ・ | R101: ・ | AB101: ・ | AL101: ・ | AV101: ・ | BF101: ・ | BP101: ・ | BZ101: ・ | CJ101: ・ | CT101: ・ | DD101: ・ | DN101: ・ | EH101: =COUNTIF(EI101:FA101,"1") -> 0 | EI101: =IF(AND(E102="1○",EI95+EJ95<10),"1","0") -> 0 | EK101: =IF(AND(O102="1○",EK95+EL95<10),"1","0") -> 0 | EM101: =IF(AND(Y102="1○",EM95+EN95<10),"1","0") -> 0 | EO101: =IF(AND(AI102="1○",EO95+EP95<10),"1","0") -> 0 | EQ101: =IF(AND(AS102="1○",EQ95+ER95<10),"1","0") -> 0 | ES101: =IF(AND(BC102="1○",ES95+ET95<10),"1","0") -> 0 | EU101: =IF(AND(BM102="1○",EU95+EV95<10),"1","0") -> 0 | EW101: =IF(AND(BW102="1○",EW95+EX95<10),"1","0") -> 0 | EY101: =IF(AND(CG102="1○",EY95+EZ95<10),"1","0") -> 0 | FA101: =IF(OR(AND(CQ102="1○",FA95+FB95<10),AND(DA102="1○",FB95+FC95<10)),"1","0") -> 0
DJ108: (C) 2017 Hitoshi Saigo

Sheet 点差計算
B2: 点差 | D2: 1 | F2: 2 | H2: 3 | J2: 4 | L2: 5 | N2: 6 | P2: 7 | R2: 8 | T2: 9 | V2: 10
D3: =D9-D15 -> 0 | F3: =F9-F15 -> 0 | H3: =H9-H15 -> 0 | J3: =J9-J15 -> 0 | L3: =L9-L15 -> 0 | N3: =N9-N15 -> 0 | P3: =P9-P15 -> 0 | R3: =R9-R15 -> 0 | T3: =T9-T15 -> 0 | V3: =V9-V15 -> 0 | X3: =X9-X15 -> 0 | Z3: =Z9-Z15 -> 0
D4: =D10-D16 -> 0 | F4: 0 | H4: 0 | J4: 0 | L4: 0 | N4: 0 | P4: 0 | R4: 0 | T4: =T10-T16 -> 0 | V4: 0 | X4: 0 | Z4: 0
D5: 0 | F5: 0 | H5: 0 | J5: 0 | L5: 0 | N5: 0 | P5: 0 | R5: 0 | T5: 0 | V5: 0 | X5: 0 | Z5: 0
D6: 0 | F6: =F12-F18 -> 0 | H6: 0 | J6: 0 | L6: 0 | N6: 0 | P6: 0 | R6: 0 | T6: 0 | V6: 0 | X6: 0 | Z6: 0
D7: 0 | F7: 0 | H7: 0 | J7: 0 | L7: 0 | N7: 0 | P7: 0 | R7: 0 | T7: 0 | V7: 0 | X7: =X13-X19 -> 0 | Z7: =Z13-Z19 -> 0
B8: 京都大学 | D8: 1 | F8: 2 | H8: 3 | J8: 4 | L8: 5 | N8: 6 | P8: 7 | R8: 8 | T8: 9 | V8: 10
D9: =D25 -> 0 | F9: =D13+F25 -> 10 | H9: =F13+H25 -> 60 | J9: =H13+J25 -> 110 | L9: =J13+L25 -> 160 | N9: =L13+N25 -> 210 | P9: =N13+P25 -> 260 | R9: =P13+R25 -> 310 | T9: =R13+T25 -> 360 | V9: =T13+V25 -> 410 | X9: =V9+W25 -> 420 | Z9: =X9+X25 -> 420
D10: =D25+D30 -> 0 | F10: =F9+F30 -> 20 | H10: =H9+H30 -> 70 | J10: =J9+J30 -> 120 | L10: =L9+L30 -> 170 | N10: =N9+N30 -> 220 | P10: =P9+P30 -> 270 | R10: =R9+R30 -> 320 | T10: =T9+T30 -> 370 | V10: =Z9+V30 -> 430 | X10: =V10+W30 -> 440 | Z10: =X10+X30 -> 440
D11: =D10+D35 -> 0 | F11: =F10+F35 -> 30 | H11: =H10+H35 -> 80 | J11: =J10+J35 -> 130 | L11: =L10+L35 -> 180 | N11: =N10+N35 -> 230 | P11: =P10+P35 -> 280 | R11: =R10+R35 -> 330 | T11: =T10+T35 -> 380 | V11: =Z10+V35 -> 450 | X11: =V11+W35 -> 460 | Z11: =X11+X35 -> 460
D12: =D11+D40 -> 0 | F12: =F11+F40 -> 40 | H12: =H11+H40 -> 90 | J12: =J11+J40 -> 140 | L12: =L11+L40 -> 190 | N12: =N11+N40 -> 240 | P12: =P11+P40 -> 290 | R12: =R11+R40 -> 340 | T12: =T11+T40 -> 390 | V12: =Z11+V40 -> 470 | X12: =V12+W40 -> 480 | Z12: =X12+X40 -> 480
D13: =D12+D45 -> 0 | F13: =F12+F45 -> 50 | H13: =H12+H45 -> 100 | J13: =J12+J45 -> 150 | L13: =L12+L45 -> 200 | N13: =N12+N45 -> 250 | P13: =P12+P45 -> 300 | R13: =R12+R45 -> 350 | T13: =T12+T45 -> 400 | V13: =Z12+V45 -> 490 | X13: =V13+W45 -> 500 | Z13: =X13+X45 -> 500
B14: 相手大学 | D14: 1 | F14: 2 | H14: 3 | J14: 4 | L14: 5 | N14: 6 | P14: 7 | R14: 8 | T14: 9 | V14: 10
D15: =D51 -> 0 | F15: =D19+F51 -> 10 | H15: =F19+H51 -> 60 | J15: =H19+J51 -> 110 | L15: =J19+L51 -> 160 | N15: =L19+N51 -> 210 | P15: =N19+P51 -> 260 | R15: =P19+R51 -> 310 | T15: =R19+T51 -> 360 | V15: =T19+V51 -> 410 | X15: =V15+W51 -> 420 | Z15: =X15+X51 -> 420
D16: =D15+D56 -> 0 | F16: =F15+F56 -> 20 | H16: =H15+H56 -> 70 | J16: =J15+J56 -> 120 | L16: =L15+L56 -> 170 | N16: =N15+N56 -> 220 | P16: =P15+P56 -> 270 | R16: =R15+R56 -> 320 | T16: =T15+T56 -> 370 | V16: =Z15+V56 -> 430 | X16: =V16+W56 -> 440 | Z16: =X16+X56 -> 440
D17: =D16+D61 -> 0 | F17: =F16+F61 -> 30 | H17: =H16+H61 -> 80 | J17: =J16+J61 -> 130 | L17: =L16+L61 -> 180 | N17: =N16+N61 -> 230 | P17: =P16+P61 -> 280 | R17: =R16+R61 -> 330 | T17: =T16+T61 -> 380 | V17: =Z16+V61 -> 450 | X17: =V17+W61 -> 460 | Z17: =X17+X61 -> 460
D18: =D17+D66 -> 0 | F18: =F17+F66 -> 40 | H18: =H17+H66 -> 90 | J18: =J17+J66 -> 140 | L18: =L17+L66 -> 190 | N18: =N17+N66 -> 240 | P18: =P17+P66 -> 290 | R18: =R17+R66 -> 340 | T18: =T17+T66 -> 390 | V18: =Z17+V66 -> 470 | X18: =V18+W66 -> 480 | Z18: =X18+X66 -> 480
D19: =D18+D71 -> 0 | F19: =F18+F71 -> 50 | H19: =H18+H71 -> 100 | J19: =J18+J71 -> 150 | L19: =L18+L71 -> 200 | N19: =N18+N71 -> 250 | P19: =P18+P71 -> 300 | R19: =R18+R71 -> 350 | T19: =T18+T71 -> 400 | V19: =Z18+V71 -> 490 | X19: =V19+W71 -> 500 | Z19: =X19+X71 -> 500
B21: 京 都 大 学 | C21: Player 1 | D21: 1 | F21: 2 | H21: 3 | J21: 4 | L21: 5 | N21: 6 | P21: 7 | R21: 8 | T21: 9 | V21: 10
C22: =スコア!C5 -> 0 | D22: =スコア!EI5 -> 10 | E22: =スコア!EJ5 -> 0 | F22: =スコア!EK5 -> 10 | G22: =スコア!EL5 -> 0 | H22: =スコア!EM5 -> 10 | I22: =スコア!EN5 -> 0 | J22: =スコア!EO5 -> 10 | K22: =スコア!EP5 -> 0 | L22: =スコア!EQ5 -> 10 | M22: =スコア!ER5 -> 0 | N22: =スコア!ES5 -> 10 | O22: =スコア!ET5 -> 0 | P22: =スコア!EU5 -> 10 | Q22: =スコア!EV5 -> 0 | R22: =スコア!EW5 -> 10 | S22: =スコア!EX5 -> 0 | T22: =スコア!EY5 -> 10 | U22: =スコア!EZ5 -> 0 | V22: =スコア!FA5 -> 10 | W22: =スコア!FB5 -> 10 | X22: =スコア!FC5 -> 10 | Y22: =V23 -> 300
D23: =IF(AND(D22=10,F22=10),20+H22,IF(AND(D22=10,F22<10),10+F22+G22,IF(AND(D22<10,D22+E22=10),10+F22,D22+E22))) -> 30 | F23: =IF(AND(F22=10,H22=10),D23+20+J22,IF(AND(F22=10,H22<10),D23+10+H22+I22,IF(AND(F22<10,F22+G22=10),D23+10+H22,D23+F22+G22))) -> 60 | H23: =IF(AND(H22=10,J22=10),F23+20+L22,IF(AND(H22=10,J22<10),F23+10+J22+K22,IF(AND(H22<10,H22+I22=10),F23+10+J22,F23+H22+I22))) -> 90 | J23: =IF(AND(J22=10,L22=10),H23+20+N22,IF(AND(J22=10,L22<10),H23+10+L22+M22,IF(AND(J22<10,J22+K22=10),H23+10+L22,H23+J22+K22))) -> 120 | L23: =IF(AND(L22=10,N22=10),J23+20+P22,IF(AND(L22=10,N22<10),J23+10+N22+O22,IF(AND(L22<10,L22+M22=10),J23+10+N22,J23+L22+M22))) -> 150 | N23: =IF(AND(N22=10,P22=10),L23+20+R22,IF(AND(N22=10,P22<10),L23+10+P22+Q22,IF(AND(N22<10,N22+O22=10),L23+10+P22,L23+N22+O22))) -> 180 | P23: =IF(AND(P22=10,R22=10),N23+20+T22,IF(AND(P22=10,R22<10),N23+10+R22+S22,IF(AND(P22<10,P22+Q22=10),N23+10+R22,N23+P22+Q22))) -> 210 | R23: =IF(AND(R22=10,T22=10),P23+20+V22,IF(AND(R22=10,T22<10),P23+10+T22+U22,IF(AND(R22<10,R22+S22=10),P23+10+T22,P23+R22+S22))) -> 240 | T23: =IF(AND(T22=10,V22=10),R23+20+W22,IF(AND(T22=10,V22<10),R23+10+V22+W22,IF(AND(T22<10,T22+U22=10),R23+10+V22,R23+T22+U22))) -> 270 | V23: =T23+V22+W22+X22 -> 300
D24: 0 | E24: =IF(D22+E22<10,D22+E22-20,0) -> 0 | F24: =IF(AND(D22=10,F22=10),10,IF(AND(D22=10,F22+G22<11),F22+G22-10,IF(D22+E22=10,F22-10,0))) -> 10 | G24: =IF(F22+G22<10,F22+G22-20,0) -> 0 | H24: =IF(AND(F22=10,H22=10),10,IF(AND(D22=10,F22=10,H22<10),2*H22+I22-20,IF(AND(F22=10,H22+I22<11),H22+I22-10,IF(F22+G22=10,H22-10,0)))) -> 10 | I24: =IF(H22+I22<10,H22+I22-20,0) -> 0 | J24: =IF(AND(H22=10,J22=10),10,IF(AND(F22=10,H22=10,J22<10),2*J22+K22-20,IF(AND(H22=10,J22+K22<11),J22+K22-10,IF(H22+I22=10,J22-10,0)))) -> 10 | K24: =IF(J22+K22<10,J22+K22-20,0) -> 0 | L24: =IF(AND(J22=10,L22=10),10,IF(AND(H22=10,J22=10,L22<10),2*L22+M22-20,IF(AND(J22=10,L22+M22<11),L22+M22-10,IF(J22+K22=10,L22-10,0)))) -> 10 | M24: =IF(L22+M22<10,L22+M22-20,0) -> 0 | N24: =IF(AND(L22=10,N22=10),10,IF(AND(J22=10,L22=10,N22<10),2*N22+O22-20,IF(AND(L22=10,N22+O22<11),N22+O22-10,IF(L22+M22=10,N22-10,0)))) -> 10 | O24: =IF(N22+O22<10,N22+O22-20,0) -> 0 | P24: =IF(AND(N22=10,P22=10),10,IF(AND(L22=10,N22=10,P22<10),2*P22+Q22-20,IF(AND(N22=10,P22+Q22<11),P22+Q22-10,IF(N22+O22=10,P22-10,0)))) -> 10 | Q24: =IF(P22+Q22<10,P22+Q22-20,0) -> 0 | R24: =IF(AND(P22=10,R22=10),10,IF(AND(N22=10,P22=10,R22<10),2*R22+S22-20,IF(AND(P22=10,R22+S22<11),R22+S22-10,IF(P22+Q22=10,R22-10,0)))) -> 10 | S24: =IF(R22+S22<10,R22+S22-20,0) -> 0 | T24: =IF(AND(R22=10,T22=10),10,IF(AND(P22=10,R22=10,T22<10),2*T22+U22-20,IF(AND(R22=10,T22+U22<11),T22+U22-10,IF(R22+S22=10,T22-10,0)))) -> 10 | U24: =IF(T22+U22<10,T22+U22-20,0) -> 0 | V24: =IF(AND(T22=10,V22=10),W22,IF(AND(R22=10,T22=10,V22<10),2*V22+W22-20,IF(AND(T22=10,V22<10),V22+W22-10,IF(T22+U22=10,V22-10,0)))) -> 10 | W24: =V22+W22+X22-20 -> 10 | Y24: =200+SUM(D25:X25) -> 300
D25: =D24+E24 -> 0 | F25: =F24+G24 -> 10 | H25: =H24+I24 -> 10 | J25: =J24+K24 -> 10 | L25: =L24+M24 -> 10 | N25: =N24+O24 -> 10 | P25: =P24+Q24 -> 10 | R25: =R24+S24 -> 10 | T25: =T24+U24 -> 10 | V25: =IF(AND(R22=10,T22=10),IF(V22=10,10,V22-10),IF(T22=10,IF(V22=10,10,0),IF(T22+U22=10,IF(V22=10,0,V22-10),0))) -> 10 | W25: =IF(W22=10,10,IF(AND(T22=10,V22=10),W22-10,IF(AND(T22=10,V22<10),IF(V22+W22=10,0,2*V22+2*W22-30),IF(V22=10,0,IF(AND(V22<10,V22+W22=10),0,V22+W22-20))))) -> 10 | X25: =IF(OR(V22+W22=10,V22+W22=20),X22-10,IF(V22=10,W22+X22-10,0)) -> 0
C26: Player 2 | D26: 1 | F26: 2 | H26: 3 | J26: 4 | L26: 5 | N26: 6 | P26: 7 | R26: 8 | T26: 9 | V26: 10
C27: =スコア!C15 -> 0 | D27: =スコア!EI15 -> 10 | E27: =スコア!EJ15 -> 0 | F27: =スコア!EK15 -> 10 | G27: =スコア!EL15 -> 0 | H27: =スコア!EM15 -> 10 | I27: =スコア!EN15 -> 0 | J27: =スコア!EO15 -> 10 | K27: =スコア!EP15 -> 0 | L27: =スコア!EQ15 -> 10 | M27: =スコア!ER15 -> 0 | N27: =スコア!ES15 -> 10 | O27: =スコア!ET15 -> 0 | P27: =スコア!EU15 -> 10 | Q27: =スコア!EV15 -> 0 | R27: =スコア!EW15 -> 10 | S27: =スコア!EX15 -> 0 | T27: =スコア!EY15 -> 10 | U27: =スコア!EZ15 -> 0 | V27: =スコア!FA15 -> 10 | W27: =スコア!FB15 -> 10 | X27: =スコア!FC15 -> 10 | Y27: =V28 -> 300
D28: =IF(AND(D27=10,F27=10),20+H27,IF(AND(D27=10,F27<10),10+F27+G27,IF(AND(D27<10,D27+E27=10),10+F27,D27+E27))) -> 30 | F28: =IF(AND(F27=10,H27=10),D28+20+J27,IF(AND(F27=10,H27<10),D28+10+H27+I27,IF(AND(F27<10,F27+G27=10),D28+10+H27,D28+F27+G27))) -> 60 | H28: =IF(AND(H27=10,J27=10),F28+20+L27,IF(AND(H27=10,J27<10),F28+10+J27+K27,IF(AND(H27<10,H27+I27=10),F28+10+J27,F28+H27+I27))) -> 90 | J28: =IF(AND(J27=10,L27=10),H28+20+N27,IF(AND(J27=10,L27<10),H28+10+L27+M27,IF(AND(J27<10,J27+K27=10),H28+10+L27,H28+J27+K27))) -> 120 | L28: =IF(AND(L27=10,N27=10),J28+20+P27,IF(AND(L27=10,N27<10),J28+10+N27+O27,IF(AND(L27<10,L27+M27=10),J28+10+N27,J28+L27+M27))) -> 150 | N28: =IF(AND(N27=10,P27=10),L28+20+R27,IF(AND(N27=10,P27<10),L28+10+P27+Q27,IF(AND(N27<10,N27+O27=10),L28+10+P27,L28+N27+O27))) -> 180 | P28: =IF(AND(P27=10,R27=10),N28+20+T27,IF(AND(P27=10,R27<10),N28+10+R27+S27,IF(AND(P27<10,P27+Q27=10),N28+10+R27,N28+P27+Q27))) -> 210 | R28: =IF(AND(R27=10,T27=10),P28+20+V27,IF(AND(R27=10,T27<10),P28+10+T27+U27,IF(AND(R27<10,R27+S27=10),P28+10+T27,P28+R27+S27))) -> 240 | T28: =IF(AND(T27=10,V27=10),R28+20+W27,IF(AND(T27=10,V27<10),R28+10+V27+W27,IF(AND(T27<10,T27+U27=10),R28+10+V27,R28+T27+U27))) -> 270 | V28: =T28+V27+W27+X27 -> 300
D29: 0 | E29: =IF(D27+E27<10,D27+E27-20,0) -> 0 | F29: =IF(AND(D27=10,F27=10),10,IF(AND(D27=10,F27+G27<11),F27+G27-10,IF(D27+E27=10,F27-10,0))) -> 10 | G29: =IF(F27+G27<10,F27+G27-20,0) -> 0 | H29: =IF(AND(F27=10,H27=10),10,IF(AND(D27=10,F27=10,H27<10),2*H27+I27-20,IF(AND(F27=10,H27+I27<11),H27+I27-10,IF(F27+G27=10,H27-10,0)))) -> 10 | I29: =IF(H27+I27<10,H27+I27-20,0) -> 0 | J29: =IF(AND(H27=10,J27=10),10,IF(AND(F27=10,H27=10,J27<10),2*J27+K27-20,IF(AND(H27=10,J27+K27<11),J27+K27-10,IF(H27+I27=10,J27-10,0)))) -> 10 | K29: =IF(J27+K27<10,J27+K27-20,0) -> 0 | L29: =IF(AND(J27=10,L27=10),10,IF(AND(H27=10,J27=10,L27<10),2*L27+M27-20,IF(AND(J27=10,L27+M27<11),L27+M27-10,IF(J27+K27=10,L27-10,0)))) -> 10 | M29: =IF(L27+M27<10,L27+M27-20,0) -> 0 | N29: =IF(AND(L27=10,N27=10),10,IF(AND(J27=10,L27=10,N27<10),2*N27+O27-20,IF(AND(L27=10,N27+O27<11),N27+O27-10,IF(L27+M27=10,N27-10,0)))) -> 10 | O29: =IF(N27+O27<10,N27+O27-20,0) -> 0 | P29: =IF(AND(N27=10,P27=10),10,IF(AND(L27=10,N27=10,P27<10),2*P27+Q27-20,IF(AND(N27=10,P27+Q27<11),P27+Q27-10,IF(N27+O27=10,P27-10,0)))) -> 10 | Q29: =IF(P27+Q27<10,P27+Q27-20,0) -> 0 | R29: =IF(AND(P27=10,R27=10),10,IF(AND(N27=10,P27=10,R27<10),2*R27+S27-20,IF(AND(P27=10,R27+S27<11),R27+S27-10,IF(P27+Q27=10,R27-10,0)))) -> 10 | S29: =IF(R27+S27<10,R27+S27-20,0) -> 0 | T29: =IF(AND(R27=10,T27=10),10,IF(AND(P27=10,R27=10,T27<10),2*T27+U27-20,IF(AND(R27=10,T27+U27<11),T27+U27-10,IF(R27+S27=10,T27-10,0)))) -> 10 | U29: =IF(T27+U27<10,T27+U27-20,0) -> 0 | V29: =IF(AND(T27=10,V27=10),W27,IF(AND(R27=10,T27=10,V27<10),2*V27+W27-20,IF(AND(T27=10,V27<10),V27+W27-10,IF(T27+U27=10,V27-10,0)))) -> 10 | W29: =V27+W27+X27-20 -> 10 | Y29: =200+SUM(D30:X30) -> 300
D30: =D29+E29 -> 0 | F30: =F29+G29 -> 10 | H30: =H29+I29 -> 10 | J30: =J29+K29 -> 10 | L30: =L29+M29 -> 10 | N30: =N29+O29 -> 10 | P30: =P29+Q29 -> 10 | R30: =R29+S29 -> 10 | T30: =T29+U29 -> 10 | V30: =IF(AND(R27=10,T27=10),IF(V27=10,10,V27-10),IF(T27=10,IF(V27=10,10,0),IF(T27+U27=10,IF(V27=10,0,V27-10),0))) -> 10 | W30: =IF(W27=10,10,IF(AND(T27=10,V27=10),W27-10,IF(AND(T27=10,V27<10),IF(V27+W27=10,0,2*V27+2*W27-30),IF(V27=10,0,IF(AND(V27<10,V27+W27=10),0,V27+W27-20))))) -> 10 | X30: =IF(OR(V27+W27=10,V27+W27=20),X27-10,IF(V27=10,W27+X27-10,0)) -> 0
C31: Player 3 | D31: 1 | F31: 2 | H31: 3 | J31: 4 | L31: 5 | N31: 6 | P31: 7 | R31: 8 | T31: 9 | V31: 10
C32: =スコア!C25 -> 0 | D32: =スコア!EI25 -> 10 | E32: =スコア!EJ25 -> 0 | F32: =スコア!EK25 -> 10 | G32: =スコア!EL25 -> 0 | H32: =スコア!EM25 -> 10 | I32: =スコア!EN25 -> 0 | J32: =スコア!EO25 -> 10 | K32: =スコア!EP25 -> 0 | L32: =スコア!EQ25 -> 10 | M32: =スコア!ER25 -> 0 | N32: =スコア!ES25 -> 10 | O32: =スコア!ET25 -> 0 | P32: =スコア!EU25 -> 10 | Q32: =スコア!EV25 -> 0 | R32: =スコア!EW25 -> 10 | S32: =スコア!EX25 -> 0 | T32: =スコア!EY25 -> 10 | U32: =スコア!EZ25 -> 0 | V32: =スコア!FA25 -> 10 | W32: =スコア!FB25 -> 10 | X32: =スコア!FC25 -> 10 | Y32: =V33 -> 300
D33: =IF(AND(D32=10,F32=10),20+H32,IF(AND(D32=10,F32<10),10+F32+G32,IF(AND(D32<10,D32+E32=10),10+F32,D32+E32))) -> 30 | F33: =IF(AND(F32=10,H32=10),D33+20+J32,IF(AND(F32=10,H32<10),D33+10+H32+I32,IF(AND(F32<10,F32+G32=10),D33+10+H32,D33+F32+G32))) -> 60 | H33: =IF(AND(H32=10,J32=10),F33+20+L32,IF(AND(H32=10,J32<10),F33+10+J32+K32,IF(AND(H32<10,H32+I32=10),F33+10+J32,F33+H32+I32))) -> 90 | J33: =IF(AND(J32=10,L32=10),H33+20+N32,IF(AND(J32=10,L32<10),H33+10+L32+M32,IF(AND(J32<10,J32+K32=10),H33+10+L32,H33+J32+K32))) -> 120 | L33: =IF(AND(L32=10,N32=10),J33+20+P32,IF(AND(L32=10,N32<10),J33+10+N32+O32,IF(AND(L32<10,L32+M32=10),J33+10+N32,J33+L32+M32))) -> 150 | N33: =IF(AND(N32=10,P32=10),L33+20+R32,IF(AND(N32=10,P32<10),L33+10+P32+Q32,IF(AND(N32<10,N32+O32=10),L33+10+P32,L33+N32+O32))) -> 180 | P33: =IF(AND(P32=10,R32=10),N33+20+T32,IF(AND(P32=10,R32<10),N33+10+R32+S32,IF(AND(P32<10,P32+Q32=10),N33+10+R32,N33+P32+Q32))) -> 210 | R33: =IF(AND(R32=10,T32=10),P33+20+V32,IF(AND(R32=10,T32<10),P33+10+T32+U32,IF(AND(R32<10,R32+S32=10),P33+10+T32,P33+R32+S32))) -> 240 | T33: =IF(AND(T32=10,V32=10),R33+20+W32,IF(AND(T32=10,V32<10),R33+10+V32+W32,IF(AND(T32<10,T32+U32=10),R33+10+V32,R33+T32+U32))) -> 270 | V33: =T33+V32+W32+X32 -> 300
D34: 0 | E34: =IF(D32+E32<10,D32+E32-20,0) -> 0 | F34: =IF(AND(D32=10,F32=10),10,IF(AND(D32=10,F32+G32<11),F32+G32-10,IF(D32+E32=10,F32-10,0))) -> 10 | G34: =IF(F32+G32<10,F32+G32-20,0) -> 0 | H34: =IF(AND(F32=10,H32=10),10,IF(AND(D32=10,F32=10,H32<10),2*H32+I32-20,IF(AND(F32=10,H32+I32<11),H32+I32-10,IF(F32+G32=10,H32-10,0)))) -> 10 | I34: =IF(H32+I32<10,H32+I32-20,0) -> 0 | J34: =IF(AND(H32=10,J32=10),10,IF(AND(F32=10,H32=10,J32<10),2*J32+K32-20,IF(AND(H32=10,J32+K32<11),J32+K32-10,IF(H32+I32=10,J32-10,0)))) -> 10 | K34: =IF(J32+K32<10,J32+K32-20,0) -> 0 | L34: =IF(AND(J32=10,L32=10),10,IF(AND(H32=10,J32=10,L32<10),2*L32+M32-20,IF(AND(J32=10,L32+M32<11),L32+M32-10,IF(J32+K32=10,L32-10,0)))) -> 10 | M34: =IF(L32+M32<10,L32+M32-20,0) -> 0 | N34: =IF(AND(L32=10,N32=10),10,IF(AND(J32=10,L32=10,N32<10),2*N32+O32-20,IF(AND(L32=10,N32+O32<11),N32+O32-10,IF(L32+M32=10,N32-10,0)))) -> 10 | O34: =IF(N32+O32<10,N32+O32-20,0) -> 0 | P34: =IF(AND(N32=10,P32=10),10,IF(AND(L32=10,N32=10,P32<10),2*P32+Q32-20,IF(AND(N32=10,P32+Q32<11),P32+Q32-10,IF(N32+O32=10,P32-10,0)))) -> 10 | Q34: =IF(P32+Q32<10,P32+Q32-20,0) -> 0 | R34: =IF(AND(P32=10,R32=10),10,IF(AND(N32=10,P32=10,R32<10),2*R32+S32-20,IF(AND(P32=10,R32+S32<11),R32+S32-10,IF(P32+Q32=10,R32-10,0)))) -> 10 | S34: =IF(R32+S32<10,R32+S32-20,0) -> 0 | T34: =IF(AND(R32=10,T32=10),10,IF(AND(P32=10,R32=10,T32<10),2*T32+U32-20,IF(AND(R32=10,T32+U32<11),T32+U32-10,IF(R32+S32=10,T32-10,0)))) -> 10 | U34: =IF(T32+U32<10,T32+U32-20,0) -> 0 | V34: =IF(AND(T32=10,V32=10),W32,IF(AND(R32=10,T32=10,V32<10),2*V32+W32-20,IF(AND(T32=10,V32<10),V32+W32-10,IF(T32+U32=10,V32-10,0)))) -> 10 | W34: =V32+W32+X32-20 -> 10 | Y34: =200+SUM(D35:X35) -> 300
D35: =D34+E34 -> 0 | F35: =F34+G34 -> 10 | H35: =H34+I34 -> 10 | J35: =J34+K34 -> 10 | L35: =L34+M34 -> 10 | N35: =N34+O34 -> 10 | P35: =P34+Q34 -> 10 | R35: =R34+S34 -> 10 | T35: =T34+U34 -> 10 | V35: =IF(AND(R32=10,T32=10),IF(V32=10,10,V32-10),IF(T32=10,IF(V32=10,10,0),IF(T32+U32=10,IF(V32=10,0,V32-10),0))) -> 10 | W35: =IF(W32=10,10,IF(AND(T32=10,V32=10),W32-10,IF(AND(T32=10,V32<10),IF(V32+W32=10,0,2*V32+2*W32-30),IF(V32=10,0,IF(AND(V32<10,V32+W32=10),0,V32+W32-20))))) -> 10 | X35: =IF(OR(V32+W32=10,V32+W32=20),X32-10,IF(V32=10,W32+X32-10,0)) -> 0
C36: Player 4 | D36: 1 | F36: 2 | H36: 3 | J36: 4 | L36: 5 | N36: 6 | P36: 7 | R36: 8 | T36: 9 | V36: 10
C37: =スコア!C35 -> 0 | D37: =スコア!EI35 -> 10 | E37: =スコア!EJ35 -> 0 | F37: =スコア!EK35 -> 10 | G37: =スコア!EL35 -> 0 | H37: =スコア!EM35 -> 10 | I37: =スコア!EN35 -> 0 | J37: =スコア!EO35 -> 10 | K37: =スコア!EP35 -> 0 | L37: =スコア!EQ35 -> 10 | M37: =スコア!ER35 -> 0 | N37: =スコア!ES35 -> 10 | O37: =スコア!ET35 -> 0 | P37: =スコア!EU35 -> 10 | Q37: =スコア!EV35 -> 0 | R37: =スコア!EW35 -> 10 | S37: =スコア!EX35 -> 0 | T37: =スコア!EY35 -> 10 | U37: =スコア!EZ35 -> 0 | V37: =スコア!FA35 -> 10 | W37: =スコア!FB35 -> 10 | X37: =スコア!FC35 -> 10 | Y37: =V38 -> 300
D38: =IF(AND(D37=10,F37=10),20+H37,IF(AND(D37=10,F37<10),10+F37+G37,IF(AND(D37<10,D37+E37=10),10+F37,D37+E37))) -> 30 | F38: =IF(AND(F37=10,H37=10),D38+20+J37,IF(AND(F37=10,H37<10),D38+10+H37+I37,IF(AND(F37<10,F37+G37=10),D38+10+H37,D38+F37+G37))) -> 60 | H38: =IF(AND(H37=10,J37=10),F38+20+L37,IF(AND(H37=10,J37<10),F38+10+J37+K37,IF(AND(H37<10,H37+I37=10),F38+10+J37,F38+H37+I37))) -> 90 | J38: =IF(AND(J37=10,L37=10),H38+20+N37,IF(AND(J37=10,L37<10),H38+10+L37+M37,IF(AND(J37<10,J37+K37=10),H38+10+L37,H38+J37+K37))) -> 120 | L38: =IF(AND(L37=10,N37=10),J38+20+P37,IF(AND(L37=10,N37<10),J38+10+N37+O37,IF(AND(L37<10,L37+M37=10),J38+10+N37,J38+L37+M37))) -> 150 | N38: =IF(AND(N37=10,P37=10),L38+20+R37,IF(AND(N37=10,P37<10),L38+10+P37+Q37,IF(AND(N37<10,N37+O37=10),L38+10+P37,L38+N37+O37))) -> 180 | P38: =IF(AND(P37=10,R37=10),N38+20+T37,IF(AND(P37=10,R37<10),N38+10+R37+S37,IF(AND(P37<10,P37+Q37=10),N38+10+R37,N38+P37+Q37))) -> 210 | R38: =IF(AND(R37=10,T37=10),P38+20+V37,IF(AND(R37=10,T37<10),P38+10+T37+U37,IF(AND(R37<10,R37+S37=10),P38+10+T37,P38+R37+S37))) -> 240 | T38: =IF(AND(T37=10,V37=10),R38+20+W37,IF(AND(T37=10,V37<10),R38+10+V37+W37,IF(AND(T37<10,T37+U37=10),R38+10+V37,R38+T37+U37))) -> 270 | V38: =T38+V37+W37+X37 -> 300
D39: 0 | E39: =IF(D37+E37<10,D37+E37-20,0) -> 0 | F39: =IF(AND(D37=10,F37=10),10,IF(AND(D37=10,F37+G37<11),F37+G37-10,IF(D37+E37=10,F37-10,0))) -> 10 | G39: =IF(F37+G37<10,F37+G37-20,0) -> 0 | H39: =IF(AND(F37=10,H37=10),10,IF(AND(D37=10,F37=10,H37<10),2*H37+I37-20,IF(AND(F37=10,H37+I37<11),H37+I37-10,IF(F37+G37=10,H37-10,0)))) -> 10 | I39: =IF(H37+I37<10,H37+I37-20,0) -> 0 | J39: =IF(AND(H37=10,J37=10),10,IF(AND(F37=10,H37=10,J37<10),2*J37+K37-20,IF(AND(H37=10,J37+K37<11),J37+K37-10,IF(H37+I37=10,J37-10,0)))) -> 10 | K39: =IF(J37+K37<10,J37+K37-20,0) -> 0 | L39: =IF(AND(J37=10,L37=10),10,IF(AND(H37=10,J37=10,L37<10),2*L37+M37-20,IF(AND(J37=10,L37+M37<11),L37+M37-10,IF(J37+K37=10,L37-10,0)))) -> 10 | M39: =IF(L37+M37<10,L37+M37-20,0) -> 0 | N39: =IF(AND(L37=10,N37=10),10,IF(AND(J37=10,L37=10,N37<10),2*N37+O37-20,IF(AND(L37=10,N37+O37<11),N37+O37-10,IF(L37+M37=10,N37-10,0)))) -> 10 | O39: =IF(N37+O37<10,N37+O37-20,0) -> 0 | P39: =IF(AND(N37=10,P37=10),10,IF(AND(L37=10,N37=10,P37<10),2*P37+Q37-20,IF(AND(N37=10,P37+Q37<11),P37+Q37-10,IF(N37+O37=10,P37-10,0)))) -> 10 | Q39: =IF(P37+Q37<10,P37+Q37-20,0) -> 0 | R39: =IF(AND(P37=10,R37=10),10,IF(AND(N37=10,P37=10,R37<10),2*R37+S37-20,IF(AND(P37=10,R37+S37<11),R37+S37-10,IF(P37+Q37=10,R37-10,0)))) -> 10 | S39: =IF(R37+S37<10,R37+S37-20,0) -> 0 | T39: =IF(AND(R37=10,T37=10),10,IF(AND(P37=10,R37=10,T37<10),2*T37+U37-20,IF(AND(R37=10,T37+U37<11),T37+U37-10,IF(R37+S37=10,T37-10,0)))) -> 10 | U39: =IF(T37+U37<10,T37+U37-20,0) -> 0 | V39: =IF(AND(T37=10,V37=10),W37,IF(AND(R37=10,T37=10,V37<10),2*V37+W37-20,IF(AND(T37=10,V37<10),V37+W37-10,IF(T37+U37=10,V37-10,0)))) -> 10 | W39: =V37+W37+X37-20 -> 10 | Y39: =200+SUM(D40:X40) -> 300
D40: =D39+E39 -> 0 | F40: =F39+G39 -> 10 | H40: =H39+I39 -> 10 | J40: =J39+K39 -> 10 | L40: =L39+M39 -> 10 | N40: =N39+O39 -> 10 | P40: =P39+Q39 -> 10 | R40: =R39+S39 -> 10 | T40: =T39+U39 -> 10 | V40: =IF(AND(R37=10,T37=10),IF(V37=10,10,V37-10),IF(T37=10,IF(V37=10,10,0),IF(T37+U37=10,IF(V37=10,0,V37-10),0))) -> 10 | W40: =IF(W37=10,10,IF(AND(T37=10,V37=10),W37-10,IF(AND(T37=10,V37<10),IF(V37+W37=10,0,2*V37+2*W37-30),IF(V37=10,0,IF(AND(V37<10,V37+W37=10),0,V37+W37-20))))) -> 10 | X40: =IF(OR(V37+W37=10,V37+W37=20),X37-10,IF(V37=10,W37+X37-10,0)) -> 0
C41: Player 5 | D41: 1 | F41: 2 | H41: 3 | J41: 4 | L41: 5 | N41: 6 | P41: 7 | R41: 8 | T41: 9 | V41: 10
C42: =スコア!C45 -> 0 | D42: =スコア!EI45 -> 10 | E42: =スコア!EJ45 -> 0 | F42: =スコア!EK45 -> 10 | G42: =スコア!EL45 -> 0 | H42: =スコア!EM45 -> 10 | I42: =スコア!EN45 -> 0 | J42: =スコア!EO45 -> 10 | K42: =スコア!EP45 -> 0 | L42: =スコア!EQ45 -> 10 | M42: =スコア!ER45 -> 0 | N42: =スコア!ES45 -> 10 | O42: =スコア!ET45 -> 0 | P42: =スコア!EU45 -> 10 | Q42: =スコア!EV45 -> 0 | R42: =スコア!EW45 -> 10 | S42: =スコア!EX45 -> 0 | T42: =スコア!EY45 -> 10 | U42: =スコア!EZ45 -> 0 | V42: =スコア!FA45 -> 10 | W42: =スコア!FB45 -> 10 | X42: =スコア!FC45 -> 10 | Y42: =V43 -> 300
D43: =IF(AND(D42=10,F42=10),20+H42,IF(AND(D42=10,F42<10),10+F42+G42,IF(AND(D42<10,D42+E42=10),10+F42,D42+E42))) -> 30 | F43: =IF(AND(F42=10,H42=10),D43+20+J42,IF(AND(F42=10,H42<10),D43+10+H42+I42,IF(AND(F42<10,F42+G42=10),D43+10+H42,D43+F42+G42))) -> 60 | H43: =IF(AND(H42=10,J42=10),F43+20+L42,IF(AND(H42=10,J42<10),F43+10+J42+K42,IF(AND(H42<10,H42+I42=10),F43+10+J42,F43+H42+I42))) -> 90 | J43: =IF(AND(J42=10,L42=10),H43+20+N42,IF(AND(J42=10,L42<10),H43+10+L42+M42,IF(AND(J42<10,J42+K42=10),H43+10+L42,H43+J42+K42))) -> 120 | L43: =IF(AND(L42=10,N42=10),J43+20+P42,IF(AND(L42=10,N42<10),J43+10+N42+O42,IF(AND(L42<10,L42+M42=10),J43+10+N42,J43+L42+M42))) -> 150 | N43: =IF(AND(N42=10,P42=10),L43+20+R42,IF(AND(N42=10,P42<10),L43+10+P42+Q42,IF(AND(N42<10,N42+O42=10),L43+10+P42,L43+N42+O42))) -> 180 | P43: =IF(AND(P42=10,R42=10),N43+20+T42,IF(AND(P42=10,R42<10),N43+10+R42+S42,IF(AND(P42<10,P42+Q42=10),N43+10+R42,N43+P42+Q42))) -> 210 | R43: =IF(AND(R42=10,T42=10),P43+20+V42,IF(AND(R42=10,T42<10),P43+10+T42+U42,IF(AND(R42<10,R42+S42=10),P43+10+T42,P43+R42+S42))) -> 240 | T43: =IF(AND(T42=10,V42=10),R43+20+W42,IF(AND(T42=10,V42<10),R43+10+V42+W42,IF(AND(T42<10,T42+U42=10),R43+10+V42,R43+T42+U42))) -> 270 | V43: =T43+V42+W42+X42 -> 300
D44: 0 | E44: =IF(D42+E42<10,D42+E42-20,0) -> 0 | F44: =IF(AND(D42=10,F42=10),10,IF(AND(D42=10,F42+G42<11),F42+G42-10,IF(D42+E42=10,F42-10,0))) -> 10 | G44: =IF(F42+G42<10,F42+G42-20,0) -> 0 | H44: =IF(AND(F42=10,H42=10),10,IF(AND(D42=10,F42=10,H42<10),2*H42+I42-20,IF(AND(F42=10,H42+I42<11),H42+I42-10,IF(F42+G42=10,H42-10,0)))) -> 10 | I44: =IF(H42+I42<10,H42+I42-20,0) -> 0 | J44: =IF(AND(H42=10,J42=10),10,IF(AND(F42=10,H42=10,J42<10),2*J42+K42-20,IF(AND(H42=10,J42+K42<11),J42+K42-10,IF(H42+I42=10,J42-10,0)))) -> 10 | K44: =IF(J42+K42<10,J42+K42-20,0) -> 0 | L44: =IF(AND(J42=10,L42=10),10,IF(AND(H42=10,J42=10,L42<10),2*L42+M42-20,IF(AND(J42=10,L42+M42<11),L42+M42-10,IF(J42+K42=10,L42-10,0)))) -> 10 | M44: =IF(L42+M42<10,L42+M42-20,0) -> 0 | N44: =IF(AND(L42=10,N42=10),10,IF(AND(J42=10,L42=10,N42<10),2*N42+O42-20,IF(AND(L42=10,N42+O42<11),N42+O42-10,IF(L42+M42=10,N42-10,0)))) -> 10 | O44: =IF(N42+O42<10,N42+O42-20,0) -> 0 | P44: =IF(AND(N42=10,P42=10),10,IF(AND(L42=10,N42=10,P42<10),2*P42+Q42-20,IF(AND(N42=10,P42+Q42<11),P42+Q42-10,IF(N42+O42=10,P42-10,0)))) -> 10 | Q44: =IF(P42+Q42<10,P42+Q42-20,0) -> 0 | R44: =IF(AND(P42=10,R42=10),10,IF(AND(N42=10,P42=10,R42<10),2*R42+S42-20,IF(AND(P42=10,R42+S42<11),R42+S42-10,IF(P42+Q42=10,R42-10,0)))) -> 10 | S44: =IF(R42+S42<10,R42+S42-20,0) -> 0 | T44: =IF(AND(R42=10,T42=10),10,IF(AND(P42=10,R42=10,T42<10),2*T42+U42-20,IF(AND(R42=10,T42+U42<11),T42+U42-10,IF(R42+S42=10,T42-10,0)))) -> 10 | U44: =IF(T42+U42<10,T42+U42-20,0) -> 0 | V44: =IF(AND(T42=10,V42=10),W42,IF(AND(R42=10,T42=10,V42<10),2*V42+W42-20,IF(AND(T42=10,V42<10),V42+W42-10,IF(T42+U42=10,V42-10,0)))) -> 10 | W44: =V42+W42+X42-20 -> 10 | Y44: =200+SUM(D45:X45) -> 300
D45: =D44+E44 -> 0 | F45: =F44+G44 -> 10 | H45: =H44+I44 -> 10 | J45: =J44+K44 -> 10 | L45: =L44+M44 -> 10 | N45: =N44+O44 -> 10 | P45: =P44+Q44 -> 10 | R45: =R44+S44 -> 10 | T45: =T44+U44 -> 10 | V45: =IF(AND(R42=10,T42=10),IF(V42=10,10,V42-10),IF(T42=10,IF(V42=10,10,0),IF(T42+U42=10,IF(V42=10,0,V42-10),0))) -> 10 | W45: =IF(W42=10,10,IF(AND(T42=10,V42=10),W42-10,IF(AND(T42=10,V42<10),IF(V42+W42=10,0,2*V42+2*W42-30),IF(V42=10,0,IF(AND(V42<10,V42+W42=10),0,V42+W42-20))))) -> 10 | X45: =IF(OR(V42+W42=10,V42+W42=20),X42-10,IF(V42=10,W42+X42-10,0)) -> 0
B47: 相 手 大 学 | C47: Player 1 | D47: 1 | F47: 2 | H47: 3 | J47: 4 | L47: 5 | N47: 6 | P47: 7 | R47: 8 | T47: 9 | V47: 10
C48: =スコア!C55 -> 0 | D48: =スコア!EI55 -> 10 | E48: =スコア!EJ55 -> 0 | F48: =スコア!EK55 -> 10 | G48: =スコア!EL55 -> 0 | H48: =スコア!EM55 -> 10 | I48: =スコア!EN55 -> 0 | J48: =スコア!EO55 -> 10 | K48: =スコア!EP55 -> 0 | L48: =スコア!EQ55 -> 10 | M48: =スコア!ER55 -> 0 | N48: =スコア!ES55 -> 10 | O48: =スコア!ET55 -> 0 | P48: =スコア!EU55 -> 10 | Q48: =スコア!EV55 -> 0 | R48: =スコア!EW55 -> 10 | S48: =スコア!EX55 -> 0 | T48: =スコア!EY55 -> 10 | U48: =スコア!EZ55 -> 0 | V48: =スコア!FA55 -> 10 | W48: =スコア!FB55 -> 10 | X48: =スコア!FC55 -> 10 | Y48: =V49 -> 300
D49: =IF(AND(D48=10,F48=10),20+H48,IF(AND(D48=10,F48<10),10+F48+G48,IF(AND(D48<10,D48+E48=10),10+F48,D48+E48))) -> 30 | F49: =IF(AND(F48=10,H48=10),D49+20+J48,IF(AND(F48=10,H48<10),D49+10+H48+I48,IF(AND(F48<10,F48+G48=10),D49+10+H48,D49+F48+G48))) -> 60 | H49: =IF(AND(H48=10,J48=10),F49+20+L48,IF(AND(H48=10,J48<10),F49+10+J48+K48,IF(AND(H48<10,H48+I48=10),F49+10+J48,F49+H48+I48))) -> 90 | J49: =IF(AND(J48=10,L48=10),H49+20+N48,IF(AND(J48=10,L48<10),H49+10+L48+M48,IF(AND(J48<10,J48+K48=10),H49+10+L48,H49+J48+K48))) -> 120 | L49: =IF(AND(L48=10,N48=10),J49+20+P48,IF(AND(L48=10,N48<10),J49+10+N48+O48,IF(AND(L48<10,L48+M48=10),J49+10+N48,J49+L48+M48))) -> 150 | N49: =IF(AND(N48=10,P48=10),L49+20+R48,IF(AND(N48=10,P48<10),L49+10+P48+Q48,IF(AND(N48<10,N48+O48=10),L49+10+P48,L49+N48+O48))) -> 180 | P49: =IF(AND(P48=10,R48=10),N49+20+T48,IF(AND(P48=10,R48<10),N49+10+R48+S48,IF(AND(P48<10,P48+Q48=10),N49+10+R48,N49+P48+Q48))) -> 210 | R49: =IF(AND(R48=10,T48=10),P49+20+V48,IF(AND(R48=10,T48<10),P49+10+T48+U48,IF(AND(R48<10,R48+S48=10),P49+10+T48,P49+R48+S48))) -> 240 | T49: =IF(AND(T48=10,V48=10),R49+20+W48,IF(AND(T48=10,V48<10),R49+10+V48+W48,IF(AND(T48<10,T48+U48=10),R49+10+V48,R49+T48+U48))) -> 270 | V49: =T49+V48+W48+X48 -> 300
D50: 0 | E50: =IF(D48+E48<10,D48+E48-20,0) -> 0 | F50: =IF(AND(D48=10,F48=10),10,IF(AND(D48=10,F48+G48<11),F48+G48-10,IF(D48+E48=10,F48-10,0))) -> 10 | G50: =IF(F48+G48<10,F48+G48-20,0) -> 0 | H50: =IF(AND(F48=10,H48=10),10,IF(AND(D48=10,F48=10,H48<10),2*H48+I48-20,IF(AND(F48=10,H48+I48<11),H48+I48-10,IF(F48+G48=10,H48-10,0)))) -> 10 | I50: =IF(H48+I48<10,H48+I48-20,0) -> 0 | J50: =IF(AND(H48=10,J48=10),10,IF(AND(F48=10,H48=10,J48<10),2*J48+K48-20,IF(AND(H48=10,J48+K48<11),J48+K48-10,IF(H48+I48=10,J48-10,0)))) -> 10 | K50: =IF(J48+K48<10,J48+K48-20,0) -> 0 | L50: =IF(AND(J48=10,L48=10),10,IF(AND(H48=10,J48=10,L48<10),2*L48+M48-20,IF(AND(J48=10,L48+M48<11),L48+M48-10,IF(J48+K48=10,L48-10,0)))) -> 10 | M50: =IF(L48+M48<10,L48+M48-20,0) -> 0 | N50: =IF(AND(L48=10,N48=10),10,IF(AND(J48=10,L48=10,N48<10),2*N48+O48-20,IF(AND(L48=10,N48+O48<11),N48+O48-10,IF(L48+M48=10,N48-10,0)))) -> 10 | O50: =IF(N48+O48<10,N48+O48-20,0) -> 0 | P50: =IF(AND(N48=10,P48=10),10,IF(AND(L48=10,N48=10,P48<10),2*P48+Q48-20,IF(AND(N48=10,P48+Q48<11),P48+Q48-10,IF(N48+O48=10,P48-10,0)))) -> 10 | Q50: =IF(P48+Q48<10,P48+Q48-20,0) -> 0 | R50: =IF(AND(P48=10,R48=10),10,IF(AND(N48=10,P48=10,R48<10),2*R48+S48-20,IF(AND(P48=10,R48+S48<11),R48+S48-10,IF(P48+Q48=10,R48-10,0)))) -> 10 | S50: =IF(R48+S48<10,R48+S48-20,0) -> 0 | T50: =IF(AND(R48=10,T48=10),10,IF(AND(P48=10,R48=10,T48<10),2*T48+U48-20,IF(AND(R48=10,T48+U48<11),T48+U48-10,IF(R48+S48=10,T48-10,0)))) -> 10 | U50: =IF(T48+U48<10,T48+U48-20,0) -> 0 | V50: =IF(AND(T48=10,V48=10),W48,IF(AND(R48=10,T48=10,V48<10),2*V48+W48-20,IF(AND(T48=10,V48<10),V48+W48-10,IF(T48+U48=10,V48-10,0)))) -> 10 | W50: =V48+W48+X48-20 -> 10 | Y50: =200+SUM(D51:X51) -> 300
D51: =D50+E50 -> 0 | F51: =F50+G50 -> 10 | H51: =H50+I50 -> 10 | J51: =J50+K50 -> 10 | L51: =L50+M50 -> 10 | N51: =N50+O50 -> 10 | P51: =P50+Q50 -> 10 | R51: =R50+S50 -> 10 | T51: =T50+U50 -> 10 | V51: =IF(AND(R48=10,T48=10),IF(V48=10,10,V48-10),IF(T48=10,IF(V48=10,10,0),IF(T48+U48=10,IF(V48=10,0,V48-10),0))) -> 10 | W51: =IF(W48=10,10,IF(AND(T48=10,V48=10),W48-10,IF(AND(T48=10,V48<10),IF(V48+W48=10,0,2*V48+2*W48-30),IF(V48=10,0,IF(AND(V48<10,V48+W48=10),0,V48+W48-20))))) -> 10 | X51: =IF(OR(V48+W48=10,V48+W48=20),X48-10,IF(V48=10,W48+X48-10,0)) -> 0
C52: Player 2 | D52: 1 | F52: 2 | H52: 3 | J52: 4 | L52: 5 | N52: 6 | P52: 7 | R52: 8 | T52: 9 | V52: 10
C53: =スコア!C65 -> 0 | D53: =スコア!EI65 -> 10 | E53: =スコア!EJ65 -> 0 | F53: =スコア!EK65 -> 10 | G53: =スコア!EL65 -> 0 | H53: =スコア!EM65 -> 10 | I53: =スコア!EN65 -> 0 | J53: =スコア!EO65 -> 10 | K53: =スコア!EP65 -> 0 | L53: =スコア!EQ65 -> 10 | M53: =スコア!ER65 -> 0 | N53: =スコア!ES65 -> 10 | O53: =スコア!ET65 -> 0 | P53: =スコア!EU65 -> 10 | Q53: =スコア!EV65 -> 0 | R53: =スコア!EW65 -> 10 | S53: =スコア!EX65 -> 0 | T53: =スコア!EY65 -> 10 | U53: =スコア!EZ65 -> 0 | V53: =スコア!FA65 -> 10 | W53: =スコア!FB65 -> 10 | X53: =スコア!FC65 -> 10 | Y53: =V54 -> 300
D54: =IF(AND(D53=10,F53=10),20+H53,IF(AND(D53=10,F53<10),10+F53+G53,IF(AND(D53<10,D53+E53=10),10+F53,D53+E53))) -> 30 | F54: =IF(AND(F53=10,H53=10),D54+20+J53,IF(AND(F53=10,H53<10),D54+10+H53+I53,IF(AND(F53<10,F53+G53=10),D54+10+H53,D54+F53+G53))) -> 60 | H54: =IF(AND(H53=10,J53=10),F54+20+L53,IF(AND(H53=10,J53<10),F54+10+J53+K53,IF(AND(H53<10,H53+I53=10),F54+10+J53,F54+H53+I53))) -> 90 | J54: =IF(AND(J53=10,L53=10),H54+20+N53,IF(AND(J53=10,L53<10),H54+10+L53+M53,IF(AND(J53<10,J53+K53=10),H54+10+L53,H54+J53+K53))) -> 120 | L54: =IF(AND(L53=10,N53=10),J54+20+P53,IF(AND(L53=10,N53<10),J54+10+N53+O53,IF(AND(L53<10,L53+M53=10),J54+10+N53,J54+L53+M53))) -> 150 | N54: =IF(AND(N53=10,P53=10),L54+20+R53,IF(AND(N53=10,P53<10),L54+10+P53+Q53,IF(AND(N53<10,N53+O53=10),L54+10+P53,L54+N53+O53))) -> 180 | P54: =IF(AND(P53=10,R53=10),N54+20+T53,IF(AND(P53=10,R53<10),N54+10+R53+S53,IF(AND(P53<10,P53+Q53=10),N54+10+R53,N54+P53+Q53))) -> 210 | R54: =IF(AND(R53=10,T53=10),P54+20+V53,IF(AND(R53=10,T53<10),P54+10+T53+U53,IF(AND(R53<10,R53+S53=10),P54+10+T53,P54+R53+S53))) -> 240 | T54: =IF(AND(T53=10,V53=10),R54+20+W53,IF(AND(T53=10,V53<10),R54+10+V53+W53,IF(AND(T53<10,T53+U53=10),R54+10+V53,R54+T53+U53))) -> 270 | V54: =T54+V53+W53+X53 -> 300
D55: 0 | E55: =IF(D53+E53<10,D53+E53-20,0) -> 0 | F55: =IF(AND(D53=10,F53=10),10,IF(AND(D53=10,F53+G53<11),F53+G53-10,IF(D53+E53=10,F53-10,0))) -> 10 | G55: =IF(F53+G53<10,F53+G53-20,0) -> 0 | H55: =IF(AND(F53=10,H53=10),10,IF(AND(D53=10,F53=10,H53<10),2*H53+I53-20,IF(AND(F53=10,H53+I53<11),H53+I53-10,IF(F53+G53=10,H53-10,0)))) -> 10 | I55: =IF(H53+I53<10,H53+I53-20,0) -> 0 | J55: =IF(AND(H53=10,J53=10),10,IF(AND(F53=10,H53=10,J53<10),2*J53+K53-20,IF(AND(H53=10,J53+K53<11),J53+K53-10,IF(H53+I53=10,J53-10,0)))) -> 10 | K55: =IF(J53+K53<10,J53+K53-20,0) -> 0 | L55: =IF(AND(J53=10,L53=10),10,IF(AND(H53=10,J53=10,L53<10),2*L53+M53-20,IF(AND(J53=10,L53+M53<11),L53+M53-10,IF(J53+K53=10,L53-10,0)))) -> 10 | M55: =IF(L53+M53<10,L53+M53-20,0) -> 0 | N55: =IF(AND(L53=10,N53=10),10,IF(AND(J53=10,L53=10,N53<10),2*N53+O53-20,IF(AND(L53=10,N53+O53<11),N53+O53-10,IF(L53+M53=10,N53-10,0)))) -> 10 | O55: =IF(N53+O53<10,N53+O53-20,0) -> 0 | P55: =IF(AND(N53=10,P53=10),10,IF(AND(L53=10,N53=10,P53<10),2*P53+Q53-20,IF(AND(N53=10,P53+Q53<11),P53+Q53-10,IF(N53+O53=10,P53-10,0)))) -> 10 | Q55: =IF(P53+Q53<10,P53+Q53-20,0) -> 0 | R55: =IF(AND(P53=10,R53=10),10,IF(AND(N53=10,P53=10,R53<10),2*R53+S53-20,IF(AND(P53=10,R53+S53<11),R53+S53-10,IF(P53+Q53=10,R53-10,0)))) -> 10 | S55: =IF(R53+S53<10,R53+S53-20,0) -> 0 | T55: =IF(AND(R53=10,T53=10),10,IF(AND(P53=10,R53=10,T53<10),2*T53+U53-20,IF(AND(R53=10,T53+U53<11),T53+U53-10,IF(R53+S53=10,T53-10,0)))) -> 10 | U55: =IF(T53+U53<10,T53+U53-20,0) -> 0 | V55: =IF(AND(T53=10,V53=10),W53,IF(AND(R53=10,T53=10,V53<10),2*V53+W53-20,IF(AND(T53=10,V53<10),V53+W53-10,IF(T53+U53=10,V53-10,0)))) -> 10 | W55: =V53+W53+X53-20 -> 10 | Y55: =200+SUM(D56:X56) -> 300
D56: =D55+E55 -> 0 | F56: =F55+G55 -> 10 | H56: =H55+I55 -> 10 | J56: =J55+K55 -> 10 | L56: =L55+M55 -> 10 | N56: =N55+O55 -> 10 | P56: =P55+Q55 -> 10 | R56: =R55+S55 -> 10 | T56: =T55+U55 -> 10 | V56: =IF(AND(R53=10,T53=10),IF(V53=10,10,V53-10),IF(T53=10,IF(V53=10,10,0),IF(T53+U53=10,IF(V53=10,0,V53-10),0))) -> 10 | W56: =IF(W53=10,10,IF(AND(T53=10,V53=10),W53-10,IF(AND(T53=10,V53<10),IF(V53+W53=10,0,2*V53+2*W53-30),IF(V53=10,0,IF(AND(V53<10,V53+W53=10),0,V53+W53-20))))) -> 10 | X56: =IF(OR(V53+W53=10,V53+W53=20),X53-10,IF(V53=10,W53+X53-10,0)) -> 0
C57: Player 3 | D57: 1 | F57: 2 | H57: 3 | J57: 4 | L57: 5 | N57: 6 | P57: 7 | R57: 8 | T57: 9 | V57: 10
C58: =スコア!C75 -> 0 | D58: =スコア!EI75 -> 10 | E58: =スコア!EJ75 -> 0 | F58: =スコア!EK75 -> 10 | G58: =スコア!EL75 -> 0 | H58: =スコア!EM75 -> 10 | I58: =スコア!EN75 -> 0 | J58: =スコア!EO75 -> 10 | K58: =スコア!EP75 -> 0 | L58: =スコア!EQ75 -> 10 | M58: =スコア!ER75 -> 0 | N58: =スコア!ES75 -> 10 | O58: =スコア!ET75 -> 0 | P58: =スコア!EU75 -> 10 | Q58: =スコア!EV75 -> 0 | R58: =スコア!EW75 -> 10 | S58: =スコア!EX75 -> 0 | T58: =スコア!EY75 -> 10 | U58: =スコア!EZ75 -> 0 | V58: =スコア!FA75 -> 10 | W58: =スコア!FB75 -> 10 | X58: =スコア!FC75 -> 10 | Y58: =V59 -> 300
D59: =IF(AND(D58=10,F58=10),20+H58,IF(AND(D58=10,F58<10),10+F58+G58,IF(AND(D58<10,D58+E58=10),10+F58,D58+E58))) -> 30 | F59: =IF(AND(F58=10,H58=10),D59+20+J58,IF(AND(F58=10,H58<10),D59+10+H58+I58,IF(AND(F58<10,F58+G58=10),D59+10+H58,D59+F58+G58))) -> 60 | H59: =IF(AND(H58=10,J58=10),F59+20+L58,IF(AND(H58=10,J58<10),F59+10+J58+K58,IF(AND(H58<10,H58+I58=10),F59+10+J58,F59+H58+I58))) -> 90 | J59: =IF(AND(J58=10,L58=10),H59+20+N58,IF(AND(J58=10,L58<10),H59+10+L58+M58,IF(AND(J58<10,J58+K58=10),H59+10+L58,H59+J58+K58))) -> 120 | L59: =IF(AND(L58=10,N58=10),J59+20+P58,IF(AND(L58=10,N58<10),J59+10+N58+O58,IF(AND(L58<10,L58+M58=10),J59+10+N58,J59+L58+M58))) -> 150 | N59: =IF(AND(N58=10,P58=10),L59+20+R58,IF(AND(N58=10,P58<10),L59+10+P58+Q58,IF(AND(N58<10,N58+O58=10),L59+10+P58,L59+N58+O58))) -> 180 | P59: =IF(AND(P58=10,R58=10),N59+20+T58,IF(AND(P58=10,R58<10),N59+10+R58+S58,IF(AND(P58<10,P58+Q58=10),N59+10+R58,N59+P58+Q58))) -> 210 | R59: =IF(AND(R58=10,T58=10),P59+20+V58,IF(AND(R58=10,T58<10),P59+10+T58+U58,IF(AND(R58<10,R58+S58=10),P59+10+T58,P59+R58+S58))) -> 240 | T59: =IF(AND(T58=10,V58=10),R59+20+W58,IF(AND(T58=10,V58<10),R59+10+V58+W58,IF(AND(T58<10,T58+U58=10),R59+10+V58,R59+T58+U58))) -> 270 | V59: =T59+V58+W58+X58 -> 300
D60: 0 | E60: =IF(D58+E58<10,D58+E58-20,0) -> 0 | F60: =IF(AND(D58=10,F58=10),10,IF(AND(D58=10,F58+G58<11),F58+G58-10,IF(D58+E58=10,F58-10,0))) -> 10 | G60: =IF(F58+G58<10,F58+G58-20,0) -> 0 | H60: =IF(AND(F58=10,H58=10),10,IF(AND(D58=10,F58=10,H58<10),2*H58+I58-20,IF(AND(F58=10,H58+I58<11),H58+I58-10,IF(F58+G58=10,H58-10,0)))) -> 10 | I60: =IF(H58+I58<10,H58+I58-20,0) -> 0 | J60: =IF(AND(H58=10,J58=10),10,IF(AND(F58=10,H58=10,J58<10),2*J58+K58-20,IF(AND(H58=10,J58+K58<11),J58+K58-10,IF(H58+I58=10,J58-10,0)))) -> 10 | K60: =IF(J58+K58<10,J58+K58-20,0) -> 0 | L60: =IF(AND(J58=10,L58=10),10,IF(AND(H58=10,J58=10,L58<10),2*L58+M58-20,IF(AND(J58=10,L58+M58<11),L58+M58-10,IF(J58+K58=10,L58-10,0)))) -> 10 | M60: =IF(L58+M58<10,L58+M58-20,0) -> 0 | N60: =IF(AND(L58=10,N58=10),10,IF(AND(J58=10,L58=10,N58<10),2*N58+O58-20,IF(AND(L58=10,N58+O58<11),N58+O58-10,IF(L58+M58=10,N58-10,0)))) -> 10 | O60: =IF(N58+O58<10,N58+O58-20,0) -> 0 | P60: =IF(AND(N58=10,P58=10),10,IF(AND(L58=10,N58=10,P58<10),2*P58+Q58-20,IF(AND(N58=10,P58+Q58<11),P58+Q58-10,IF(N58+O58=10,P58-10,0)))) -> 10 | Q60: =IF(P58+Q58<10,P58+Q58-20,0) -> 0 | R60: =IF(AND(P58=10,R58=10),10,IF(AND(N58=10,P58=10,R58<10),2*R58+S58-20,IF(AND(P58=10,R58+S58<11),R58+S58-10,IF(P58+Q58=10,R58-10,0)))) -> 10 | S60: =IF(R58+S58<10,R58+S58-20,0) -> 0 | T60: =IF(AND(R58=10,T58=10),10,IF(AND(P58=10,R58=10,T58<10),2*T58+U58-20,IF(AND(R58=10,T58+U58<11),T58+U58-10,IF(R58+S58=10,T58-10,0)))) -> 10 | U60: =IF(T58+U58<10,T58+U58-20,0) -> 0 | V60: =IF(AND(T58=10,V58=10),W58,IF(AND(R58=10,T58=10,V58<10),2*V58+W58-20,IF(AND(T58=10,V58<10),V58+W58-10,IF(T58+U58=10,V58-10,0)))) -> 10 | W60: =V58+W58+X58-20 -> 10 | Y60: =200+SUM(D61:X61) -> 300
D61: =D60+E60 -> 0 | F61: =F60+G60 -> 10 | H61: =H60+I60 -> 10 | J61: =J60+K60 -> 10 | L61: =L60+M60 -> 10 | N61: =N60+O60 -> 10 | P61: =P60+Q60 -> 10 | R61: =R60+S60 -> 10 | T61: =T60+U60 -> 10 | V61: =IF(AND(R58=10,T58=10),IF(V58=10,10,V58-10),IF(T58=10,IF(V58=10,10,0),IF(T58+U58=10,IF(V58=10,0,V58-10),0))) -> 10 | W61: =IF(W58=10,10,IF(AND(T58=10,V58=10),W58-10,IF(AND(T58=10,V58<10),IF(V58+W58=10,0,2*V58+2*W58-30),IF(V58=10,0,IF(AND(V58<10,V58+W58=10),0,V58+W58-20))))) -> 10 | X61: =IF(OR(V58+W58=10,V58+W58=20),X58-10,IF(V58=10,W58+X58-10,0)) -> 0
C62: Player 4 | D62: 1 | F62: 2 | H62: 3 | J62: 4 | L62: 5 | N62: 6 | P62: 7 | R62: 8 | T62: 9 | V62: 10
C63: =スコア!C85 -> 0 | D63: =スコア!EI85 -> 10 | E63: =スコア!EJ85 -> 0 | F63: =スコア!EK85 -> 10 | G63: =スコア!EL85 -> 0 | H63: =スコア!EM85 -> 10 | I63: =スコア!EN85 -> 0 | J63: =スコア!EO85 -> 10 | K63: =スコア!EP85 -> 0 | L63: =スコア!EQ85 -> 10 | M63: =スコア!ER85 -> 0 | N63: =スコア!ES85 -> 10 | O63: =スコア!ET85 -> 0 | P63: =スコア!EU85 -> 10 | Q63: =スコア!EV85 -> 0 | R63: =スコア!EW85 -> 10 | S63: =スコア!EX85 -> 0 | T63: =スコア!EY85 -> 10 | U63: =スコア!EZ85 -> 0 | V63: =スコア!FA85 -> 10 | W63: =スコア!FB85 -> 10 | X63: =スコア!FC85 -> 10 | Y63: =V64 -> 300
D64: =IF(AND(D63=10,F63=10),20+H63,IF(AND(D63=10,F63<10),10+F63+G63,IF(AND(D63<10,D63+E63=10),10+F63,D63+E63))) -> 30 | F64: =IF(AND(F63=10,H63=10),D64+20+J63,IF(AND(F63=10,H63<10),D64+10+H63+I63,IF(AND(F63<10,F63+G63=10),D64+10+H63,D64+F63+G63))) -> 60 | H64: =IF(AND(H63=10,J63=10),F64+20+L63,IF(AND(H63=10,J63<10),F64+10+J63+K63,IF(AND(H63<10,H63+I63=10),F64+10+J63,F64+H63+I63))) -> 90 | J64: =IF(AND(J63=10,L63=10),H64+20+N63,IF(AND(J63=10,L63<10),H64+10+L63+M63,IF(AND(J63<10,J63+K63=10),H64+10+L63,H64+J63+K63))) -> 120 | L64: =IF(AND(L63=10,N63=10),J64+20+P63,IF(AND(L63=10,N63<10),J64+10+N63+O63,IF(AND(L63<10,L63+M63=10),J64+10+N63,J64+L63+M63))) -> 150 | N64: =IF(AND(N63=10,P63=10),L64+20+R63,IF(AND(N63=10,P63<10),L64+10+P63+Q63,IF(AND(N63<10,N63+O63=10),L64+10+P63,L64+N63+O63))) -> 180 | P64: =IF(AND(P63=10,R63=10),N64+20+T63,IF(AND(P63=10,R63<10),N64+10+R63+S63,IF(AND(P63<10,P63+Q63=10),N64+10+R63,N64+P63+Q63))) -> 210 | R64: =IF(AND(R63=10,T63=10),P64+20+V63,IF(AND(R63=10,T63<10),P64+10+T63+U63,IF(AND(R63<10,R63+S63=10),P64+10+T63,P64+R63+S63))) -> 240 | T64: =IF(AND(T63=10,V63=10),R64+20+W63,IF(AND(T63=10,V63<10),R64+10+V63+W63,IF(AND(T63<10,T63+U63=10),R64+10+V63,R64+T63+U63))) -> 270 | V64: =T64+V63+W63+X63 -> 300
D65: 0 | E65: =IF(D63+E63<10,D63+E63-20,0) -> 0 | F65: =IF(AND(D63=10,F63=10),10,IF(AND(D63=10,F63+G63<11),F63+G63-10,IF(D63+E63=10,F63-10,0))) -> 10 | G65: =IF(F63+G63<10,F63+G63-20,0) -> 0 | H65: =IF(AND(F63=10,H63=10),10,IF(AND(D63=10,F63=10,H63<10),2*H63+I63-20,IF(AND(F63=10,H63+I63<11),H63+I63-10,IF(F63+G63=10,H63-10,0)))) -> 10 | I65: =IF(H63+I63<10,H63+I63-20,0) -> 0 | J65: =IF(AND(H63=10,J63=10),10,IF(AND(F63=10,H63=10,J63<10),2*J63+K63-20,IF(AND(H63=10,J63+K63<11),J63+K63-10,IF(H63+I63=10,J63-10,0)))) -> 10 | K65: =IF(J63+K63<10,J63+K63-20,0) -> 0 | L65: =IF(AND(J63=10,L63=10),10,IF(AND(H63=10,J63=10,L63<10),2*L63+M63-20,IF(AND(J63=10,L63+M63<11),L63+M63-10,IF(J63+K63=10,L63-10,0)))) -> 10 | M65: =IF(L63+M63<10,L63+M63-20,0) -> 0 | N65: =IF(AND(L63=10,N63=10),10,IF(AND(J63=10,L63=10,N63<10),2*N63+O63-20,IF(AND(L63=10,N63+O63<11),N63+O63-10,IF(L63+M63=10,N63-10,0)))) -> 10 | O65: =IF(N63+O63<10,N63+O63-20,0) -> 0 | P65: =IF(AND(N63=10,P63=10),10,IF(AND(L63=10,N63=10,P63<10),2*P63+Q63-20,IF(AND(N63=10,P63+Q63<11),P63+Q63-10,IF(N63+O63=10,P63-10,0)))) -> 10 | Q65: =IF(P63+Q63<10,P63+Q63-20,0) -> 0 | R65: =IF(AND(P63=10,R63=10),10,IF(AND(N63=10,P63=10,R63<10),2*R63+S63-20,IF(AND(P63=10,R63+S63<11),R63+S63-10,IF(P63+Q63=10,R63-10,0)))) -> 10 | S65: =IF(R63+S63<10,R63+S63-20,0) -> 0 | T65: =IF(AND(R63=10,T63=10),10,IF(AND(P63=10,R63=10,T63<10),2*T63+U63-20,IF(AND(R63=10,T63+U63<11),T63+U63-10,IF(R63+S63=10,T63-10,0)))) -> 10 | U65: =IF(T63+U63<10,T63+U63-20,0) -> 0 | V65: =IF(AND(T63=10,V63=10),W63,IF(AND(R63=10,T63=10,V63<10),2*V63+W63-20,IF(AND(T63=10,V63<10),V63+W63-10,IF(T63+U63=10,V63-10,0)))) -> 10 | W65: =V63+W63+X63-20 -> 10 | Y65: =200+SUM(D66:X66) -> 300
D66: =D65+E65 -> 0 | F66: =F65+G65 -> 10 | H66: =H65+I65 -> 10 | J66: =J65+K65 -> 10 | L66: =L65+M65 -> 10 | N66: =N65+O65 -> 10 | P66: =P65+Q65 -> 10 | R66: =R65+S65 -> 10 | T66: =T65+U65 -> 10 | V66: =IF(AND(R63=10,T63=10),IF(V63=10,10,V63-10),IF(T63=10,IF(V63=10,10,0),IF(T63+U63=10,IF(V63=10,0,V63-10),0))) -> 10 | W66: =IF(W63=10,10,IF(AND(T63=10,V63=10),W63-10,IF(AND(T63=10,V63<10),IF(V63+W63=10,0,2*V63+2*W63-30),IF(V63=10,0,IF(AND(V63<10,V63+W63=10),0,V63+W63-20))))) -> 10 | X66: =IF(OR(V63+W63=10,V63+W63=20),X63-10,IF(V63=10,W63+X63-10,0)) -> 0
C67: Player 5 | D67: 1 | F67: 2 | H67: 3 | J67: 4 | L67: 5 | N67: 6 | P67: 7 | R67: 8 | T67: 9 | V67: 10
C68: =スコア!C95 -> 0 | D68: =スコア!EI95 -> 10 | E68: =スコア!EJ95 -> 0 | F68: =スコア!EK95 -> 10 | G68: =スコア!EL95 -> 0 | H68: =スコア!EM95 -> 10 | I68: =スコア!EN95 -> 0 | J68: =スコア!EO95 -> 10 | K68: =スコア!EP95 -> 0 | L68: =スコア!EQ95 -> 10 | M68: =スコア!ER95 -> 0 | N68: =スコア!ES95 -> 10 | O68: =スコア!ET95 -> 0 | P68: =スコア!EU95 -> 10 | Q68: =スコア!EV95 -> 0 | R68: =スコア!EW95 -> 10 | S68: =スコア!EX95 -> 0 | T68: =スコア!EY95 -> 10 | U68: =スコア!EZ95 -> 0 | V68: =スコア!FA95 -> 10 | W68: =スコア!FB95 -> 10 | X68: =スコア!FC95 -> 10 | Y68: =V69 -> 300
D69: =IF(AND(D68=10,F68=10),20+H68,IF(AND(D68=10,F68<10),10+F68+G68,IF(AND(D68<10,D68+E68=10),10+F68,D68+E68))) -> 30 | F69: =IF(AND(F68=10,H68=10),D69+20+J68,IF(AND(F68=10,H68<10),D69+10+H68+I68,IF(AND(F68<10,F68+G68=10),D69+10+H68,D69+F68+G68))) -> 60 | H69: =IF(AND(H68=10,J68=10),F69+20+L68,IF(AND(H68=10,J68<10),F69+10+J68+K68,IF(AND(H68<10,H68+I68=10),F69+10+J68,F69+H68+I68))) -> 90 | J69: =IF(AND(J68=10,L68=10),H69+20+N68,IF(AND(J68=10,L68<10),H69+10+L68+M68,IF(AND(J68<10,J68+K68=10),H69+10+L68,H69+J68+K68))) -> 120 | L69: =IF(AND(L68=10,N68=10),J69+20+P68,IF(AND(L68=10,N68<10),J69+10+N68+O68,IF(AND(L68<10,L68+M68=10),J69+10+N68,J69+L68+M68))) -> 150 | N69: =IF(AND(N68=10,P68=10),L69+20+R68,IF(AND(N68=10,P68<10),L69+10+P68+Q68,IF(AND(N68<10,N68+O68=10),L69+10+P68,L69+N68+O68))) -> 180 | P69: =IF(AND(P68=10,R68=10),N69+20+T68,IF(AND(P68=10,R68<10),N69+10+R68+S68,IF(AND(P68<10,P68+Q68=10),N69+10+R68,N69+P68+Q68))) -> 210 | R69: =IF(AND(R68=10,T68=10),P69+20+V68,IF(AND(R68=10,T68<10),P69+10+T68+U68,IF(AND(R68<10,R68+S68=10),P69+10+T68,P69+R68+S68))) -> 240 | T69: =IF(AND(T68=10,V68=10),R69+20+W68,IF(AND(T68=10,V68<10),R69+10+V68+W68,IF(AND(T68<10,T68+U68=10),R69+10+V68,R69+T68+U68))) -> 270 | V69: =T69+V68+W68+X68 -> 300
D70: 0 | E70: =IF(D68+E68<10,D68+E68-20,0) -> 0 | F70: =IF(AND(D68=10,F68=10),10,IF(AND(D68=10,F68+G68<11),F68+G68-10,IF(D68+E68=10,F68-10,0))) -> 10 | G70: =IF(F68+G68<10,F68+G68-20,0) -> 0 | H70: =IF(AND(F68=10,H68=10),10,IF(AND(D68=10,F68=10,H68<10),2*H68+I68-20,IF(AND(F68=10,H68+I68<11),H68+I68-10,IF(F68+G68=10,H68-10,0)))) -> 10 | I70: =IF(H68+I68<10,H68+I68-20,0) -> 0 | J70: =IF(AND(H68=10,J68=10),10,IF(AND(F68=10,H68=10,J68<10),2*J68+K68-20,IF(AND(H68=10,J68+K68<11),J68+K68-10,IF(H68+I68=10,J68-10,0)))) -> 10 | K70: =IF(J68+K68<10,J68+K68-20,0) -> 0 | L70: =IF(AND(J68=10,L68=10),10,IF(AND(H68=10,J68=10,L68<10),2*L68+M68-20,IF(AND(J68=10,L68+M68<11),L68+M68-10,IF(J68+K68=10,L68-10,0)))) -> 10 | M70: =IF(L68+M68<10,L68+M68-20,0) -> 0 | N70: =IF(AND(L68=10,N68=10),10,IF(AND(J68=10,L68=10,N68<10),2*N68+O68-20,IF(AND(L68=10,N68+O68<11),N68+O68-10,IF(L68+M68=10,N68-10,0)))) -> 10 | O70: =IF(N68+O68<10,N68+O68-20,0) -> 0 | P70: =IF(AND(N68=10,P68=10),10,IF(AND(L68=10,N68=10,P68<10),2*P68+Q68-20,IF(AND(N68=10,P68+Q68<11),P68+Q68-10,IF(N68+O68=10,P68-10,0)))) -> 10 | Q70: =IF(P68+Q68<10,P68+Q68-20,0) -> 0 | R70: =IF(AND(P68=10,R68=10),10,IF(AND(N68=10,P68=10,R68<10),2*R68+S68-20,IF(AND(P68=10,R68+S68<11),R68+S68-10,IF(P68+Q68=10,R68-10,0)))) -> 10 | S70: =IF(R68+S68<10,R68+S68-20,0) -> 0 | T70: =IF(AND(R68=10,T68=10),10,IF(AND(P68=10,R68=10,T68<10),2*T68+U68-20,IF(AND(R68=10,T68+U68<11),T68+U68-10,IF(R68+S68=10,T68-10,0)))) -> 10 | U70: =IF(T68+U68<10,T68+U68-20,0) -> 0 | V70: =IF(AND(T68=10,V68=10),W68,IF(AND(R68=10,T68=10,V68<10),2*V68+W68-20,IF(AND(T68=10,V68<10),V68+W68-10,IF(T68+U68=10,V68-10,0)))) -> 10 | W70: =V68+W68+X68-20 -> 10 | Y70: =200+SUM(D71:X71) -> 300
D71: =D70+E70 -> 0 | F71: =F70+G70 -> 10 | H71: =H70+I70 -> 10 | J71: =J70+K70 -> 10 | L71: =L70+M70 -> 10 | N71: =N70+O70 -> 10 | P71: =P70+Q70 -> 10 | R71: =R70+S70 -> 10 | T71: =T70+U70 -> 10 | V71: =IF(AND(R68=10,T68=10),IF(V68=10,10,V68-10),IF(T68=10,IF(V68=10,10,0),IF(T68+U68=10,IF(V68=10,0,V68-10),0))) -> 10 | W71: =IF(W68=10,10,IF(AND(T68=10,V68=10),W68-10,IF(AND(T68=10,V68<10),IF(V68+W68=10,0,2*V68+2*W68-30),IF(V68=10,0,IF(AND(V68<10,V68+W68=10),0,V68+W68-20))))) -> 10 | X71: =IF(OR(V68+W68=10,V68+W68=20),X68-10,IF(V68=10,W68+X68-10,0)) -> 0
W74: (C) 2017 Hitoshi Saigo

Sheet 点差推移
C2: フレーム | D2: 投目 | E2: 点差
B3: 0.2 | C3: 1 | D3: 1 | E3: =点差計算!D3 -> 0
B4: 0.4 | D4: 2 | E4: =点差計算!D4 -> 0
B5: 0.6 | D5: 3 | E5: =点差計算!D5 -> 0
B6: 0.8 | D6: 4 | E6: =点差計算!D6 -> 0
B7: 1 | D7: 5 | E7: =点差計算!D7 -> 0
B8: 1.2 | C8: 2 | D8: 1 | E8: =点差計算!F3 -> 0
B9: 1.4 | D9: 2 | E9: =点差計算!F4 -> 0
B10: 1.6 | D10: 3 | E10: =点差計算!F5 -> 0
B11: 1.8 | D11: 4 | E11: =点差計算!F6 -> 0
B12: 2 | D12: 5 | E12: =点差計算!F7 -> 0
B13: 2.2 | C13: 3 | D13: 1 | E13: =点差計算!H3 -> 0
B14: 2.4 | D14: 2 | E14: =点差計算!H4 -> 0
B15: 2.6 | D15: 3 | E15: =点差計算!H5 -> 0
B16: 2.8 | D16: 4 | E16: =点差計算!H6 -> 0
B17: 3 | D17: 5 | E17: =点差計算!H7 -> 0
B18: 3.2 | C18: 4 | D18: 1 | E18: =点差計算!J3 -> 0
B19: 3.4 | D19: 2 | E19: =点差計算!J4 -> 0
B20: 3.6 | D20: 3 | E20: =点差計算!J5 -> 0
B21: 3.8 | D21: 4 | E21: =点差計算!J6 -> 0
B22: 4 | D22: 5 | E22: =点差計算!J7 -> 0
B23: 4.2 | C23: 5 | D23: 1 | E23: =点差計算!L3 -> 0
B24: 4.4 | D24: 2 | E24: =点差計算!L4 -> 0
B25: 4.6 | D25: 3 | E25: =点差計算!L5 -> 0
B26: 4.8 | D26: 4 | E26: =点差計算!L6 -> 0
B27: 5 | D27: 5 | E27: =点差計算!L7 -> 0
B28: 5.2 | C28: 6 | D28: 1 | E28: =点差計算!N3 -> 0
B29: 5.4 | D29: 2 | E29: =点差計算!N4 -> 0
B30: 5.6 | D30: 3 | E30: =点差計算!N5 -> 0
B31: 5.8 | D31: 4 | E31: =点差計算!N6 -> 0
B32: 6 | D32: 5 | E32: =点差計算!N7 -> 0
B33: 6.2 | C33: 7 | D33: 1 | E33: =点差計算!P3 -> 0
B34: 6.4 | D34: 2 | E34: =点差計算!P4 -> 0
B35: 6.6 | D35: 3 | E35: =点差計算!P5 -> 0
B36: 6.8 | D36: 4 | E36: =点差計算!P6 -> 0
B37: 7 | D37: 5 | E37: =点差計算!P7 -> 0
B38: 7.2 | C38: 8 | D38: 1 | E38: =点差計算!R3 -> 0
B39: 7.4 | D39: 2 | E39: =点差計算!R4 -> 0
B40: 7.6 | D40: 3 | E40: =点差計算!R5 -> 0
B41: 7.8 | D41: 4 | E41: =点差計算!R6 -> 0
B42: 8 | D42: 5 | E42: =点差計算!R7 -> 0
B43: 8.2 | C43: 9 | D43: 1 | E43: =点差計算!T3 -> 0
B44: 8.4 | D44: 2 | E44: =点差計算!T4 -> 0
B45: 8.6 | D45: 3 | E45: =点差計算!T5 -> 0
B46: 8.8 | D46: 4 | E46: =点差計算!T6 -> 0
B47: 9 | D47: 5 | E47: =点差計算!T7 -> 0
B48: =B47+1/15 -> 9.066666667 | C48: 10 | D48: 1-1 | E48: =点差計算!V3 -> 0
B49: =B48+1/15 -> 9.133333333 | D49: 1-2 | E49: =点差計算!X3 -> 0
B50: 9.2 | D50: 1-3 | E50: =点差計算!Z3 -> 0
B51: 9.266666667 | D51: 2-1 | E51: =点差計算!V4 -> 0
B52: 9.333333333 | D52: 2-2 | E52: =点差計算!X4 -> 0
B53: 9.4 | D53: 2-3 | E53: =点差計算!Z4 -> 0
B54: 9.466666667 | D54: 3-1 | E54: =点差計算!V5 -> 0
B55: 9.533333333 | D55: 3-2 | E55: =点差計算!X5 -> 0
B56: 9.6 | D56: 3-3 | E56: =点差計算!Z5 -> 0
B57: 9.666666667 | D57: 4-1 | E57: =点差計算!V6 -> 0
B58: 9.733333333 | D58: 4-2 | E58: =点差計算!X6 -> 0
B59: 9.8 | D59: 4-3 | E59: =点差計算!Z6 -> 0
B60: 9.866666667 | D60: 5-1 | E60: =点差計算!V7 -> 0
B61: 9.933333333 | D61: 5-2 | E61: =点差計算!X7 -> 0
B62: 10 | D62: 5-3 | E62: =点差計算!Z7 -> 0
P63: (C) 2017 Hitoshi Saigo
